Workbook

Sheet Informatie
A1: LEES ONDERSTAANDE INFO EERST!!
A3: Zowel de afgevaardigden als de reserves dienen zich aan te melden met een KNHS inschrijf formulier bij het secretariaat van de kring tijdens de 3e selectie wedstrijden voor deelname aan de Regiokampioenschappen.
A5: Springen klasse Z en ZZ Vrije inschrijvingen moeten zich rechtstreeks aanmelden, via het inschrijfformulier, en afmelden via mail kampioenschap@knhsregiogelderland.nl onder vermelding van het combinatienummer.

Sheet BB
A1: Selectie uitslagen
N2: 1 | V2: 2 | AD2: 3 | AL2: 4 | AT2: 5 | BB2: 6 | BC2: =N2+V2+AD2+AL2+AT2+BB2 -> 21 | BD2: =IF($O$4>0,(LARGE(($N2,$V2,$AD2,$AL2,$AT2,$BB2),1)),"0") -> 6 | BE2: =BC2-BD2 -> 15 | BF2: =IF($O$4>1,(LARGE(($N2,$V2,$AD2,$AL2,$AT2,$BB2),1))+(LARGE(($N2,$V2,$AD2,$AL2,$AT2,$BB2),2)),"0") -> 0 | BK2: =IF(G2>99,199,G2) -> 0 | BL2: =IF(H2="",0,H2) -> 0 | BM2: =IF(J2>99,199,J2) -> 0 | BN2: =IF(K2="",0,K2) -> 0 | BO2: =BK2+BM2 -> 0 | BP2: =IF(O2>99,199,O2) -> 0 | BQ2: =IF(P2="",0,P2) -> 0 | BR2: =IF(R2>99,199,R2) -> 0 | BS2: =IF(S2="",0,S2) -> 0 | BT2: =BP2+BR2 -> 0 | BU2: =IF(W2>99,199,W2) -> 0 | BV2: =IF(X2="",0,X2) -> 0 | BW2: =IF(Z2>99,199,Z2) -> 0 | BX2: =IF(AA2="",0,AA2) -> 0 | BY2: =BU2+BW2 -> 0 | BZ2: =IF(AE2>99,199,AE2) -> 0 | CA2: =IF(AF2="",0,AF2) -> 0 | CB2: =IF(AH2>99,199,AH2) -> 0 | CC2: =IF(AI2="",0,AI2) -> 0 | CD2: =BZ2+CB2 -> 0 | CE2: =IF(AM2>99,199,AM2) -> 0 | CF2: =IF(AN2="",0,AN2) -> 0 | CG2: =IF(AP2>99,199,AP2) -> 0 | CH2: =IF(AQ2="",0,AQ2) -> 0 | CI2: =CE2+CG2 -> 0 | CJ2: =IF(AU2>99,199,AU2) -> 0 | CK2: =IF(AV2="",0,AV2) -> 0 | CL2: =IF(AX2>99,199,AX2) -> 0 | CM2: =IF(AY2="",0,AY2) -> 0 | CN2: =CJ2+CL2 -> 0
A3: Kring: | C3: =Instellingen!B3 -> Kring NVF | F3: Aantal afvaardiging Regio: | BC3: Aantal wedstrijden: | BG3: =Instellingen!B6 -> 3
A4: Klasse: | C4: BB | F4: Aantal afval resultaten: | O4: =Instellingen!B7 -> 1
A5: Cat.: | F5: Plaatsingspunten niet gestart: | O5: =Instellingen!B5 -> 99 | BC5: Aantal reserves:
F6: Lokatie: | G6: =Instellingen!B40 -> Hierden | O6: =Instellingen!B41 -> Nunspeet | W6: =Instellingen!B42 -> Wezep | AE6: =Instellingen!B43 ->  | AM6: =Instellingen!B44 ->  | AU6: =Instellingen!B45 ->  | BC6: Springen
F7: Datum: | G7: =Instellingen!C40 -> 20 nov 2021 | O7: =Instellingen!C41 -> 11 dec 2021 | W7: =Instellingen!C42 -> 05 feb 2021 | AE7: =Instellingen!C43 ->  | AM7: =Instellingen!C44 ->  | AU7: =Instellingen!C45 ->  | BC7: Tot. | BD7: afval | BE7: Beste
A8: Pl. | B8: Comb.nr. | C8: Ruiter/amazone | D8: Paard/pony | E8: kl. | F8: vereniging | G8: ftn1 | H8: styl1 | I8: wvr1 | J8: ftn2 | K8: styl2 | L8: wvr2 | M8: pl. | N8: pl.p. | O8: ftn1 | P8: styl1 | Q8: wvr1 | R8: ftn2 | S8: styl2 | T8: wvr2 | U8: pl. | V8: pl.p. | W8: ftn1 | X8: styl1 | Y8: wvr1 | Z8: ftn2 | AA8: styl2 | AB8: wvr2 | AC8: pl. | AD8: pl.p. | AE8: ftn1 | AF8: styl1 | AG8: wvr1 | AH8: ftn2 | AI8: styl2 | AJ8: wvr2 | AK8: pl. | AL8: pl.p. | AM8: ftn1 | AN8: styl1 | AO8: wvr1 | AP8: ftn2 | AQ8: styl2 | AR8: wvr2 | AS8: pl. | AT8: pl.p. | AU8: ftn1 | AV8: styl1 | AW8: wvr1 | AX8: ftn2 | AY8: styl2 | AZ8: wvr2 | BA8: pl. | BB8: pl.p. | BC8: pl.pnt | BD8: pl.pnt | BE8: pl.pnt | BF8: Afv. | BG8: Res. | BH8: Afv. Regio | BI8: opmerking | BK8: ftn1 1e | BL8: styl1 1e | BM8: ftn2 1e | BN8: styl2 1e bar. | BO8: 1e tot ftn | BP8: ftn1 2e | BQ8: styl1 2e | BR8: ftn2 2e | BS8: styl2 2e bar. | BT8: 2e tot ftn | BU8: ftn1 3e | BV8: styl1 3e | BW8: ftn2 3e | BX8: styl2 3e bar. | BY8: 3e tot ftn | BZ8: ftn1 4e | CA8: styl1 4e | CB8: ftn2 4e | CC8: styl2 4e bar. | CD8: 4e tot ftn | CE8: ftn1 5e | CF8: styl1 5e | CG8: ftn2 5e | CH8: styl2 5e bar. | CI8: 5e tot ftn | CJ8: ftn1 6e | CK8: styl1 6e | CL8: ftn2 6e | CM8: styl2 6e bar. | CN8: 6e tot ftn

Sheet B
A1: Selectie uitslagen
N2: 1 | V2: 2 | AD2: 3 | AL2: 4 | AT2: 5 | BB2: 6 | BC2: =N2+V2+AD2+AL2+AT2+BB2 -> 21 | BD2: =IF($O$4>0,(LARGE(($N2,$V2,$AD2,$AL2,$AT2,$BB2),1)),"0") -> 6 | BE2: =BC2-BD2 -> 15 | BF2: =IF($O$4>1,(LARGE(($N2,$V2,$AD2,$AL2,$AT2,$BB2),1))+(LARGE(($N2,$V2,$AD2,$AL2,$AT2,$BB2),2)),"0") -> 0 | BK2: =IF(G2>99,199,G2) -> 0 | BL2: =IF(H2="",0,H2) -> 0 | BM2: =IF(J2>99,199,J2) -> 0 | BN2: =IF(K2="",0,K2) -> 0 | BO2: =BK2+BM2 -> 0 | BP2: =IF(O2>99,199,O2) -> 0 | BQ2: =IF(P2="",0,P2) -> 0 | BR2: =IF(R2>99,199,R2) -> 0 | BS2: =IF(S2="",0,S2) -> 0 | BT2: =BP2+BR2 -> 0 | BU2: =IF(W2>99,199,W2) -> 0 | BV2: =IF(X2="",0,X2) -> 0 | BW2: =IF(Z2>99,199,Z2) -> 0 | BX2: =IF(AA2="",0,AA2) -> 0 | BY2: =BU2+BW2 -> 0 | BZ2: =IF(AE2>99,199,AE2) -> 0 | CA2: =IF(AF2="",0,AF2) -> 0 | CB2: =IF(AH2>99,199,AH2) -> 0 | CC2: =IF(AI2="",0,AI2) -> 0 | CD2: =BZ2+CB2 -> 0 | CE2: =IF(AM2>99,199,AM2) -> 0 | CF2: =IF(AN2="",0,AN2) -> 0 | CG2: =IF(AP2>99,199,AP2) -> 0 | CH2: =IF(AQ2="",0,AQ2) -> 0 | CI2: =CE2+CG2 -> 0 | CJ2: =IF(AU2>99,199,AU2) -> 0 | CK2: =IF(AV2="",0,AV2) -> 0 | CL2: =IF(AX2>99,199,AX2) -> 0 | CM2: =IF(AY2="",0,AY2) -> 0 | CN2: =CJ2+CL2 -> 0
A3: Kring: | C3: =Instellingen!B3 -> Kring NVF | F3: Aantal afvaardiging Regio: | O3: 9 | BC3: Aantal wedstrijden: | BG3: =Instellingen!B6 -> 3
A4: Klasse: | C4: B | F4: Aantal afval resultaten: | O4: =Instellingen!B7 -> 1
A5: Cat.: | F5: Plaatsingspunten niet gestart: | O5: =Instellingen!B5 -> 99 | BC5: Aantal reserves: | BG5: 3
F6: Lokatie: | G6: =Instellingen!B40 -> Hierden | O6: =Instellingen!B41 -> Nunspeet | W6: =Instellingen!B42 -> Wezep | AE6: =Instellingen!B43 ->  | AM6: =Instellingen!B44 ->  | AU6: =Instellingen!B45 ->  | BC6: Springen
F7: Datum: | G7: =Instellingen!C40 -> 20 nov 2021 | O7: =Instellingen!C41 -> 11 dec 2021 | W7: =Instellingen!C42 -> 05 feb 2021 | AE7: =Instellingen!C43 ->  | AM7: =Instellingen!C44 ->  | AU7: =Instellingen!C45 ->  | BC7: Tot. | BD7: afval | BE7: Beste
A8: Pl. | B8: Comb.nr. | C8: Ruiter/amazone | D8: Paard/pony | E8: kl. | F8: vereniging | G8: ftn1 | H8: styl1 | I8: wvr1 | J8: ftn2 | K8: styl2 | L8: wvr2 | M8: pl. | N8: pl.p. | O8: ftn1 | P8: styl1 | Q8: wvr1 | R8: ftn2 | S8: styl2 | T8: wvr2 | U8: pl. | V8: pl.p. | W8: ftn1 | X8: styl1 | Y8: wvr1 | Z8: ftn2 | AA8: styl2 | AB8: wvr2 | AC8: pl. | AD8: pl.p. | AE8: ftn1 | AF8: styl1 | AG8: wvr1 | AH8: ftn2 | AI8: styl2 | AJ8: wvr2 | AK8: pl. | AL8: pl.p. | AM8: ftn1 | AN8: styl1 | AO8: wvr1 | AP8: ftn2 | AQ8: styl2 | AR8: wvr2 | AS8: pl. | AT8: pl.p. | AU8: ftn1 | AV8: styl1 | AW8: wvr1 | AX8: ftn2 | AY8: styl2 | AZ8: wvr2 | BA8: pl. | BB8: pl.p. | BC8: pl.pnt | BD8: pl.pnt | BE8: pl.pnt | BF8: Afv. | BG8: Res. | BH8: Afv. Regio | BI8: opmerking | BK8: ftn1 1e | BL8: styl1 1e | BM8: ftn2 1e | BN8: styl2 1e bar. | BO8: 1e tot ftn | BP8: ftn1 2e | BQ8: styl1 2e | BR8: ftn2 2e | BS8: styl2 2e bar. | BT8: 2e tot ftn | BU8: ftn1 3e | BV8: styl1 3e | BW8: ftn2 3e | BX8: styl2 3e bar. | BY8: 3e tot ftn | BZ8: ftn1 4e | CA8: styl1 4e | CB8: ftn2 4e | CC8: styl2 4e bar. | CD8: 4e tot ftn | CE8: ftn1 5e | CF8: styl1 5e | CG8: ftn2 5e | CH8: styl2 5e bar. | CI8: 5e tot ftn | CJ8: ftn1 6e | CK8: styl1 6e | CL8: ftn2 6e | CM8: styl2 6e bar. | CN8: 6e tot ftn
A9: 1 | B9: 908293DB | C9: Kim Bouten | D9: Domestic Z | E9: B | F9: Marleruiters, RV. | G9: 0 | H9: 90.0 | I9: 9.0 | M9: 1 | N9: 1 | O9: 0 | P9: 75.5 | Q9: 7.5 | U9: 6 | V9: 6 | W9: 0 | X9: 85.0 | Y9: 8.5 | AC9: 1 | AD9: 1 | BC9: =N9+V9+AD9+AL9+AT9+BB9 -> 8 | BD9: =IF($O$4>0,(LARGE(($N9,$V9,$AD9,$AL9,$AT9,$BB9),1)),"0") -> 6 | BE9: =BC9-BD9 -> 2 | BF9: 1 | BI9: Kringkampioen | BK9: =IF(G9>99,199,G9) -> 0 | BL9: =IF(H9="",0,H9) -> 90 | BM9: =IF(J9>99,199,J9) -> 0 | BN9: =IF(K9="",0,K9) -> 0 | BO9: =BK9+BM9 -> 0 | BP9: =IF(O9>99,199,O9) -> 0 | BQ9: =IF(P9="",0,P9) -> 75.5 | BR9: =IF(R9>99,199,R9) -> 0 | BS9: =IF(S9="",0,S9) -> 0 | BT9: =BP9+BR9 -> 0 | BU9: =IF(W9>99,199,W9) -> 0 | BV9: =IF(X9="",0,X9) -> 85 | BW9: =IF(Z9>99,199,Z9) -> 0 | BX9: =IF(AA9="",0,AA9) -> 0 | BY9: =BU9+BW9 -> 0 | BZ9: =IF(AE9>99,199,AE9) -> 0 | CA9: =IF(AF9="",0,AF9) -> 0 | CB9: =IF(AH9>99,199,AH9) -> 0 | CC9: =IF(AI9="",0,AI9) -> 0 | CD9: =BZ9+CB9 -> 0 | CE9: =IF(AM9>99,199,AM9) -> 0 | CF9: =IF(AN9="",0,AN9) -> 0 | CG9: =IF(AP9>99,199,AP9) -> 0 | CH9: =IF(AQ9="",0,AQ9) -> 0 | CI9: =CE9+CG9 -> 0 | CJ9: =IF(AU9>99,199,AU9) -> 0 | CK9: =IF(AV9="",0,AV9) -> 0 | CL9: =IF(AX9>99,199,AX9) -> 0 | CM9: =IF(AY9="",0,AY9) -> 0 | CN9: =CJ9+CL9 -> 0
A10: 2 | B10: 920136LF | C10: Femke Franken | D10: Larcona | E10: B | F10: Randmeerruiters, RV. De | G10: 0 | H10: 80.0 | I10: 8.0 | M10: 3 | N10: 3 | O10: 0 | P10: 78.0 | Q10: 8.0 | U10: 3 | V10: 3 | AD10: 99 | BC10: 105 | BD10: =IF($O$4>0,(LARGE(($N10,$V10,$AD10,$AL10,$AT10,$BB10),1)),"0") -> 99 | BE10: 6 | BF10: 2 | BK10: 0 | BL10: 80 | BM10: 0 | BN10: 0 | BO10: 0 | BP10: 0 | BQ10: 78 | BR10: 0 | BS10: 0 | BT10: 0 | BU10: 0 | BV10: 0 | BW10: 0 | BX10: 0 | BY10: 0 | BZ10: 0 | CA10: 0 | CB10: 0 | CC10: 0 | CD10: 0 | CE10: 0 | CF10: 0 | CG10: 0 | CH10: 0 | CI10: 0 | CJ10: 0 | CK10: 0 | CL10: 0 | CM10: 0 | CN10: 0
A11: 3 | B11: 938518CD | C11: Rosanne Dogterom | D11: Coolbest | E11: B | F11: Flevoruiters, RV. | G11: 5 | H11: 71.0 | I11: 7.0 | M11: 28 | N11: 28 | O11: 0 | P11: 76.0 | Q11: 7.5 | U11: 4 | V11: 4 | W11: 0 | X11: 73.5 | Y11: 7.5 | AC11: 9 | AD11: 9 | BC11: 41 | BD11: =IF($O$4>0,(LARGE(($N11,$V11,$AD11,$AL11,$AT11,$BB11),1)),"0") -> 28 | BE11: 13 | BF11: 3 | BK11: 5 | BL11: 71 | BM11: 0 | BN11: 0 | BO11: 5 | BP11: 0 | BQ11: 76 | BR11: 0 | BS11: 0 | BT11: 0 | BU11: 0 | BV11: 73.5 | BW11: 0 | BX11: 0 | BY11: 0 | BZ11: 0 | CA11: 0 | CB11: 0 | CC11: 0 | CD11: 0 | CE11: 0 | CF11: 0 | CG11: 0 | CH11: 0 | CI11: 0 | CJ11: 0 | CK11: 0 | CL11: 0 | CM11: 0 | CN11: 0
A12: 4 | B12: 921364JL | C12: Esther Lammerts | D12: Jan L Z | E12: B | F12: Flevoruiters, RV. | G12: 0 | H12: 71.5 | I12: 7.0 | M12: 9 | N12: 9 | O12: 0 | P12: 76.0 | Q12: 7.5 | U12: 4 | V12: 4 | AD12: 99 | BC12: 112 | BD12: =IF($O$4>0,(LARGE(($N12,$V12,$AD12,$AL12,$AT12,$BB12),1)),"0") -> 99 | BE12: 13 | BF12: 4 | BK12: 0 | BL12: 71.5 | BM12: 0 | BN12: 0 | BO12: 0 | BP12: 0 | BQ12: 76 | BR12: 0 | BS12: 0 | BT12: 0 | BU12: 0 | BV12: 0 | BW12: 0 | BX12: 0 | BY12: 0 | BZ12: 0 | CA12: 0 | CB12: 0 | CC12: 0 | CD12: 0 | CE12: 0 | CF12: 0 | CG12: 0 | CH12: 0 | CI12: 0 | CJ12: 0 | CK12: 0 | CL12: 0 | CM12: 0 | CN12: 0
A13: 5 | B13: 919173KL | C13: Marit Lans | D13: Kees | E13: B | F13: Flevoruiters, RV. | G13: 0 | H13: 73.5 | I13: 7.5 | M13: 6 | N13: 6 | O13: 0 | P13: 71.0 | Q13: 7.0 | U13: 10 | V13: 10 | W13: 0 | X13: 66.0 | Y13: 6.5 | AC13: 17 | AD13: 17 | BC13: 33 | BD13: =IF($O$4>0,(LARGE(($N13,$V13,$AD13,$AL13,$AT13,$BB13),1)),"0") -> 17 | BE13: 16 | BF13: 5 | BK13: 0 | BL13: 73.5 | BM13: 0 | BN13: 0 | BO13: 0 | BP13: 0 | BQ13: 71 | BR13: 0 | BS13: 0 | BT13: 0 | BU13: 0 | BV13: 66 | BW13: 0 | BX13: 0 | BY13: 0 | BZ13: 0 | CA13: 0 | CB13: 0 | CC13: 0 | CD13: 0 | CE13: 0 | CF13: 0 | CG13: 0 | CH13: 0 | CI13: 0 | CJ13: 0 | CK13: 0 | CL13: 0 | CM13: 0 | CN13: 0
A14: 6 | B14: 911057LS | C14: Brechtje Stoop | D14: Lucy On Tour | E14: B | F14: Flevoruiters, RV. | G14: 4 | H14: 75.0 | I14: 7.5 | M14: 16 | N14: 16 | O14: 0 | P14: 82.5 | Q14: 8.5 | U14: 1 | V14: 1 | W14: 4 | X14: 68.0 | Y14: 6.5 | AC14: 22 | AD14: 22 | BC14: 39 | BD14: =IF($O$4>0,(LARGE(($N14,$V14,$AD14,$AL14,$AT14,$BB14),1)),"0") -> 22 | BE14: 17 | BF14: 6 | BK14: 4 | BL14: 75 | BM14: 0 | BN14: 0 | BO14: 4 | BP14: 0 | BQ14: 82.5 | BR14: 0 | BS14: 0 | BT14: 0 | BU14: 4 | BV14: 68 | BW14: 0 | BX14: 0 | BY14: 4 | BZ14: 0 | CA14: 0 | CB14: 0 | CC14: 0 | CD14: 0 | CE14: 0 | CF14: 0 | CG14: 0 | CH14: 0 | CI14: 0 | CJ14: 0 | CK14: 0 | CL14: 0 | CM14: 0 | CN14: 0
A15: 7 | B15: 919605MR | C15: Niels Remijn | D15: Mendolin | E15: B | F15: Flevoruiters, RV. | G15: 0 | H15: 71.5 | I15: 7.5 | M15: 8 | N15: 8 | O15: 0 | P15: 65.0 | Q15: 6.5 | U15: 18 | V15: 18 | W15: 0 | X15: 70.0 | Y15: 7.0 | AC15: 11 | AD15: 11 | BC15: 37 | BD15: =IF($O$4>0,(LARGE(($N15,$V15,$AD15,$AL15,$AT15,$BB15),1)),"0") -> 18 | BE15: 19 | BF15: 7 | BK15: 0 | BL15: 71.5 | BM15: 0 | BN15: 0 | BO15: 0 | BP15: 0 | BQ15: 65 | BR15: 0 | BS15: 0 | BT15: 0 | BU15: 0 | BV15: 70 | BW15: 0 | BX15: 0 | BY15: 0 | BZ15: 0 | CA15: 0 | CB15: 0 | CC15: 0 | CD15: 0 | CE15: 0 | CF15: 0 | CG15: 0 | CH15: 0 | CI15: 0 | CJ15: 0 | CK15: 0 | CL15: 0 | CM15: 0 | CN15: 0
A16: 8 | B16: 907861KV | C16: Marije Van de Vijver | D16: Ketchican Srr | E16: B | F16: Flevoruiters, RV. | G16: 0 | H16: 68.0 | I16: 6.5 | M16: 10 | N16: 10 | O16: 0 | P16: 70.0 | Q16: 7.0 | U16: 13 | V16: 13 | W16: 0 | X16: 70.5 | Y16: 7.0 | AC16: 10 | AD16: 10 | BC16: 33 | BD16: =IF($O$4>0,(LARGE(($N16,$V16,$AD16,$AL16,$AT16,$BB16),1)),"0") -> 13 | BE16: 20 | BF16: 8 | BK16: 0 | BL16: 68 | BM16: 0 | BN16: 0 | BO16: 0 | BP16: 0 | BQ16: 70 | BR16: 0 | BS16: 0 | BT16: 0 | BU16: 0 | BV16: 70.5 | BW16: 0 | BX16: 0 | BY16: 0 | BZ16: 0 | CA16: 0 | CB16: 0 | CC16: 0 | CD16: 0 | CE16: 0 | CF16: 0 | CG16: 0 | CH16: 0 | CI16: 0 | CJ16: 0 | CK16: 0 | CL16: 0 | CM16: 0 | CN16: 0
A17: 9 | B17: 928095MW | C17: Jan Wolfs | D17: Most Wanted | E17: B | F17: Nunspeetse Ruiterclub, RV. | G17: 4 | H17: 67.5 | I17: 6.5 | M17: 25 | N17: 25 | O17: 0 | P17: 73.5 | Q17: 7.5 | U17: 7 | V17: 7 | W17: 0 | X17: 67.5 | Y17: 6.5 | AC17: 15 | AD17: 15 | BC17: 47 | BD17: =IF($O$4>0,(LARGE(($N17,$V17,$AD17,$AL17,$AT17,$BB17),1)),"0") -> 25 | BE17: 22 | BF17: 9 | BK17: 4 | BL17: 67.5 | BM17: 0 | BN17: 0 | BO17: 4 | BP17: 0 | BQ17: 73.5 | BR17: 0 | BS17: 0 | BT17: 0 | BU17: 0 | BV17: 67.5 | BW17: 0 | BX17: 0 | BY17: 0 | BZ17: 0 | CA17: 0 | CB17: 0 | CC17: 0 | CD17: 0 | CE17: 0 | CF17: 0 | CG17: 0 | CH17: 0 | CI17: 0 | CJ17: 0 | CK17: 0 | CL17: 0 | CM17: 0 | CN17: 0
A18: 11 | B18: 932381AV | C18: Esmee de Vries | D18: Elvis Z. | E18: B | F18: Maverick Stables | G18: 23 | H18: 66.5 | I18: 6.5 | M18: 30 | N18: 30 | O18: 0 | P18: 71.5 | Q18: 7.0 | U18: 9 | V18: 9 | W18: 0 | X18: 68.0 | Y18: 7.0 | AC18: 14 | AD18: 14 | BC18: 53 | BD18: =IF($O$4>0,(LARGE(($N18,$V18,$AD18,$AL18,$AT18,$BB18),1)),"0") -> 30 | BE18: 23 | BG18: 1 | BK18: 23 | BL18: 66.5 | BM18: 0 | BN18: 0 | BO18: 23 | BP18: 0 | BQ18: 71.5 | BR18: 0 | BS18: 0 | BT18: 0 | BU18: 0 | BV18: 68 | BW18: 0 | BX18: 0 | BY18: 0 | BZ18: 0 | CA18: 0 | CB18: 0 | CC18: 0 | CD18: 0 | CE18: 0 | CF18: 0 | CG18: 0 | CH18: 0 | CI18: 0 | CJ18: 0 | CK18: 0 | CL18: 0 | CM18: 0 | CN18: 0
A19: 12 | B19: 942125BH | C19: Iris Van den Heuvel | D19: Bonaire | E19: B | F19: WWNA, RV. | N19: 99 | O19: 0 | P19: 70.5 | Q19: 7.0 | U19: 11 | V19: 11 | W19: 0 | X19: 69.0 | Y19: 7.0 | AC19: 13 | AD19: 13 | BC19: 123 | BD19: =IF($O$4>0,(LARGE(($N19,$V19,$AD19,$AL19,$AT19,$BB19),1)),"0") -> 99 | BE19: 24 | BG19: 2 | BK19: 0 | BL19: 0 | BM19: 0 | BN19: 0 | BO19: 0 | BP19: 0 | BQ19: 70.5 | BR19: 0 | BS19: 0 | BT19: 0 | BU19: 0 | BV19: 69 | BW19: 0 | BX19: 0 | BY19: 0 | BZ19: 0 | CA19: 0 | CB19: 0 | CC19: 0 | CD19: 0 | CE19: 0 | CF19: 0 | CG19: 0 | CH19: 0 | CI19: 0 | CJ19: 0 | CK19: 0 | CL19: 0 | CM19: 0 | CN19: 0
A20: 13 | B20: 937468MV | C20: Cynthia Vos | D20: Mr Elois | E20: B | F20: Nunspeetse Ruiterclub, RV. | G20: Uit11 | N20: 90 | O20: 0 | P20: 63.0 | Q20: 6.0 | U20: 19 | V20: 19 | W20: 0 | X20: 75.5 | Y20: 7.5 | AC20: 6 | AD20: 6 | BC20: 115 | BD20: =IF($O$4>0,(LARGE(($N20,$V20,$AD20,$AL20,$AT20,$BB20),1)),"0") -> 90 | BE20: 25 | BG20: 3 | BK20: 199 | BL20: 0 | BM20: 0 | BN20: 0 | BO20: 199 | BP20: 0 | BQ20: 63 | BR20: 0 | BS20: 0 | BT20: 0 | BU20: 0 | BV20: 75.5 | BW20: 0 | BX20: 0 | BY20: 0 | BZ20: 0 | CA20: 0 | CB20: 0 | CC20: 0 | CD20: 0 | CE20: 0 | CF20: 0 | CG20: 0 | CH20: 0 | CI20: 0 | CJ20: 0 | CK20: 0 | CL20: 0 | CM20: 0 | CN20: 0
A21: 14 | B21: 901090FS | C21: Julie Schuurkamp | D21: Flashdance | E21: B | F21: Randmeerruiters, RV. De | G21: 2 | H21: 71.0 | I21: 7.0 | M21: 12 | N21: 12 | O21: 0 | P21: 70.0 | Q21: 6.5 | U21: 14 | V21: 14 | W21: Uit11 | AD21: 90 | BC21: 116 | BD21: =IF($O$4>0,(LARGE(($N21,$V21,$AD21,$AL21,$AT21,$BB21),1)),"0") -> 90 | BE21: 26 | BK21: 2 | BL21: 71 | BM21: 0 | BN21: 0 | BO21: 2 | BP21: 0 | BQ21: 70 | BR21: 0 | BS21: 0 | BT21: 0 | BU21: 199 | BV21: 0 | BW21: 0 | BX21: 0 | BY21: 199 | BZ21: 0 | CA21: 0 | CB21: 0 | CC21: 0 | CD21: 0 | CE21: 0 | CF21: 0 | CG21: 0 | CH21: 0 | CI21: 0 | CJ21: 0 | CK21: 0 | CL21: 0 | CM21: 0 | CN21: 0
A22: 15 | B22: 589333CT | C22: Danique Timmer | D22: Cilithya W | E22: B | F22: Randmeerruiters, RV. De | G22: 0 | H22: 73.0 | I22: 7.5 | M22: 7 | N22: 7 | O22: 0 | P22: 61.0 | Q22: 6.0 | U22: 21 | V22: 21 | W22: 4 | X22: 75.0 | Y22: 7.5 | AC22: 20 | AD22: 20 | BC22: 48 | BD22: =IF($O$4>0,(LARGE(($N22,$V22,$AD22,$AL22,$AT22,$BB22),1)),"0") -> 21 | BE22: 27 | BK22: 0 | BL22: 73 | BM22: 0 | BN22: 0 | BO22: 0 | BP22: 0 | BQ22: 61 | BR22: 0 | BS22: 0 | BT22: 0 | BU22: 4 | BV22: 75 | BW22: 0 | BX22: 0 | BY22: 4 | BZ22: 0 | CA22: 0 | CB22: 0 | CC22: 0 | CD22: 0 | CE22: 0 | CF22: 0 | CG22: 0 | CH22: 0 | CI22: 0 | CJ22: 0 | CK22: 0 | CL22: 0 | CM22: 0 | CN22: 0
A23: 16 | B23: 938910JF | C23: Leonie Fijnvandraat - Bleeker | D23: Jackie | E23: B | F23: Flevoruiters, RV. | N23: 99 | O23: 0 | P23: 80.5 | Q23: 8.0 | U23: 2 | V23: 2 | W23: 16 | X23: 75.0 | Y23: 7.5 | AC23: 27 | AD23: 27 | BC23: 128 | BD23: =IF($O$4>0,(LARGE(($N23,$V23,$AD23,$AL23,$AT23,$BB23),1)),"0") -> 99 | BE23: 29 | BK23: 0 | BL23: 0 | BM23: 0 | BN23: 0 | BO23: 0 | BP23: 0 | BQ23: 80.5 | BR23: 0 | BS23: 0 | BT23: 0 | BU23: 16 | BV23: 75 | BW23: 0 | BX23: 0 | BY23: 16 | BZ23: 0 | CA23: 0 | CB23: 0 | CC23: 0 | CD23: 0 | CE23: 0 | CF23: 0 | CG23: 0 | CH23: 0 | CI23: 0 | CJ23: 0 | CK23: 0 | CL23: 0 | CM23: 0 | CN23: 0
A24: 17 | B24: 919378JR | C24: Zara De Ree | D24: Jeeminee | E24: B | F24: Marleruiters, RV. | G24: 4 | H24: 75.0 | I24: 7.5 | M24: 16 | N24: 16 | O24: 0 | P24: 68.0 | Q24: 7.0 | U24: 15 | V24: 15 | AD24: 99 | BC24: 130 | BD24: =IF($O$4>0,(LARGE(($N24,$V24,$AD24,$AL24,$AT24,$BB24),1)),"0") -> 99 | BE24: 31 | BK24: 4 | BL24: 75 | BM24: 0 | BN24: 0 | BO24: 4 | BP24: 0 | BQ24: 68 | BR24: 0 | BS24: 0 | BT24: 0 | BU24: 0 | BV24: 0 | BW24: 0 | BX24: 0 | BY24: 0 | BZ24: 0 | CA24: 0 | CB24: 0 | CC24: 0 | CD24: 0 | CE24: 0 | CF24: 0 | CG24: 0 | CH24: 0 | CI24: 0 | CJ24: 0 | CK24: 0 | CL24: 0 | CM24: 0 | CN24: 0
A25: 18 | B25: 919348LL | C25: Merel Lans | D25: Lio | E25: B | F25: Flevoruiters, RV. | G25: 4 | H25: 80.0 | I25: 8.0 | M25: 13 | N25: 13 | O25: 0 | P25: 63.0 | Q25: 6.0 | U25: 19 | V25: 19 | W25: 4 | X25: 75.5 | Y25: 7.5 | AC25: 19 | AD25: 19 | BC25: 51 | BD25: =IF($O$4>0,(LARGE(($N25,$V25,$AD25,$AL25,$AT25,$BB25),1)),"0") -> 19 | BE25: 32 | BK25: 4 | BL25: 80 | BM25: 0 | BN25: 0 | BO25: 4 | BP25: 0 | BQ25: 63 | BR25: 0 | BS25: 0 | BT25: 0 | BU25: 4 | BV25: 75.5 | BW25: 0 | BX25: 0 | BY25: 4 | BZ25: 0 | CA25: 0 | CB25: 0 | CC25: 0 | CD25: 0 | CE25: 0 | CF25: 0 | CG25: 0 | CH25: 0 | CI25: 0 | CJ25: 0 | CK25: 0 | CL25: 0 | CM25: 0 | CN25: 0
A26: 19 | B26: 905231JK | C26: Jessica Nijhof - Kool | D26: Jemira | E26: B | F26: Heuvelruiters, RV. | G26: 4 | H26: 76.0 | I26: 7.5 | M26: 15 | N26: 15 | O26: 0 | P26: 65.5 | Q26: 6.5 | U26: 17 | V26: 17 | AD26: 99 | BC26: 131 | BD26: =IF($O$4>0,(LARGE(($N26,$V26,$AD26,$AL26,$AT26,$BB26),1)),"0") -> 99 | BE26: 32 | BK26: 4 | BL26: 76 | BM26: 0 | BN26: 0 | BO26: 4 | BP26: 0 | BQ26: 65.5 | BR26: 0 | BS26: 0 | BT26: 0 | BU26: 0 | BV26: 0 | BW26: 0 | BX26: 0 | BY26: 0 | BZ26: 0 | CA26: 0 | CB26: 0 | CC26: 0 | CD26: 0 | CE26: 0 | CF26: 0 | CG26: 0 | CH26: 0 | CI26: 0 | CJ26: 0 | CK26: 0 | CL26: 0 | CM26: 0 | CN26: 0
A27: 20 | B27: 921877LK | C27: Wilco Kwakkel | D27: Lex | E27: B | F27: Heuvelruiters, RV. | G27: Uit12 | N27: 90 | O27: 8 | P27: 75.5 | Q27: 7.5 | U27: 30 | V27: 30 | W27: 0 | X27: 80.5 | Y27: 8.0 | AC27: 3 | AD27: 3 | BC27: 123 | BD27: =IF($O$4>0,(LARGE(($N27,$V27,$AD27,$AL27,$AT27,$BB27),1)),"0") -> 90 | BE27: 33 | BK27: 199 | BL27: 0 | BM27: 0 | BN27: 0 | BO27: 199 | BP27: 8 | BQ27: 75.5 | BR27: 0 | BS27: 0 | BT27: 8 | BU27: 0 | BV27: 80.5 | BW27: 0 | BX27: 0 | BY27: 0 | BZ27: 0 | CA27: 0 | CB27: 0 | CC27: 0 | CD27: 0 | CE27: 0 | CF27: 0 | CG27: 0 | CH27: 0 | CI27: 0 | CJ27: 0 | CK27: 0 | CL27: 0 | CM27: 0 | CN27: 0
A28: 21 | B28: 794227ZP | C28: Ji Na Polinder | D28: Ziezo CL | E28: B | F28: Randmeerruiters, RV. De | N28: 99 | O28: 0 | P28: 72.5 | Q28: 7.0 | U28: 8 | V28: 8 | W28: 20 | X28: 75.0 | Y28: 7.5 | AC28: 28 | AD28: 28 | BC28: 135 | BD28: =IF($O$4>0,(LARGE(($N28,$V28,$AD28,$AL28,$AT28,$BB28),1)),"0") -> 99 | BE28: 36 | BK28: 0 | BL28: 0 | BM28: 0 | BN28: 0 | BO28: 0 | BP28: 0 | BQ28: 72.5 | BR28: 0 | BS28: 0 | BT28: 0 | BU28: 20 | BV28: 75 | BW28: 0 | BX28: 0 | BY28: 20 | BZ28: 0 | CA28: 0 | CB28: 0 | CC28: 0 | CD28: 0 | CE28: 0 | CF28: 0 | CG28: 0 | CH28: 0 | CI28: 0 | CJ28: 0 | CK28: 0 | CL28: 0 | CM28: 0 | CN28: 0
A29: 22 | B29: 930098JB | C29: Naomi Bosmans | D29: Joy'S Wish C. | E29: B | F29: Nunspeetse Ruiterclub, RV. | G29: 4 | H29: 68.5 | I29: 7.0 | M29: 22 | N29: 22 | O29: 8 | P29: 65.0 | Q29: 6.5 | U29: 32 | V29: 32 | W29: 0 | X29: 60.0 | Y29: 6.0 | AC29: 18 | AD29: 18 | BC29: 72 | BD29: =IF($O$4>0,(LARGE(($N29,$V29,$AD29,$AL29,$AT29,$BB29),1)),"0") -> 32 | BE29: 40 | BK29: 4 | BL29: 68.5 | BM29: 0 | BN29: 0 | BO29: 4 | BP29: 8 | BQ29: 65 | BR29: 0 | BS29: 0 | BT29: 8 | BU29: 0 | BV29: 60 | BW29: 0 | BX29: 0 | BY29: 0 | BZ29: 0 | CA29: 0 | CB29: 0 | CC29: 0 | CD29: 0 | CE29: 0 | CF29: 0 | CG29: 0 | CH29: 0 | CI29: 0 | CJ29: 0 | CK29: 0 | CL29: 0 | CM29: 0 | CN29: 0
A30: 23 | B30: 877895CG | C30: Antoinet Berkhoff - Garrits | D30: Statiegeld | E30: B | F30: WWNA, RV. | G30: 4 | H30: 67.5 | I30: 6.5 | M30: 25 | N30: 25 | O30: 0 | P30: 68.0 | Q30: 6.5 | U30: 16 | V30: 16 | AD30: 99 | BC30: 140 | BD30: =IF($O$4>0,(LARGE(($N30,$V30,$AD30,$AL30,$AT30,$BB30),1)),"0") -> 99 | BE30: 41 | BK30: 4 | BL30: 67.5 | BM30: 0 | BN30: 0 | BO30: 4 | BP30: 0 | BQ30: 68 | BR30: 0 | BS30: 0 | BT30: 0 | BU30: 0 | BV30: 0 | BW30: 0 | BX30: 0 | BY30: 0 | BZ30: 0 | CA30: 0 | CB30: 0 | CC30: 0 | CD30: 0 | CE30: 0 | CF30: 0 | CG30: 0 | CH30: 0 | CI30: 0 | CJ30: 0 | CK30: 0 | CL30: 0 | CM30: 0 | CN30: 0
A31: 24 | B31: 925001KS | C31: Madison Schuite | D31: Kingmar V.S. | E31: B | F31: Epe, RV. HV. | G31: 4 | H31: 68.0 | I31: 6.5 | M31: 24 | N31: 24 | O31: 4 | P31: 70.0 | Q31: 7.0 | U31: 24 | V31: 24 | AD31: 99 | BC31: 147 | BD31: =IF($O$4>0,(LARGE(($N31,$V31,$AD31,$AL31,$AT31,$BB31),1)),"0") -> 99 | BE31: 48 | BK31: 4 | BL31: 68 | BM31: 0 | BN31: 0 | BO31: 4 | BP31: 4 | BQ31: 70 | BR31: 0 | BS31: 0 | BT31: 4 | BU31: 0 | BV31: 0 | BW31: 0 | BX31: 0 | BY31: 0 | BZ31: 0 | CA31: 0 | CB31: 0 | CC31: 0 | CD31: 0 | CE31: 0 | CF31: 0 | CG31: 0 | CH31: 0 | CI31: 0 | CJ31: 0 | CK31: 0 | CL31: 0 | CM31: 0 | CN31: 0
A32: 25 | B32: 935588HL | C32: Tess Lubbring | D32: Huub | E32: B | F32: Flevoruiters, RV. | N32: 99 | O32: 4 | P32: 63.0 | Q32: 6.0 | U32: 28 | V32: 28 | W32: 4 | X32: 71.0 | Y32: 7.0 | AC32: 21 | AD32: 21 | BC32: 148 | BD32: =IF($O$4>0,(LARGE(($N32,$V32,$AD32,$AL32,$AT32,$BB32),1)),"0") -> 99 | BE32: 49 | BK32: 0 | BL32: 0 | BM32: 0 | BN32: 0 | BO32: 0 | BP32: 4 | BQ32: 63 | BR32: 0 | BS32: 0 | BT32: 4 | BU32: 4 | BV32: 71 | BW32: 0 | BX32: 0 | BY32: 4 | BZ32: 0 | CA32: 0 | CB32: 0 | CC32: 0 | CD32: 0 | CE32: 0 | CF32: 0 | CG32: 0 | CH32: 0 | CI32: 0 | CJ32: 0 | CK32: 0 | CL32: 0 | CM32: 0 | CN32: 0
A33: 26 | B33: 818676CM | C33: Janique Moelee | D33: Canyon Sayori | E33: B | F33: Schaapskooiruiters, RV. | G33: 4 | H33: 68.0 | I33: 7.0 | M33: 23 | N33: 23 | O33: 8 | P33: 68.0 | Q33: 6.5 | U33: 31 | V33: 31 | AD33: 99 | BC33: 153 | BD33: =IF($O$4>0,(LARGE(($N33,$V33,$AD33,$AL33,$AT33,$BB33),1)),"0") -> 99 | BE33: 54 | BK33: 4 | BL33: 68 | BM33: 0 | BN33: 0 | BO33: 4 | BP33: 8 | BQ33: 68 | BR33: 0 | BS33: 0 | BT33: 8 | BU33: 0 | BV33: 0 | BW33: 0 | BX33: 0 | BY33: 0 | BZ33: 0 | CA33: 0 | CB33: 0 | CC33: 0 | CD33: 0 | CE33: 0 | CF33: 0 | CG33: 0 | CH33: 0 | CI33: 0 | CJ33: 0 | CK33: 0 | CL33: 0 | CM33: 0 | CN33: 0
A34: 27 | B34: 927923DP | C34: Aimee Paauwe | D34: Destiny | E34: B | F34: Epe, RV. HV. | G34: 12 | H34: 70.5 | I34: 7.0 | M34: 29 | N34: 29 | O34: 4 | P34: 65.0 | Q34: 6.5 | U34: 27 | V34: 27 | AD34: 99 | BC34: 155 | BD34: =IF($O$4>0,(LARGE(($N34,$V34,$AD34,$AL34,$AT34,$BB34),1)),"0") -> 99 | BE34: 56 | BK34: 12 | BL34: 70.5 | BM34: 0 | BN34: 0 | BO34: 12 | BP34: 4 | BQ34: 65 | BR34: 0 | BS34: 0 | BT34: 4 | BU34: 0 | BV34: 0 | BW34: 0 | BX34: 0 | BY34: 0 | BZ34: 0 | CA34: 0 | CB34: 0 | CC34: 0 | CD34: 0 | CE34: 0 | CF34: 0 | CG34: 0 | CH34: 0 | CI34: 0 | CJ34: 0 | CK34: 0 | CL34: 0 | CM34: 0 | CN34: 0
A35: 28 | B35: 921293JT | C35: Lynn Van Tienderen | D35: Jackie | E35: B | F35: Flevoruiters, RV. | N35: 99 | O35: 23 | P35: 65.0 | Q35: 6.5 | U35: 34 | V35: 34 | W35: 6 | X35: 71.0 | Y35: 7.0 | AC35: 23 | AD35: 23 | BC35: 156 | BD35: =IF($O$4>0,(LARGE(($N35,$V35,$AD35,$AL35,$AT35,$BB35),1)),"0") -> 99 | BE35: 57 | BK35: 0 | BL35: 0 | BM35: 0 | BN35: 0 | BO35: 0 | BP35: 23 | BQ35: 65 | BR35: 0 | BS35: 0 | BT35: 23 | BU35: 6 | BV35: 71 | BW35: 0 | BX35: 0 | BY35: 6 | BZ35: 0 | CA35: 0 | CB35: 0 | CC35: 0 | CD35: 0 | CE35: 0 | CF35: 0 | CG35: 0 | CH35: 0 | CI35: 0 | CJ35: 0 | CK35: 0 | CL35: 0 | CM35: 0 | CN35: 0
A36: 29 | B36: 919486ZH | C36: Marit Hoekstra | D36: Zaliene | E36: B | F36: Flevoruiters, RV. | G36: 0 | H36: 85.0 | I36: 8.5 | M36: 2 | N36: 2 | V36: 99 | AD36: 99 | BC36: 200 | BD36: =IF($O$4>0,(LARGE(($N36,$V36,$AD36,$AL36,$AT36,$BB36),1)),"0") -> 99 | BE36: 101 | BK36: 0 | BL36: 85 | BM36: 0 | BN36: 0 | BO36: 0 | BP36: 0 | BQ36: 0 | BR36: 0 | BS36: 0 | BT36: 0 | BU36: 0 | BV36: 0 | BW36: 0 | BX36: 0 | BY36: 0 | BZ36: 0 | CA36: 0 | CB36: 0 | CC36: 0 | CD36: 0 | CE36: 0 | CF36: 0 | CG36: 0 | CH36: 0 | CI36: 0 | CJ36: 0 | CK36: 0 | CL36: 0 | CM36: 0 | CN36: 0
A37: 30 | B37: 941381MN | C37: Jantien Naber | D37: Madagaskar | F37: Flevoruiters, RV. | N37: 99 | V37: 99 | W37: 0 | X37: 77.5 | Y37: 7.5 | AC37: 4 | AD37: 4 | BC37: 202 | BD37: =IF($O$4>0,(LARGE(($N37,$V37,$AD37,$AL37,$AT37,$BB37),1)),"0") -> 99 | BE37: 103 | BK37: 0 | BL37: 0 | BM37: 0 | BN37: 0 | BO37: 0 | BP37: 0 | BQ37: 0 | BR37: 0 | BS37: 0 | BT37: 0 | BU37: 0 | BV37: 77.5 | BW37: 0 | BX37: 0 | BY37: 0 | BZ37: 0 | CA37: 0 | CB37: 0 | CC37: 0 | CD37: 0 | CE37: 0 | CF37: 0 | CG37: 0 | CH37: 0 | CI37: 0 | CJ37: 0 | CK37: 0 | CL37: 0 | CM37: 0 | CN37: 0
A38: 31 | B38: 929727MK | C38: Alies Kruidhof | D38: Muduela | E38: B | F38: Heuvelruiters, RV. | G38: 4 | H38: 75.0 | I38: 7.0 | M38: 18 | N38: 18 | O38: Uit12 | V38: 90 | AD38: 99 | BC38: 207 | BD38: =IF($O$4>0,(LARGE(($N38,$V38,$AD38,$AL38,$AT38,$BB38),1)),"0") -> 99 | BE38: 108 | BK38: 4 | BL38: 75 | BM38: 0 | BN38: 0 | BO38: 4 | BP38: 199 | BQ38: 0 | BR38: 0 | BS38: 0 | BT38: 199 | BU38: 0 | BV38: 0 | BW38: 0 | BX38: 0 | BY38: 0 | BZ38: 0 | CA38: 0 | CB38: 0 | CC38: 0 | CD38: 0 | CE38: 0 | CF38: 0 | CG38: 0 | CH38: 0 | CI38: 0 | CJ38: 0 | CK38: 0 | CL38: 0 | CM38: 0 | CN38: 0
A39: 32 | B39: 935037MH | C39: Marjon van de Heijkant | D39: Mona Lisa | F39: Flevoruiters, RV. | N39: 99 | V39: 99 | W39: 0 | X39: 70.0 | Y39: 7.0 | AC39: 11 | AD39: 11 | BC39: 209 | BD39: =IF($O$4>0,(LARGE(($N39,$V39,$AD39,$AL39,$AT39,$BB39),1)),"0") -> 99 | BE39: 110 | BK39: 0 | BL39: 0 | BM39: 0 | BN39: 0 | BO39: 0 | BP39: 0 | BQ39: 0 | BR39: 0 | BS39: 0 | BT39: 0 | BU39: 0 | BV39: 70 | BW39: 0 | BX39: 0 | BY39: 0 | BZ39: 0 | CA39: 0 | CB39: 0 | CC39: 0 | CD39: 0 | CE39: 0 | CF39: 0 | CG39: 0 | CH39: 0 | CI39: 0 | CJ39: 0 | CK39: 0 | CL39: 0 | CM39: 0 | CN39: 0
A40: 33 | B40: 925939QH | C40: Carlien Hanraerts | D40: Quick Mail van de Tol | F40: Randmeerruiters, RV. De | N40: 99 | V40: 99 | W40: 0 | X40: 67.5 | Y40: 6.5 | AC40: 15 | AD40: 15 | BC40: 213 | BD40: =IF($O$4>0,(LARGE(($N40,$V40,$AD40,$AL40,$AT40,$BB40),1)),"0") -> 99 | BE40: 114 | BK40: 0 | BL40: 0 | BM40: 0 | BN40: 0 | BO40: 0 | BP40: 0 | BQ40: 0 | BR40: 0 | BS40: 0 | BT40: 0 | BU40: 0 | BV40: 67.5 | BW40: 0 | BX40: 0 | BY40: 0 | BZ40: 0 | CA40: 0 | CB40: 0 | CC40: 0 | CD40: 0 | CE40: 0 | CF40: 0 | CG40: 0 | CH40: 0 | CI40: 0 | CJ40: 0 | CK40: 0 | CL40: 0 | CM40: 0 | CN40: 0
A41: 34 | B41: 910490JF | C41: Lindsey Foppen | D41: Jane-Strona | E41: B | F41: Randmeerruiters, RV. De | G41: 4 | H41: 70.5 | I41: 6.5 | M41: 20 | N41: 20 | V41: 99 | AD41: 99 | BC41: =N41+V41+AD41+AL41+AT41+BB41 -> 218 | BD41: =IF($O$4>0,(LARGE(($N41,$V41,$AD41,$AL41,$AT41,$BB41),1)),"0") -> 99 | BE41: =BC41-BD41 -> 119 | BK41: =IF(G41>99,199,G41) -> 4 | BL41: =IF(H41="",0,H41) -> 70.5 | BM41: =IF(J41>99,199,J41) -> 0 | BN41: =IF(K41="",0,K41) -> 0 | BO41: =BK41+BM41 -> 4 | BP41: =IF(O41>99,199,O41) -> 0 | BQ41: =IF(P41="",0,P41) -> 0 | BR41: =IF(R41>99,199,R41) -> 0 | BS41: =IF(S41="",0,S41) -> 0 | BT41: =BP41+BR41 -> 0 | BU41: =IF(W41>99,199,W41) -> 0 | BV41: =IF(X41="",0,X41) -> 0 | BW41: =IF(Z41>99,199,Z41) -> 0 | BX41: =IF(AA41="",0,AA41) -> 0 | BY41: =BU41+BW41 -> 0 | BZ41: =IF(AE41>99,199,AE41) -> 0 | CA41: =IF(AF41="",0,AF41) -> 0 | CB41: =IF(AH41>99,199,AH41) -> 0 | CC41: =IF(AI41="",0,AI41) -> 0 | CD41: =BZ41+CB41 -> 0 | CE41: =IF(AM41>99,199,AM41) -> 0 | CF41: =IF(AN41="",0,AN41) -> 0 | CG41: =IF(AP41>99,199,AP41) -> 0 | CH41: =IF(AQ41="",0,AQ41) -> 0 | CI41: =CE41+CG41 -> 0 | CJ41: =IF(AU41>99,199,AU41) -> 0 | CK41: =IF(AV41="",0,AV41) -> 0 | CL41: =IF(AX41>99,199,AX41) -> 0 | CM41: =IF(AY41="",0,AY41) -> 0 | CN41: =CJ41+CL41 -> 0
A42: 35 | B42: 937837ZM | C42: Shanice Marasli | D42: Zamiro | E42: B | F42: Randmeerruiters, RV. De | G42: 4 | H42: 70.0 | I42: 7.0 | M42: 21 | N42: 21 | V42: 99 | AD42: 99 | BC42: 219 | BD42: =IF($O$4>0,(LARGE(($N42,$V42,$AD42,$AL42,$AT42,$BB42),1)),"0") -> 99 | BE42: 120 | BK42: 4 | BL42: 70 | BM42: 0 | BN42: 0 | BO42: 4 | BP42: 0 | BQ42: 0 | BR42: 0 | BS42: 0 | BT42: 0 | BU42: 0 | BV42: 0 | BW42: 0 | BX42: 0 | BY42: 0 | BZ42: 0 | CA42: 0 | CB42: 0 | CC42: 0 | CD42: 0 | CE42: 0 | CF42: 0 | CG42: 0 | CH42: 0 | CI42: 0 | CJ42: 0 | CK42: 0 | CL42: 0 | CM42: 0 | CN42: 0
A43: 36 | B43: 940345MF | C43: Femke Franken | D43: M Baliaretto | E43: B | F43: Randmeerruiters, RV. De | N43: 99 | O43: 4 | P43: 75.0 | Q43: 7.5 | U43: 23 | V43: 23 | AD43: 99 | BC43: 221 | BD43: =IF($O$4>0,(LARGE(($N43,$V43,$AD43,$AL43,$AT43,$BB43),1)),"0") -> 99 | BE43: 122 | BK43: 0 | BL43: 0 | BM43: 0 | BN43: 0 | BO43: 0 | BP43: 4 | BQ43: 75 | BR43: 0 | BS43: 0 | BT43: 4 | BU43: 0 | BV43: 0 | BW43: 0 | BX43: 0 | BY43: 0 | BZ43: 0 | CA43: 0 | CB43: 0 | CC43: 0 | CD43: 0 | CE43: 0 | CF43: 0 | CG43: 0 | CH43: 0 | CI43: 0 | CJ43: 0 | CK43: 0 | CL43: 0 | CM43: 0 | CN43: 0
A44: 37 | B44: 944807UH | C44: Babette Hanse | D44: Unreal Sejh | E44: B | F44: Flevoruiters, RV. | N44: 99 | V44: 99 | W44: 7 | X44: 72.5 | Y44: 7.0 | AC44: 24 | AD44: 24 | BC44: 222 | BD44: =IF($O$4>0,(LARGE(($N44,$V44,$AD44,$AL44,$AT44,$BB44),1)),"0") -> 99 | BE44: 123 | BK44: 0 | BL44: 0 | BM44: 0 | BN44: 0 | BO44: 0 | BP44: 0 | BQ44: 0 | BR44: 0 | BS44: 0 | BT44: 0 | BU44: 7 | BV44: 72.5 | BW44: 0 | BX44: 0 | BY44: 7 | BZ44: 0 | CA44: 0 | CB44: 0 | CC44: 0 | CD44: 0 | CE44: 0 | CF44: 0 | CG44: 0 | CH44: 0 | CI44: 0 | CJ44: 0 | CK44: 0 | CL44: 0 | CM44: 0 | CN44: 0
A45: 38 | B45: 910280JB | C45: Karlijn Van den Burg | D45: Julony | E45: B | F45: Flevoruiters, RV. | N45: 99 | O45: 4 | P45: 67.5 | Q45: 6.5 | U45: 25 | V45: 25 | AD45: 99 | BC45: 223 | BD45: =IF($O$4>0,(LARGE(($N45,$V45,$AD45,$AL45,$AT45,$BB45),1)),"0") -> 99 | BE45: 124 | BK45: 0 | BL45: 0 | BM45: 0 | BN45: 0 | BO45: 0 | BP45: 4 | BQ45: 67.5 | BR45: 0 | BS45: 0 | BT45: 4 | BU45: 0 | BV45: 0 | BW45: 0 | BX45: 0 | BY45: 0 | BZ45: 0 | CA45: 0 | CB45: 0 | CC45: 0 | CD45: 0 | CE45: 0 | CF45: 0 | CG45: 0 | CH45: 0 | CI45: 0 | CJ45: 0 | CK45: 0 | CL45: 0 | CM45: 0 | CN45: 0
A46: 39 | B46: 824172DM | C46: Jeanne Meijer | D46: Double Coloured Cato | F46: Heuvelruiters, RV. | N46: 99 | V46: 99 | W46: 15 | X46: 75.0 | Y46: 7.5 | AC46: 26 | AD46: 26 | BC46: 224 | BD46: =IF($O$4>0,(LARGE(($N46,$V46,$AD46,$AL46,$AT46,$BB46),1)),"0") -> 99 | BE46: 125 | BK46: 0 | BL46: 0 | BM46: 0 | BN46: 0 | BO46: 0 | BP46: 0 | BQ46: 0 | BR46: 0 | BS46: 0 | BT46: 0 | BU46: 15 | BV46: 75 | BW46: 0 | BX46: 0 | BY46: 15 | BZ46: 0 | CA46: 0 | CB46: 0 | CC46: 0 | CD46: 0 | CE46: 0 | CF46: 0 | CG46: 0 | CH46: 0 | CI46: 0 | CJ46: 0 | CK46: 0 | CL46: 0 | CM46: 0 | CN46: 0
A47: 40 | B47: 942203SH | C47: Babette Hanse | D47: Socrate de L'oustalet | E47: B | F47: Flevoruiters, RV. | N47: 99 | O47: 4 | P47: 66.0 | Q47: 6.5 | U47: 26 | V47: 26 | AD47: 99 | BC47: 224 | BD47: =IF($O$4>0,(LARGE(($N47,$V47,$AD47,$AL47,$AT47,$BB47),1)),"0") -> 99 | BE47: 125 | BK47: 0 | BL47: 0 | BM47: 0 | BN47: 0 | BO47: 0 | BP47: 4 | BQ47: 66 | BR47: 0 | BS47: 0 | BT47: 4 | BU47: 0 | BV47: 0 | BW47: 0 | BX47: 0 | BY47: 0 | BZ47: 0 | CA47: 0 | CB47: 0 | CC47: 0 | CD47: 0 | CE47: 0 | CF47: 0 | CG47: 0 | CH47: 0 | CI47: 0 | CJ47: 0 | CK47: 0 | CL47: 0 | CM47: 0 | CN47: 0
A48: 41 | B48: 914014LR | C48: Tess de Ree | D48: Liszt D | E48: B | F48: Marleruiters, RV. | G48: 4 | H48: 66.0 | I48: 6.5 | M48: 27 | N48: 27 | V48: 99 | AD48: 99 | BC48: 225 | BD48: =IF($O$4>0,(LARGE(($N48,$V48,$AD48,$AL48,$AT48,$BB48),1)),"0") -> 99 | BE48: 126 | BK48: 4 | BL48: 66 | BM48: 0 | BN48: 0 | BO48: 4 | BP48: 0 | BQ48: 0 | BR48: 0 | BS48: 0 | BT48: 0 | BU48: 0 | BV48: 0 | BW48: 0 | BX48: 0 | BY48: 0 | BZ48: 0 | CA48: 0 | CB48: 0 | CC48: 0 | CD48: 0 | CE48: 0 | CF48: 0 | CG48: 0 | CH48: 0 | CI48: 0 | CJ48: 0 | CK48: 0 | CL48: 0 | CM48: 0 | CN48: 0
A49: 42 | B49: 898867KK | C49: Larissa Kleijn | D49: Kyralineke | E49: B | F49: Cannenburgh, RV. HV. De | N49: 99 | O49: 7 | P49: 60.5 | Q49: 6.0 | U49: 29 | V49: 29 | AD49: 99 | BC49: 227 | BD49: =IF($O$4>0,(LARGE(($N49,$V49,$AD49,$AL49,$AT49,$BB49),1)),"0") -> 99 | BE49: 128 | BK49: 0 | BL49: 0 | BM49: 0 | BN49: 0 | BO49: 0 | BP49: 7 | BQ49: 60.5 | BR49: 0 | BS49: 0 | BT49: 7 | BU49: 0 | BV49: 0 | BW49: 0 | BX49: 0 | BY49: 0 | BZ49: 0 | CA49: 0 | CB49: 0 | CC49: 0 | CD49: 0 | CE49: 0 | CF49: 0 | CG49: 0 | CH49: 0 | CI49: 0 | CJ49: 0 | CK49: 0 | CL49: 0 | CM49: 0 | CN49: 0
A50: 43 | B50: 906118BP | C50: Iris Pluim | D50: Brown Beauty | E50: B | F50: WWNA, RV. | N50: 99 | O50: 8 | P50: 65.0 | Q50: 6.5 | U50: 32 | V50: 32 | AD50: 99 | BC50: 230 | BD50: =IF($O$4>0,(LARGE(($N50,$V50,$AD50,$AL50,$AT50,$BB50),1)),"0") -> 99 | BE50: 131 | BK50: 0 | BL50: 0 | BM50: 0 | BN50: 0 | BO50: 0 | BP50: 8 | BQ50: 65 | BR50: 0 | BS50: 0 | BT50: 8 | BU50: 0 | BV50: 0 | BW50: 0 | BX50: 0 | BY50: 0 | BZ50: 0 | CA50: 0 | CB50: 0 | CC50: 0 | CD50: 0 | CE50: 0 | CF50: 0 | CG50: 0 | CH50: 0 | CI50: 0 | CJ50: 0 | CK50: 0 | CL50: 0 | CM50: 0 | CN50: 0
A51: 44 | B51: 942898MB | C51: Olivia Braaksma | D51: Magnaat | F51: Heuvelruiters, RV. | N51: 99 | V51: 99 | W51: Uit11 | AD51: 90 | BC51: 288 | BD51: =IF($O$4>0,(LARGE(($N51,$V51,$AD51,$AL51,$AT51,$BB51),1)),"0") -> 99 | BE51: 189 | BK51: 0 | BL51: 0 | BM51: 0 | BN51: 0 | BO51: 0 | BP51: 0 | BQ51: 0 | BR51: 0 | BS51: 0 | BT51: 0 | BU51: 199 | BV51: 0 | BW51: 0 | BX51: 0 | BY51: 199 | BZ51: 0 | CA51: 0 | CB51: 0 | CC51: 0 | CD51: 0 | CE51: 0 | CF51: 0 | CG51: 0 | CH51: 0 | CI51: 0 | CJ51: 0 | CK51: 0 | CL51: 0 | CM51: 0 | CN51: 0
A52: 45 | B52: 918384EF | C52: Rosa Foppen | D52: Elena | E52: B | F52: Flevoruiters, RV. | G52: Uit2 | N52: 90 | V52: 99 | AD52: 99 | BC52: 288 | BD52: =IF($O$4>0,(LARGE(($N52,$V52,$AD52,$AL52,$AT52,$BB52),1)),"0") -> 99 | BE52: 189 | BK52: 199 | BL52: 0 | BM52: 0 | BN52: 0 | BO52: 199 | BP52: 0 | BQ52: 0 | BR52: 0 | BS52: 0 | BT52: 0 | BU52: 0 | BV52: 0 | BW52: 0 | BX52: 0 | BY52: 0 | BZ52: 0 | CA52: 0 | CB52: 0 | CC52: 0 | CD52: 0 | CE52: 0 | CF52: 0 | CG52: 0 | CH52: 0 | CI52: 0 | CJ52: 0 | CK52: 0 | CL52: 0 | CM52: 0 | CN52: 0
A53: 10 | B53: 934767MF | C53: Kees Frederiks | D53: Mell | E53: B | F53: Flevoruiters, RV. | G53: 4 | H53: 75.0 | I53: 7.0 | M53: 18 | N53: 99 | O53: 4 | P53: 77.5 | Q53: 7.5 | U53: 22 | V53: 99 | W53: 0 | X53: 76.5 | Y53: 7.0 | AC53: 5 | AD53: 99 | BC53: 297 | BD53: =IF($O$4>0,(LARGE(($N53,$V53,$AD53,$AL53,$AT53,$BB53),1)),"0") -> 99 | BE53: 198 | BI53: Flexibel L | BK53: 4 | BL53: 75 | BM53: 0 | BN53: 0 | BO53: 4 | BP53: 4 | BQ53: 77.5 | BR53: 0 | BS53: 0 | BT53: 4 | BU53: 0 | BV53: 76.5 | BW53: 0 | BX53: 0 | BY53: 0 | BZ53: 0 | CA53: 0 | CB53: 0 | CC53: 0 | CD53: 0 | CE53: 0 | CF53: 0 | CG53: 0 | CH53: 0 | CI53: 0 | CJ53: 0 | CK53: 0 | CL53: 0 | CM53: 0 | CN53: 0
A54: 46 | B54: 873523JF | C54: Femke Franken | D54: Jiletto | E54: B | F54: Randmeerruiters, RV. De | N54: 99 | V54: 99 | W54: 0 | X54: 82.5 | Y54: 8.0 | AC54: 2 | AD54: 99 | BC54: 297 | BD54: =IF($O$4>0,(LARGE(($N54,$V54,$AD54,$AL54,$AT54,$BB54),1)),"0") -> 99 | BE54: 198 | BI54: Flexibel L | BK54: 0 | BL54: 0 | BM54: 0 | BN54: 0 | BO54: 0 | BP54: 0 | BQ54: 0 | BR54: 0 | BS54: 0 | BT54: 0 | BU54: 0 | BV54: 82.5 | BW54: 0 | BX54: 0 | BY54: 0 | BZ54: 0 | CA54: 0 | CB54: 0 | CC54: 0 | CD54: 0 | CE54: 0 | CF54: 0 | CG54: 0 | CH54: 0 | CI54: 0 | CJ54: 0 | CK54: 0 | CL54: 0 | CM54: 0 | CN54: 0
A55: 46 | B55: 939037KF | C55: Kees Frederiks | D55: Kandiamo | E55: B | F55: Flevoruiters, RV. | G55: 0 | H55: 75.5 | I55: 7.5 | M55: 5 | N55: 99 | V55: 99 | W55: 0 | X55: 74.5 | Y55: 7.0 | AC55: 7 | AD55: 99 | BC55: 297 | BD55: =IF($O$4>0,(LARGE(($N55,$V55,$AD55,$AL55,$AT55,$BB55),1)),"0") -> 99 | BE55: 198 | BI55: Flexibel L | BK55: 0 | BL55: 75.5 | BM55: 0 | BN55: 0 | BO55: 0 | BP55: 0 | BQ55: 0 | BR55: 0 | BS55: 0 | BT55: 0 | BU55: 0 | BV55: 74.5 | BW55: 0 | BX55: 0 | BY55: 0 | BZ55: 0 | CA55: 0 | CB55: 0 | CC55: 0 | CD55: 0 | CE55: 0 | CF55: 0 | CG55: 0 | CH55: 0 | CI55: 0 | CJ55: 0 | CK55: 0 | CL55: 0 | CM55: 0 | CN55: 0
A56: 46 | B56: 918811KH | C56: Dyanne Van 't Hul | D56: Kokonut H | E56: B | F56: Heuvelruiters, RV. | G56: 0 | H56: 76.5 | I56: 7.0 | M56: 4 | N56: 99 | O56: 0 | P56: 70.5 | Q56: 7.0 | U56: 11 | V56: 99 | W56: 0 | X56: 74.0 | Y56: 7.0 | AC56: 8 | AD56: 99 | BC56: 297 | BD56: =IF($O$4>0,(LARGE(($N56,$V56,$AD56,$AL56,$AT56,$BB56),1)),"0") -> 99 | BE56: 198 | BI56: Flexibel L | BK56: 0 | BL56: 76.5 | BM56: 0 | BN56: 0 | BO56: 0 | BP56: 0 | BQ56: 70.5 | BR56: 0 | BS56: 0 | BT56: 0 | BU56: 0 | BV56: 74 | BW56: 0 | BX56: 0 | BY56: 0 | BZ56: 0 | CA56: 0 | CB56: 0 | CC56: 0 | CD56: 0 | CE56: 0 | CF56: 0 | CG56: 0 | CH56: 0 | CI56: 0 | CJ56: 0 | CK56: 0 | CL56: 0 | CM56: 0 | CN56: 0
A57: 46 | B57: 893434CH | C57: Senna Hoekert | D57: Camara Z | F57: Nunspeetse Ruiterclub, RV. | N57: 99 | V57: 99 | W57: 10 | X57: 65.0 | Y57: 6.0 | AC57: 25 | AD57: 99 | BC57: 297 | BD57: =IF($O$4>0,(LARGE(($N57,$V57,$AD57,$AL57,$AT57,$BB57),1)),"0") -> 99 | BE57: 198 | BI57: Flexibel L | BK57: 0 | BL57: 0 | BM57: 0 | BN57: 0 | BO57: 0 | BP57: 0 | BQ57: 0 | BR57: 0 | BS57: 0 | BT57: 0 | BU57: 10 | BV57: 65 | BW57: 0 | BX57: 0 | BY57: 10 | BZ57: 0 | CA57: 0 | CB57: 0 | CC57: 0 | CD57: 0 | CE57: 0 | CF57: 0 | CG57: 0 | CH57: 0 | CI57: 0 | CJ57: 0 | CK57: 0 | CL57: 0 | CM57: 0 | CN57: 0
A58: 46 | B58: 855360HB | C58: Joanne Beelen | D58: Hover h | E58: B | F58: Randmeerruiters, RV. De | G58: 0 | H58: 67.5 | I58: 6.5 | M58: 11 | N58: 99 | V58: 99 | AD58: 99 | BC58: 297 | BD58: =IF($O$4>0,(LARGE(($N58,$V58,$AD58,$AL58,$AT58,$BB58),1)),"0") -> 99 | BE58: 198 | BI58: Flexibel L | BK58: 0 | BL58: 67.5 | BM58: 0 | BN58: 0 | BO58: 0 | BP58: 0 | BQ58: 0 | BR58: 0 | BS58: 0 | BT58: 0 | BU58: 0 | BV58: 0 | BW58: 0 | BX58: 0 | BY58: 0 | BZ58: 0 | CA58: 0 | CB58: 0 | CC58: 0 | CD58: 0 | CE58: 0 | CF58: 0 | CG58: 0 | CH58: 0 | CI58: 0 | CJ58: 0 | CK58: 0 | CL58: 0 | CM58: 0 | CN58: 0
A59: 46 | B59: 919307LD | C59: Elise Deurwaarder | D59: Ladyvona | E59: B | F59: Flevoruiters, RV. | G59: 4 | H59: 77.5 | I59: 7.5 | M59: 14 | N59: 99 | V59: 99 | AD59: 99 | BC59: 297 | BD59: =IF($O$4>0,(LARGE(($N59,$V59,$AD59,$AL59,$AT59,$BB59),1)),"0") -> 99 | BE59: 198 | BI59: Flexibel L | BK59: 4 | BL59: 77.5 | BM59: 0 | BN59: 0 | BO59: 4 | BP59: 0 | BQ59: 0 | BR59: 0 | BS59: 0 | BT59: 0 | BU59: 0 | BV59: 0 | BW59: 0 | BX59: 0 | BY59: 0 | BZ59: 0 | CA59: 0 | CB59: 0 | CC59: 0 | CD59: 0 | CE59: 0 | CF59: 0 | CG59: 0 | CH59: 0 | CI59: 0 | CJ59: 0 | CK59: 0 | CL59: 0 | CM59: 0 | CN59: 0
A60: 46 | B60: 811441IK | C60: Caroline Veluwenkamp-Kragt | D60: Indigo | F60: Heuvelruiters, RV. | N60: 99 | V60: 99 | AD60: 99 | BC60: 297 | BD60: =IF($O$4>0,(LARGE(($N60,$V60,$AD60,$AL60,$AT60,$BB60),1)),"0") -> 99 | BE60: 198 | BK60: 0 | BL60: 0 | BM60: 0 | BN60: 0 | BO60: 0 | BP60: 0 | BQ60: 0 | BR60: 0 | BS60: 0 | BT60: 0 | BU60: 0 | BV60: 0 | BW60: 0 | BX60: 0 | BY60: 0 | BZ60: 0 | CA60: 0 | CB60: 0 | CC60: 0 | CD60: 0 | CE60: 0 | CF60: 0 | CG60: 0 | CH60: 0 | CI60: 0 | CJ60: 0 | CK60: 0 | CL60: 0 | CM60: 0 | CN60: 0

Sheet L
A1: Selectie uitslagen
N2: 1 | V2: 2 | AD2: 3 | AL2: 4 | AT2: 5 | BB2: 6 | BC2: =N2+V2+AD2+AL2+AT2+BB2 -> 21 | BD2: =IF($O$4>0,(LARGE(($N2,$V2,$AD2,$AL2,$AT2,$BB2),1)),"0") -> 6 | BE2: =BC2-BD2 -> 15 | BF2: =IF($O$4>1,(LARGE(($N2,$V2,$AD2,$AL2,$AT2,$BB2),1))+(LARGE(($N2,$V2,$AD2,$AL2,$AT2,$BB2),2)),"0") -> 0 | BK2: =IF(G2>99,199,G2) -> 0 | BL2: =IF(H2>99,0,H2) -> 0 | BM2: =IF(J2>99,199,J2) -> 0 | BN2: =IF(K2>99,0,K2) -> 0 | BO2: =BK2+BM2 -> 0 | BP2: =IF(O2>99,199,O2) -> 0 | BQ2: =IF(P2>99,0,P2) -> 0 | BR2: =IF(R2>99,199,R2) -> 0 | BS2: =IF(S2>99,0,S2) -> 0 | BT2: =BP2+BR2 -> 0 | BU2: =IF(W2>99,199,W2) -> 0 | BV2: =IF(X2>99,0,X2) -> 0 | BW2: =IF(Z2>99,199,Z2) -> 0 | BX2: =IF(AA2>99,0,AA2) -> 0 | BY2: =BU2+BW2 -> 0 | BZ2: =IF(AE2>99,199,AE2) -> 0 | CA2: =IF(AF2>99,0,AF2) -> 0 | CB2: =IF(AH2>99,199,AH2) -> 0 | CC2: =IF(AI2>99,0,AI2) -> 0 | CD2: =BZ2+CB2 -> 0 | CE2: =IF(AM2>99,199,AM2) -> 0 | CF2: =IF(AN2>99,0,AN2) -> 0 | CG2: =IF(AP2>99,199,AP2) -> 0 | CH2: =IF(AQ2>99,0,AQ2) -> 0 | CI2: =CE2+CG2 -> 0 | CJ2: =IF(AU2>99,199,AU2) -> 0 | CK2: =IF(AV2>99,0,AV2) -> 0 | CL2: =IF(AX2>99,199,AX2) -> 0 | CM2: =IF(AY2>99,0,AY2) -> 0 | CN2: =CJ2+CL2 -> 0
A3: Kring: | C3: =Instellingen!B3 -> Kring NVF | F3: Aantal afvaardiging Regio: | O3: 10 | BC3: Aantal wedstrijden: | BG3: =Instellingen!B6 -> 3
A4: Klasse: | C4: L | F4: Aantal afval resultaten: | O4: =Instellingen!B7 -> 1
A5: Cat.: | F5: Plaatsingspunten niet gestart: | O5: =Instellingen!B5 -> 99 | BC5: Aantal reserves: | BG5: 3
F6: Lokatie: | G6: =Instellingen!B40 -> Hierden | O6: =Instellingen!B41 -> Nunspeet | W6: =Instellingen!B42 -> Wezep | AE6: =Instellingen!B43 ->  | AM6: =Instellingen!B44 ->  | AU6: =Instellingen!B45 ->  | BC6: Springen
F7: Datum: | G7: =Instellingen!C40 -> 20 nov 2021 | O7: =Instellingen!C41 -> 11 dec 2021 | W7: =Instellingen!C42 -> 05 feb 2021 | AE7: =Instellingen!C43 ->  | AM7: =Instellingen!C44 ->  | AU7: =Instellingen!C45 ->  | BC7: Tot. | BD7: afval | BE7: Beste
A8: Pl. | B8: Comb.nr. | C8: Ruiter/amazone | D8: Paard/pony | E8: kl. | F8: vereniging | G8: ftn1 | H8: tijd1 | I8: wvr1 | J8: ftn2 | K8: tijd2 | L8: wvr2 | M8: pl. | N8: pl.p. | O8: ftn1 | P8: tijd1 | Q8: wvr1 | R8: ftn2 | S8: tijd2 | T8: wvr2 | U8: pl. | V8: pl.p. | W8: ftn1 | X8: tijd1 | Y8: wvr1 | Z8: ftn2 | AA8: tijd2 | AB8: wvr2 | AC8: pl. | AD8: pl.p. | AE8: ftn1 | AF8: tijd1 | AG8: wvr1 | AH8: ftn2 | AI8: tijd2 | AJ8: wvr2 | AK8: pl. | AL8: pl.p. | AM8: ftn1 | AN8: tijd1 | AO8: wvr1 | AP8: ftn2 | AQ8: tijd2 | AR8: wvr2 | AS8: pl. | AT8: pl.p. | AU8: ftn1 | AV8: tijd1 | AW8: wvr1 | AX8: ftn2 | AY8: tijd2 | AZ8: wvr2 | BA8: pl. | BB8: pl.p. | BC8: pl.pnt | BD8: pl.pnt | BE8: pl.pnt | BF8: Afv. | BG8: Res. | BH8: Afv. Regio | BI8: opmerking | BK8: ftn1 1e | BL8: styl1 1e | BM8: ftn2 1e | BN8: styl2 1e bar. | BO8: 1e tot ftn | BP8: ftn1 2e | BQ8: styl1 2e | BR8: ftn2 2e | BS8: styl2 2e bar. | BT8: 2e tot ftn | BU8: ftn1 3e | BV8: styl1 3e | BW8: ftn2 3e | BX8: styl2 3e bar. | BY8: 3e tot ftn | BZ8: ftn1 4e | CA8: styl1 4e | CB8: ftn2 4e | CC8: styl2 4e bar. | CD8: 4e tot ftn | CE8: ftn1 5e | CF8: styl1 5e | CG8: ftn2 5e | CH8: styl2 5e bar. | CI8: 5e tot ftn | CJ8: ftn1 6e | CK8: styl1 6e | CL8: ftn2 6e | CM8: styl2 6e bar. | CN8: 6e tot ftn
A9: 1 | B9: 930205BN | C9: Jantien Naber | D9: Barnadown B Lucky | E9: L | F9: Flevoruiters, RV. | G9: 0 | H9: 39.18 | J9: 0 | K9: 35.19 | M9: 1 | N9: 1 | O9: 0 | P9: 43.62 | R9: 0 | S9: 27.25 | U9: 2 | V9: 2 | W9: 0 | X9: 69.96 | Z9: 0 | AA9: 36.20 | AC9: 1 | AD9: 1 | BC9: =N9+V9+AD9+AL9+AT9+BB9 -> 4 | BD9: =IF($O$4>0,(LARGE(($N9,$V9,$AD9,$AL9,$AT9,$BB9),1)),"0") -> 2 | BE9: =BC9-BD9 -> 2 | BF9: 1 | BI9: Kring kampioen | BK9: =IF(G9>99,199,G9) -> 0 | BL9: =IF(H9>99,0,H9) -> 39.18 | BM9: =IF(J9>99,199,J9) -> 0 | BN9: =IF(K9>99,0,K9) -> 35.19 | BO9: =BK9+BM9 -> 0 | BP9: =IF(O9>99,199,O9) -> 0 | BQ9: =IF(P9>99,0,P9) -> 43.62 | BR9: =IF(R9>99,199,R9) -> 0 | BS9: =IF(S9>99,0,S9) -> 27.25 | BT9: =BP9+BR9 -> 0 | BU9: =IF(W9>99,199,W9) -> 0 | BV9: =IF(X9>99,0,X9) -> 69.96 | BW9: =IF(Z9>99,199,Z9) -> 0 | BX9: =IF(AA9>99,0,AA9) -> 36.2 | BY9: =BU9+BW9 -> 0 | BZ9: =IF(AE9>99,199,AE9) -> 0 | CA9: =IF(AF9>99,0,AF9) -> 0 | CB9: =IF(AH9>99,199,AH9) -> 0 | CC9: =IF(AI9>99,0,AI9) -> 0 | CD9: =BZ9+CB9 -> 0 | CE9: =IF(AM9>99,199,AM9) -> 0 | CF9: =IF(AN9>99,0,AN9) -> 0 | CG9: =IF(AP9>99,199,AP9) -> 0 | CH9: =IF(AQ9>99,0,AQ9) -> 0 | CI9: =CE9+CG9 -> 0 | CJ9: =IF(AU9>99,199,AU9) -> 0 | CK9: =IF(AV9>99,0,AV9) -> 0 | CL9: =IF(AX9>99,199,AX9) -> 0 | CM9: =IF(AY9>99,0,AY9) -> 0 | CN9: =CJ9+CL9 -> 0
A10: 2 | B10: 897952FW | C10: Joost Wolfs | D10: Flow | E10: L | F10: Nunspeetse Ruiterclub, RV. | G10: 0 | H10: 38.98 | J10: 0 | K10: 35.55 | M10: 2 | N10: 2 | O10: 0 | P10: 46.22 | R10: 0 | S10: 29.50 | U10: 5 | V10: 5 | W10: 0 | X10: 78.10 | Z10: 0 | AA10: 38.06 | AC10: 3 | AD10: 3 | BC10: 10 | BD10: =IF($O$4>0,(LARGE(($N10,$V10,$AD10,$AL10,$AT10,$BB10),1)),"0") -> 5 | BE10: 5 | BF10: 2 | BK10: 0 | BL10: 38.98 | BM10: 0 | BN10: 35.55 | BO10: 0 | BP10: 0 | BQ10: 46.22 | BR10: 0 | BS10: 29.5 | BT10: 0 | BU10: 0 | BV10: 78.1 | BW10: 0 | BX10: 38.06 | BY10: 0 | BZ10: 0 | CA10: 0 | CB10: 0 | CC10: 0 | CD10: 0 | CE10: 0 | CF10: 0 | CG10: 0 | CH10: 0 | CI10: 0 | CJ10: 0 | CK10: 0 | CL10: 0 | CM10: 0 | CN10: 0
A11: 3 | B11: 909460BB | C11: Susan Benedictus | D11: Exper | E11: L | F11: Flevoruiters, RV. | G11: 0 | H11: 39.74 | J11: 0 | K11: 36.45 | M11: 4 | N11: 4 | O11: 0 | P11: 47.42 | R11: 0 | S11: 27.89 | U11: 3 | V11: 3 | AD11: 99 | BC11: 106 | BD11: =IF($O$4>0,(LARGE(($N11,$V11,$AD11,$AL11,$AT11,$BB11),1)),"0") -> 99 | BE11: 7 | BF11: 3 | BK11: 0 | BL11: 39.74 | BM11: 0 | BN11: 36.45 | BO11: 0 | BP11: 0 | BQ11: 47.42 | BR11: 0 | BS11: 27.89 | BT11: 0 | BU11: 0 | BV11: 0 | BW11: 0 | BX11: 0 | BY11: 0 | BZ11: 0 | CA11: 0 | CB11: 0 | CC11: 0 | CD11: 0 | CE11: 0 | CF11: 0 | CG11: 0 | CH11: 0 | CI11: 0 | CJ11: 0 | CK11: 0 | CL11: 0 | CM11: 0 | CN11: 0
A12: 4 | B12: 935571KN | C12: Leida Naber | D12: Kyran | E12: L | F12: Flevoruiters, RV. | G12: 0 | H12: 41.71 | J12: 0 | K12: 37.83 | M12: 6 | N12: 6 | O12: 0 | P12: 49.26 | R12: 4 | S12: 29.12 | U12: 19 | V12: 19 | W12: 0 | X12: 73.42 | Z12: 0 | AA12: 36.65 | AC12: 2 | AD12: 2 | BC12: 27 | BD12: =IF($O$4>0,(LARGE(($N12,$V12,$AD12,$AL12,$AT12,$BB12),1)),"0") -> 19 | BE12: 8 | BF12: 4 | BK12: 0 | BL12: 41.71 | BM12: 0 | BN12: 37.83 | BO12: 0 | BP12: 0 | BQ12: 49.26 | BR12: 4 | BS12: 29.12 | BT12: 4 | BU12: 0 | BV12: 73.42 | BW12: 0 | BX12: 36.65 | BY12: 0 | BZ12: 0 | CA12: 0 | CB12: 0 | CC12: 0 | CD12: 0 | CE12: 0 | CF12: 0 | CG12: 0 | CH12: 0 | CI12: 0 | CJ12: 0 | CK12: 0 | CL12: 0 | CM12: 0 | CN12: 0
A13: 5 | B13: 809152CH | C13: Jasper Hanse | D13: Conner | E13: L | F13: Flevoruiters, RV. | G13: 7 | H13: 56.36 | J13: 1 | K13: 48.44 | M13: 26 | N13: 26 | O13: 0 | P13: 47.63 | R13: 0 | S13: 30.84 | U13: 7 | V13: 7 | W13: 0 | X13: 72.83 | Z13: 0 | AA13: 41.18 | AC13: 4 | AD13: 4 | BC13: 37 | BD13: =IF($O$4>0,(LARGE(($N13,$V13,$AD13,$AL13,$AT13,$BB13),1)),"0") -> 26 | BE13: 11 | BF13: 5 | BK13: 7 | BL13: 56.36 | BM13: 1 | BN13: 48.44 | BO13: 8 | BP13: 0 | BQ13: 47.63 | BR13: 0 | BS13: 30.84 | BT13: 0 | BU13: 0 | BV13: 72.83 | BW13: 0 | BX13: 41.18 | BY13: 0 | BZ13: 0 | CA13: 0 | CB13: 0 | CC13: 0 | CD13: 0 | CE13: 0 | CF13: 0 | CG13: 0 | CH13: 0 | CI13: 0 | CJ13: 0 | CK13: 0 | CL13: 0 | CM13: 0 | CN13: 0
A14: 6 | B14: 927245LH | C14: Arjan van den Heijkant | D14: Litmanen | E14: L | F14: Flevoruiters, RV. | G14: 0 | H14: 45.65 | J14: 0 | K14: 39.96 | M14: 7 | N14: 7 | O14: 0 | P14: 49.41 | R14: 4 | S14: 31.62 | U14: 22 | V14: 22 | W14: 0 | X14: 75.81 | Z14: 0 | AA14: 47.02 | AC14: 7 | AD14: 7 | BC14: 36 | BD14: =IF($O$4>0,(LARGE(($N14,$V14,$AD14,$AL14,$AT14,$BB14),1)),"0") -> 22 | BE14: 14 | BH14: nee | BI14: Start niet (Vakantie) | BK14: 0 | BL14: 45.65 | BM14: 0 | BN14: 39.96 | BO14: 0 | BP14: 0 | BQ14: 49.41 | BR14: 4 | BS14: 31.62 | BT14: 4 | BU14: 0 | BV14: 75.81 | BW14: 0 | BX14: 47.02 | BY14: 0 | BZ14: 0 | CA14: 0 | CB14: 0 | CC14: 0 | CD14: 0 | CE14: 0 | CF14: 0 | CG14: 0 | CH14: 0 | CI14: 0 | CJ14: 0 | CK14: 0 | CL14: 0 | CM14: 0 | CN14: 0
A15: 7 | B15: 920659MT | C15: Gerwilmer Ton | D15: Marillion V&V | E15: L | F15: Nunspeetse Ruiterclub, RV. | G15: 0 | H15: 44.36 | J15: 0 | K15: 41.50 | M15: 10 | N15: 10 | O15: 0 | P15: 51.48 | R15: 0 | S15: 30.71 | U15: 6 | V15: 6 | W15: 0 | X15: 77.30 | Z15: 4 | AA15: 42.15 | AC15: 9 | AD15: 9 | BC15: 25 | BD15: =IF($O$4>0,(LARGE(($N15,$V15,$AD15,$AL15,$AT15,$BB15),1)),"0") -> 10 | BE15: 15 | BF15: 6 | BK15: 0 | BL15: 44.36 | BM15: 0 | BN15: 41.5 | BO15: 0 | BP15: 0 | BQ15: 51.48 | BR15: 0 | BS15: 30.71 | BT15: 0 | BU15: 0 | BV15: 77.3 | BW15: 4 | BX15: 42.15 | BY15: 4 | BZ15: 0 | CA15: 0 | CB15: 0 | CC15: 0 | CD15: 0 | CE15: 0 | CF15: 0 | CG15: 0 | CH15: 0 | CI15: 0 | CJ15: 0 | CK15: 0 | CL15: 0 | CM15: 0 | CN15: 0
A16: 8 | B16: 923469LS | C16: Suzan Schurer | D16: Lord Of Cooper | E16: L | F16: Flevoruiters, RV. | G16: 0 | H16: 43.26 | J16: 1 | K16: 46.65 | M16: 16 | N16: 16 | O16: 0 | P16: 50.86 | R16: 0 | S16: 33.59 | U16: 13 | V16: 13 | W16: 0 | X16: 80.77 | Z16: 0 | AA16: 46.77 | AC16: 6 | AD16: 6 | BC16: 35 | BD16: =IF($O$4>0,(LARGE(($N16,$V16,$AD16,$AL16,$AT16,$BB16),1)),"0") -> 16 | BE16: 19 | BF16: 7 | BK16: 0 | BL16: 43.26 | BM16: 1 | BN16: 46.65 | BO16: 1 | BP16: 0 | BQ16: 50.86 | BR16: 0 | BS16: 33.59 | BT16: 0 | BU16: 0 | BV16: 80.77 | BW16: 0 | BX16: 46.77 | BY16: 0 | BZ16: 0 | CA16: 0 | CB16: 0 | CC16: 0 | CD16: 0 | CE16: 0 | CF16: 0 | CG16: 0 | CH16: 0 | CI16: 0 | CJ16: 0 | CK16: 0 | CL16: 0 | CM16: 0 | CN16: 0
A17: 9 | B17: 915987LB | C17: Edward Van den Bragt | D17: Lambada-s (res) | E17: L | F17: Hulshorst, RV. | G17: NG | N17: 99 | O17: 0 | P17: 49.60 | R17: 0 | S17: 29.18 | U17: 4 | V17: 4 | W17: 4 | X17: 80.22 | AC17: 17 | AD17: 17 | BC17: 120 | BD17: =IF($O$4>0,(LARGE(($N17,$V17,$AD17,$AL17,$AT17,$BB17),1)),"0") -> 99 | BE17: 21 | BF17: 8 | BK17: 199 | BL17: 0 | BM17: 0 | BN17: 0 | BO17: 199 | BP17: 0 | BQ17: 49.6 | BR17: 0 | BS17: 29.18 | BT17: 0 | BU17: 4 | BV17: 80.22 | BW17: 0 | BX17: 0 | BY17: 4 | BZ17: 0 | CA17: 0 | CB17: 0 | CC17: 0 | CD17: 0 | CE17: 0 | CF17: 0 | CG17: 0 | CH17: 0 | CI17: 0 | CJ17: 0 | CK17: 0 | CL17: 0 | CM17: 0 | CN17: 0
A18: 10 | B18: 922225MK | C18: Cristel Kalf | D18: Masterpiece | E18: L | F18: Heuvelruiters, RV. | G18: 0 | H18: 44.86 | J18: 0 | K18: 41.51 | M18: 11 | N18: 11 | O18: 0 | P18: 47.91 | R18: 0 | S18: 33.38 | U18: 12 | V18: 12 | AD18: 99 | BC18: 122 | BD18: =IF($O$4>0,(LARGE(($N18,$V18,$AD18,$AL18,$AT18,$BB18),1)),"0") -> 99 | BE18: 23 | BH18: nee | BI18: Start niet (Verkocht) | BK18: 0 | BL18: 44.86 | BM18: 0 | BN18: 41.51 | BO18: 0 | BP18: 0 | BQ18: 47.91 | BR18: 0 | BS18: 33.38 | BT18: 0 | BU18: 0 | BV18: 0 | BW18: 0 | BX18: 0 | BY18: 0 | BZ18: 0 | CA18: 0 | CB18: 0 | CC18: 0 | CD18: 0 | CE18: 0 | CF18: 0 | CG18: 0 | CH18: 0 | CI18: 0 | CJ18: 0 | CK18: 0 | CL18: 0 | CM18: 0 | CN18: 0
A19: 11 | B19: 826404IH | C19: Cynthia Huijgen | D19: Iando | E19: L | F19: Flevoruiters, RV. | G19: 0 | H19: 45.53 | J19: 0 | K19: 41.35 | M19: 9 | N19: 9 | O19: 4 | P19: 48.72 | R19: 0 | S19: 37.38 | U19: 30 | V19: 30 | W19: 4 | X19: 79.50 | AC19: 16 | AD19: 16 | BC19: 55 | BD19: =IF($O$4>0,(LARGE(($N19,$V19,$AD19,$AL19,$AT19,$BB19),1)),"0") -> 30 | BE19: 25 | BF19: 9 | BK19: 0 | BL19: 45.53 | BM19: 0 | BN19: 41.35 | BO19: 0 | BP19: 4 | BQ19: 48.72 | BR19: 0 | BS19: 37.38 | BT19: 4 | BU19: 4 | BV19: 79.5 | BW19: 0 | BX19: 0 | BY19: 4 | BZ19: 0 | CA19: 0 | CB19: 0 | CC19: 0 | CD19: 0 | CE19: 0 | CF19: 0 | CG19: 0 | CH19: 0 | CI19: 0 | CJ19: 0 | CK19: 0 | CL19: 0 | CM19: 0 | CN19: 0
A20: 12 | B20: 938233JB | C20: Susan Benedictus | D20: John Doe VDP | E20: L | F20: Flevoruiters, RV. | G20: 0 | H20: 40.77 | J20: 0 | K20: 37.79 | M20: 5 | N20: 5 | O20: 4 | P20: 50.97 | R20: 4 | S20: 38.15 | U20: 34 | V20: 34 | W20: 8 | X20: 73.98 | AC20: 21 | AD20: 21 | BC20: 60 | BD20: =IF($O$4>0,(LARGE(($N20,$V20,$AD20,$AL20,$AT20,$BB20),1)),"0") -> 34 | BE20: 26 | BF20: 10 | BK20: 0 | BL20: 40.77 | BM20: 0 | BN20: 37.79 | BO20: 0 | BP20: 4 | BQ20: 50.97 | BR20: 4 | BS20: 38.15 | BT20: 8 | BU20: 8 | BV20: 73.98 | BW20: 0 | BX20: 0 | BY20: 8 | BZ20: 0 | CA20: 0 | CB20: 0 | CC20: 0 | CD20: 0 | CE20: 0 | CF20: 0 | CG20: 0 | CH20: 0 | CI20: 0 | CJ20: 0 | CK20: 0 | CL20: 0 | CM20: 0 | CN20: 0
A21: 13 | B21: 893434CH | C21: Senna Hoekert | D21: Camara Z | E21: L | F21: Nunspeetse Ruiterclub, RV. | G21: Uit12 | N21: 90 | O21: 0 | P21: 44.98 | R21: 0 | S21: 34.84 | U21: 17 | V21: 17 | W21: 0 | X21: 78.31 | Z21: 4 | AA21: 43.16 | AC21: 10 | AD21: 10 | BC21: 117 | BD21: =IF($O$4>0,(LARGE(($N21,$V21,$AD21,$AL21,$AT21,$BB21),1)),"0") -> 90 | BE21: 27 | BG21: 1 | BK21: 199 | BL21: 0 | BM21: 0 | BN21: 0 | BO21: 199 | BP21: 0 | BQ21: 44.98 | BR21: 0 | BS21: 34.84 | BT21: 0 | BU21: 0 | BV21: 78.31 | BW21: 4 | BX21: 43.16 | BY21: 4 | BZ21: 0 | CA21: 0 | CB21: 0 | CC21: 0 | CD21: 0 | CE21: 0 | CF21: 0 | CG21: 0 | CH21: 0 | CI21: 0 | CJ21: 0 | CK21: 0 | CL21: 0 | CM21: 0 | CN21: 0
A22: 14 | B22: 786179GW | C22: Corrie Stoker - De Wit | D22: Gufala | E22: L | F22: Flevoruiters, RV. | N22: 99 | O22: 0 | P22: 50.04 | R22: 0 | S22: 31.27 | U22: 8 | V22: 8 | W22: 6 | X22: 93.82 | AC22: 20 | AD22: 20 | BC22: 127 | BD22: =IF($O$4>0,(LARGE(($N22,$V22,$AD22,$AL22,$AT22,$BB22),1)),"0") -> 99 | BE22: 28 | BG22: 2 | BK22: 0 | BL22: 0 | BM22: 0 | BN22: 0 | BO22: 0 | BP22: 0 | BQ22: 50.04 | BR22: 0 | BS22: 31.27 | BT22: 0 | BU22: 6 | BV22: 93.82 | BW22: 0 | BX22: 0 | BY22: 6 | BZ22: 0 | CA22: 0 | CB22: 0 | CC22: 0 | CD22: 0 | CE22: 0 | CF22: 0 | CG22: 0 | CH22: 0 | CI22: 0 | CJ22: 0 | CK22: 0 | CL22: 0 | CM22: 0 | CN22: 0
A23: 15 | B23: 897995HH | C23: Thijs Ter Horst | D23: High Voltage | E23: L | F23: Nunspeetse Ruiterclub, RV. | G23: 0 | H23: 38.04 | J23: 0 | K23: 36.26 | M23: 3 | N23: 3 | O23: 4 | P23: 45.00 | R23: 0 | S23: 33.53 | U23: 25 | V23: 25 | W23: 20 | X23: 99.30 | AC23: 25 | AD23: 25 | BC23: 53 | BD23: =IF($O$4>0,(LARGE(($N23,$V23,$AD23,$AL23,$AT23,$BB23),1)),"0") -> 25 | BE23: 28 | BG23: 3 | BK23: 0 | BL23: 38.04 | BM23: 0 | BN23: 36.26 | BO23: 0 | BP23: 4 | BQ23: 45 | BR23: 0 | BS23: 33.53 | BT23: 4 | BU23: 20 | BV23: 0 | BW23: 0 | BX23: 0 | BY23: 20 | BZ23: 0 | CA23: 0 | CB23: 0 | CC23: 0 | CD23: 0 | CE23: 0 | CF23: 0 | CG23: 0 | CH23: 0 | CI23: 0 | CJ23: 0 | CK23: 0 | CL23: 0 | CM23: 0 | CN23: 0
A24: 16 | B24: 851239JD | C24: Sander Van Dijk | D24: Jascin | E24: L | F24: Flevoruiters, RV. | G24: 4 | H24: 45.56 | J24: Vrijw | M24: 40 | N24: 36 | O24: 0 | P24: 49.31 | R24: 0 | S24: 31.64 | U24: 9 | V24: 9 | W24: 8 | X24: 79.04 | AC24: 22 | AD24: 22 | BC24: 67 | BD24: =IF($O$4>0,(LARGE(($N24,$V24,$AD24,$AL24,$AT24,$BB24),1)),"0") -> 36 | BE24: 31 | BK24: 4 | BL24: 45.56 | BM24: 199 | BN24: 0 | BO24: 203 | BP24: 0 | BQ24: 49.31 | BR24: 0 | BS24: 31.64 | BT24: 0 | BU24: 8 | BV24: 79.04 | BW24: 0 | BX24: 0 | BY24: 8 | BZ24: 0 | CA24: 0 | CB24: 0 | CC24: 0 | CD24: 0 | CE24: 0 | CF24: 0 | CG24: 0 | CH24: 0 | CI24: 0 | CJ24: 0 | CK24: 0 | CL24: 0 | CM24: 0 | CN24: 0
A25: 17 | B25: 815572HF | C25: Paula Franken | D25: Hyacinth-scais | E25: L | F25: Randmeerruiters, RV. De | G25: 0 | H25: 42.05 | J25: 2 | K25: 49.45 | M25: 17 | N25: 17 | O25: 0 | P25: 48.38 | R25: 0 | S25: 33.94 | U25: 14 | V25: 14 | W25: Uit2 | AD25: 90 | BC25: 121 | BD25: =IF($O$4>0,(LARGE(($N25,$V25,$AD25,$AL25,$AT25,$BB25),1)),"0") -> 90 | BE25: 31 | BK25: 0 | BL25: 42.05 | BM25: 2 | BN25: 49.45 | BO25: 2 | BP25: 0 | BQ25: 48.38 | BR25: 0 | BS25: 33.94 | BT25: 0 | BU25: 199 | BV25: 0 | BW25: 0 | BX25: 0 | BY25: 199 | BZ25: 0 | CA25: 0 | CB25: 0 | CC25: 0 | CD25: 0 | CE25: 0 | CF25: 0 | CG25: 0 | CH25: 0 | CI25: 0 | CJ25: 0 | CK25: 0 | CL25: 0 | CM25: 0 | CN25: 0
A26: 18 | B26: 873523JF | C26: Femke Franken | D26: Jiletto | E26: L | F26: Randmeerruiters, RV. De | G26: 0 | H26: 42.78 | J26: 0 | K26: 40.88 | M26: 8 | N26: 8 | O26: 4 | P26: 50.79 | R26: 0 | S26: 37.01 | U26: 29 | V26: 29 | W26: 12 | X26: 99.36 | AC26: 24 | AD26: 24 | BC26: 61 | BD26: =IF($O$4>0,(LARGE(($N26,$V26,$AD26,$AL26,$AT26,$BB26),1)),"0") -> 29 | BE26: 32 | BK26: 0 | BL26: 42.78 | BM26: 0 | BN26: 40.88 | BO26: 0 | BP26: 4 | BQ26: 50.79 | BR26: 0 | BS26: 37.01 | BT26: 4 | BU26: 12 | BV26: 0 | BW26: 0 | BX26: 0 | BY26: 12 | BZ26: 0 | CA26: 0 | CB26: 0 | CC26: 0 | CD26: 0 | CE26: 0 | CF26: 0 | CG26: 0 | CH26: 0 | CI26: 0 | CJ26: 0 | CK26: 0 | CL26: 0 | CM26: 0 | CN26: 0
A27: 19 | B27: 918811KH | C27: Dyanne Van 't Hul | D27: Kokonut H | E27: L | F27: Heuvelruiters, RV. | G27: 0 | H27: 41.59 | J27: 2 | K27: 50.97 | M27: 18 | N27: 18 | O27: 0 | P27: 48.40 | R27: 0 | S27: 34.50 | U27: 15 | V27: 15 | W27: Vrijw. | AD27: 90 | BC27: 123 | BD27: =IF($O$4>0,(LARGE(($N27,$V27,$AD27,$AL27,$AT27,$BB27),1)),"0") -> 90 | BE27: 33 | BK27: 0 | BL27: 41.59 | BM27: 2 | BN27: 50.97 | BO27: 2 | BP27: 0 | BQ27: 48.4 | BR27: 0 | BS27: 34.5 | BT27: 0 | BU27: 199 | BV27: 0 | BW27: 0 | BX27: 0 | BY27: 199 | BZ27: 0 | CA27: 0 | CB27: 0 | CC27: 0 | CD27: 0 | CE27: 0 | CF27: 0 | CG27: 0 | CH27: 0 | CI27: 0 | CJ27: 0 | CK27: 0 | CL27: 0 | CM27: 0 | CN27: 0
A28: 20 | B28: 922228MK | C28: Cristel Kalf | D28: Maximus VDL | E28: L | F28: Heuvelruiters, RV. | G28: 4 | H28: 46.48 | J28: 2 | K28: 50.13 | M28: 23 | N28: 23 | O28: 0 | P28: 50.08 | R28: 0 | S28: 31.78 | U28: 10 | V28: 10 | AD28: 99 | BC28: 132 | BD28: =IF($O$4>0,(LARGE(($N28,$V28,$AD28,$AL28,$AT28,$BB28),1)),"0") -> 99 | BE28: 33 | BK28: 4 | BL28: 46.48 | BM28: 2 | BN28: 50.13 | BO28: 6 | BP28: 0 | BQ28: 50.08 | BR28: 0 | BS28: 31.78 | BT28: 0 | BU28: 0 | BV28: 0 | BW28: 0 | BX28: 0 | BY28: 0 | BZ28: 0 | CA28: 0 | CB28: 0 | CC28: 0 | CD28: 0 | CE28: 0 | CF28: 0 | CG28: 0 | CH28: 0 | CI28: 0 | CJ28: 0 | CK28: 0 | CL28: 0 | CM28: 0 | CN28: 0
A29: 21 | B29: 922138GN | C29: Leida Naber | D29: Ginko de Hus | E29: L | F29: Flevoruiters, RV. | G29: 8 | H29: 41.67 | J29: 0 | K29: 43.26 | M29: 25 | N29: 25 | O29: 4 | P29: 47.55 | R29: 4 | S29: 30.88 | U29: 32 | V29: 32 | W29: 0 | X29: 74.92 | Z29: 4 | AA29: 44.49 | AC29: 11 | AD29: 11 | BC29: 68 | BD29: =IF($O$4>0,(LARGE(($N29,$V29,$AD29,$AL29,$AT29,$BB29),1)),"0") -> 32 | BE29: 36 | BK29: 8 | BL29: 41.67 | BM29: 0 | BN29: 43.26 | BO29: 8 | BP29: 4 | BQ29: 47.55 | BR29: 4 | BS29: 30.88 | BT29: 8 | BU29: 0 | BV29: 74.92 | BW29: 4 | BX29: 44.49 | BY29: 4 | BZ29: 0 | CA29: 0 | CB29: 0 | CC29: 0 | CD29: 0 | CE29: 0 | CF29: 0 | CG29: 0 | CH29: 0 | CI29: 0 | CJ29: 0 | CK29: 0 | CL29: 0 | CM29: 0 | CN29: 0
A30: 22 | B30: 908910JF | C30: Kees Frederiks | D30: J' Adore La Reine | E30: L | F30: Flevoruiters, RV. | G30: 24 | H30: 94.78 | J30: 0 | K30: 42.39 | M30: 28 | N30: 28 | O30: 4 | P30: 47.29 | R30: 0 | S30: 34.83 | U30: 26 | V30: 26 | W30: 4 | X30: 72.16 | AC30: 12 | AD30: 12 | BC30: 66 | BD30: =IF($O$4>0,(LARGE(($N30,$V30,$AD30,$AL30,$AT30,$BB30),1)),"0") -> 28 | BE30: 38 | BK30: 24 | BL30: 94.78 | BM30: 0 | BN30: 42.39 | BO30: 24 | BP30: 4 | BQ30: 47.29 | BR30: 0 | BS30: 34.83 | BT30: 4 | BU30: 4 | BV30: 72.16 | BW30: 0 | BX30: 0 | BY30: 4 | BZ30: 0 | CA30: 0 | CB30: 0 | CC30: 0 | CD30: 0 | CE30: 0 | CF30: 0 | CG30: 0 | CH30: 0 | CI30: 0 | CJ30: 0 | CK30: 0 | CL30: 0 | CM30: 0 | CN30: 0
A31: 23 | B31: 843079IG | C31: Yda Van Gastel | D31: Ina | E31: L | F31: Flevoruiters, RV. | G31: 4 | H31: 42.28 | J31: 0 | K31: 41.12 | M31: 19 | N31: 19 | O31: 0 | P31: 50.41 | R31: 4 | S31: 32.23 | U31: 24 | V31: 24 | AD31: 99 | BC31: 142 | BD31: =IF($O$4>0,(LARGE(($N31,$V31,$AD31,$AL31,$AT31,$BB31),1)),"0") -> 99 | BE31: 43 | BK31: 4 | BL31: 42.28 | BM31: 0 | BN31: 41.12 | BO31: 4 | BP31: 0 | BQ31: 50.41 | BR31: 4 | BS31: 32.23 | BT31: 4 | BU31: 0 | BV31: 0 | BW31: 0 | BX31: 0 | BY31: 0 | BZ31: 0 | CA31: 0 | CB31: 0 | CC31: 0 | CD31: 0 | CE31: 0 | CF31: 0 | CG31: 0 | CH31: 0 | CI31: 0 | CJ31: 0 | CK31: 0 | CL31: 0 | CM31: 0 | CN31: 0
A32: 24 | B32: 866080IA | C32: Danielle Akster | D32: Idolieni | E32: L | F32: Nunspeetse Ruiterclub, RV. | G32: 8 | H32: 43.80 | J32: 23 | K32: 69.25 | M32: 29 | N32: 29 | O32: 0 | P32: 49.04 | R32: Uit2 | U32: 35 | V32: 35 | AD32: 99 | BC32: 163 | BD32: =IF($O$4>0,(LARGE(($N32,$V32,$AD32,$AL32,$AT32,$BB32),1)),"0") -> 99 | BE32: 64 | BK32: 8 | BL32: 43.8 | BM32: 23 | BN32: 69.25 | BO32: 31 | BP32: 0 | BQ32: 49.04 | BR32: 199 | BS32: 0 | BT32: 199 | BU32: 0 | BV32: 0 | BW32: 0 | BX32: 0 | BY32: 0 | BZ32: 0 | CA32: 0 | CB32: 0 | CC32: 0 | CD32: 0 | CE32: 0 | CF32: 0 | CG32: 0 | CH32: 0 | CI32: 0 | CJ32: 0 | CK32: 0 | CL32: 0 | CM32: 0 | CN32: 0
A33: 25 | B33: 942116AV | C33: Bethany Vos | D33: Asterix | E33: L | F33: Heuvelruiters, RV. | N33: 99 | O33: 0 | P33: 46.84 | R33: 0 | S33: 27.19 | U33: 1 | V33: 1 | AD33: 99 | BC33: 199 | BD33: =IF($O$4>0,(LARGE(($N33,$V33,$AD33,$AL33,$AT33,$BB33),1)),"0") -> 99 | BE33: 100 | BK33: 0 | BL33: 0 | BM33: 0 | BN33: 0 | BO33: 0 | BP33: 0 | BQ33: 46.84 | BR33: 0 | BS33: 27.19 | BT33: 0 | BU33: 0 | BV33: 0 | BW33: 0 | BX33: 0 | BY33: 0 | BZ33: 0 | CA33: 0 | CB33: 0 | CC33: 0 | CD33: 0 | CE33: 0 | CF33: 0 | CG33: 0 | CH33: 0 | CI33: 0 | CJ33: 0 | CK33: 0 | CL33: 0 | CM33: 0 | CN33: 0
A34: 26 | B34: 944301CT | C34: Gerwilmer Ton | D34: Catina-k van 't kattenheye Z | E34: L | F34: Nunspeetse Ruiterclub, RV. | N34: 99 | V34: 99 | W34: 0 | X34: 78.19 | Z34: 0 | AA34: 46.26 | AC34: 5 | AD34: 5 | BC34: 203 | BD34: =IF($O$4>0,(LARGE(($N34,$V34,$AD34,$AL34,$AT34,$BB34),1)),"0") -> 99 | BE34: 104 | BK34: 0 | BL34: 0 | BM34: 0 | BN34: 0 | BO34: 0 | BP34: 0 | BQ34: 0 | BR34: 0 | BS34: 0 | BT34: 0 | BU34: 0 | BV34: 78.19 | BW34: 0 | BX34: 46.26 | BY34: 0 | BZ34: 0 | CA34: 0 | CB34: 0 | CC34: 0 | CD34: 0 | CE34: 0 | CF34: 0 | CG34: 0 | CH34: 0 | CI34: 0 | CJ34: 0 | CK34: 0 | CL34: 0 | CM34: 0 | CN34: 0
A35: 27 | B35: 939037KF | C35: Kees Frederiks | D35: Kandiamo | F35: Flevoruiters, RV. | N35: 99 | V35: 99 | W35: 0 | X35: 74.70 | Z35: 1 | AA35: 54.21 | AC35: 8 | AD35: 8 | BC35: 206 | BD35: =IF($O$4>0,(LARGE(($N35,$V35,$AD35,$AL35,$AT35,$BB35),1)),"0") -> 99 | BE35: 107 | BK35: 0 | BL35: 0 | BM35: 0 | BN35: 0 | BO35: 0 | BP35: 0 | BQ35: 0 | BR35: 0 | BS35: 0 | BT35: 0 | BU35: 0 | BV35: 74.7 | BW35: 1 | BX35: 54.21 | BY35: 1 | BZ35: 0 | CA35: 0 | CB35: 0 | CC35: 0 | CD35: 0 | CE35: 0 | CF35: 0 | CG35: 0 | CH35: 0 | CI35: 0 | CJ35: 0 | CK35: 0 | CL35: 0 | CM35: 0 | CN35: 0
A36: 28 | B36: 909460BB | C36: Susan Benedictus | D36: Exper | F36: Flevoruiters, RV. | N36: 99 | V36: 99 | W36: 4 | X36: 74.64 | AC36: 14 | AD36: 14 | BC36: 212 | BD36: =IF($O$4>0,(LARGE(($N36,$V36,$AD36,$AL36,$AT36,$BB36),1)),"0") -> 99 | BE36: 113 | BK36: 0 | BL36: 0 | BM36: 0 | BN36: 0 | BO36: 0 | BP36: 0 | BQ36: 0 | BR36: 0 | BS36: 0 | BT36: 0 | BU36: 4 | BV36: 74.64 | BW36: 0 | BX36: 0 | BY36: 4 | BZ36: 0 | CA36: 0 | CB36: 0 | CC36: 0 | CD36: 0 | CE36: 0 | CF36: 0 | CG36: 0 | CH36: 0 | CI36: 0 | CJ36: 0 | CK36: 0 | CL36: 0 | CM36: 0 | CN36: 0
A37: 29 | B37: 905301KN | C37: Ymre Nijkamp | D37: Kialve | F37: Schaapskooiruiters, RV | N37: 99 | V37: 99 | W37: 4 | X37: 78.86 | AC37: 15 | AD37: 15 | BC37: 213 | BD37: =IF($O$4>0,(LARGE(($N37,$V37,$AD37,$AL37,$AT37,$BB37),1)),"0") -> 99 | BE37: 114 | BK37: 0 | BL37: 0 | BM37: 0 | BN37: 0 | BO37: 0 | BP37: 0 | BQ37: 0 | BR37: 0 | BS37: 0 | BT37: 0 | BU37: 4 | BV37: 78.86 | BW37: 0 | BX37: 0 | BY37: 4 | BZ37: 0 | CA37: 0 | CB37: 0 | CC37: 0 | CD37: 0 | CE37: 0 | CF37: 0 | CG37: 0 | CH37: 0 | CI37: 0 | CJ37: 0 | CK37: 0 | CL37: 0 | CM37: 0 | CN37: 0
A38: 30 | B38: 937063JK | C38: Anne Klein | D38: Jakarta Z | E38: L | F38: Heuvelruiters, RV. | G38: 1 | H38: 48.35 | J38: 0 | K38: 41.45 | M38: 15 | N38: 15 | V38: 99 | AD38: 99 | BC38: 213 | BD38: =IF($O$4>0,(LARGE(($N38,$V38,$AD38,$AL38,$AT38,$BB38),1)),"0") -> 99 | BE38: 114 | BK38: 1 | BL38: 48.35 | BM38: 0 | BN38: 41.45 | BO38: 1 | BP38: 0 | BQ38: 0 | BR38: 0 | BS38: 0 | BT38: 0 | BU38: 0 | BV38: 0 | BW38: 0 | BX38: 0 | BY38: 0 | BZ38: 0 | CA38: 0 | CB38: 0 | CC38: 0 | CD38: 0 | CE38: 0 | CF38: 0 | CG38: 0 | CH38: 0 | CI38: 0 | CJ38: 0 | CK38: 0 | CL38: 0 | CM38: 0 | CN38: 0
A39: 31 | B39: 881994KB | C39: Edward Van den Bragt | D39: Koert-S | F39: Hulshorst, RV. | N39: 99 | V39: 99 | W39: 4 | X39: 82.09 | AC39: 19 | AD39: 19 | BC39: 217 | BD39: =IF($O$4>0,(LARGE(($N39,$V39,$AD39,$AL39,$AT39,$BB39),1)),"0") -> 99 | BE39: 118 | BK39: 0 | BL39: 0 | BM39: 0 | BN39: 0 | BO39: 0 | BP39: 0 | BQ39: 0 | BR39: 0 | BS39: 0 | BT39: 0 | BU39: 4 | BV39: 82.09 | BW39: 0 | BX39: 0 | BY39: 4 | BZ39: 0 | CA39: 0 | CB39: 0 | CC39: 0 | CD39: 0 | CE39: 0 | CF39: 0 | CG39: 0 | CH39: 0 | CI39: 0 | CJ39: 0 | CK39: 0 | CL39: 0 | CM39: 0 | CN39: 0
A40: 32 | B40: 919307LD | C40: Elise Deurwaarder | D40: Ladyvona | E40: L | F40: Flevoruiters, RV. | G40: 4 | H40: 43.03 | J40: 0 | K40: 42.37 | M40: 20 | N40: 20 | V40: 99 | AD40: 99 | BC40: 218 | BD40: =IF($O$4>0,(LARGE(($N40,$V40,$AD40,$AL40,$AT40,$BB40),1)),"0") -> 99 | BE40: 119 | BK40: 4 | BL40: 43.03 | BM40: 0 | BN40: 42.37 | BO40: 4 | BP40: 0 | BQ40: 0 | BR40: 0 | BS40: 0 | BT40: 0 | BU40: 0 | BV40: 0 | BW40: 0 | BX40: 0 | BY40: 0 | BZ40: 0 | CA40: 0 | CB40: 0 | CC40: 0 | CD40: 0 | CE40: 0 | CF40: 0 | CG40: 0 | CH40: 0 | CI40: 0 | CJ40: 0 | CK40: 0 | CL40: 0 | CM40: 0 | CN40: 0
A41: 33 | B41: 900280KB | C41: Edward Van den Bragt | D41: Kherna | E41: L | F41: Hulshorst, RV. | G41: NG | N41: 99 | O41: 0 | P41: 45.75 | R41: 4 | S41: 31.29 | U41: 21 | V41: 21 | AD41: 99 | BC41: =N41+V41+AD41+AL41+AT41+BB41 -> 219 | BD41: =IF($O$4>0,(LARGE(($N41,$V41,$AD41,$AL41,$AT41,$BB41),1)),"0") -> 99 | BE41: =BC41-BD41 -> 120 | BK41: =IF(G41>99,199,G41) -> 199 | BL41: =IF(H41>99,0,H41) -> 0 | BM41: =IF(J41>99,199,J41) -> 0 | BN41: =IF(K41>99,0,K41) -> 0 | BO41: =BK41+BM41 -> 199 | BP41: =IF(O41>99,199,O41) -> 0 | BQ41: =IF(P41>99,0,P41) -> 45.75 | BR41: =IF(R41>99,199,R41) -> 4 | BS41: =IF(S41>99,0,S41) -> 31.29 | BT41: =BP41+BR41 -> 4 | BU41: =IF(W41>99,199,W41) -> 0 | BV41: =IF(X41>99,0,X41) -> 0 | BW41: =IF(Z41>99,199,Z41) -> 0 | BX41: =IF(AA41>99,0,AA41) -> 0 | BY41: =BU41+BW41 -> 0 | BZ41: =IF(AE41>99,199,AE41) -> 0 | CA41: =IF(AF41>99,0,AF41) -> 0 | CB41: =IF(AH41>99,199,AH41) -> 0 | CC41: =IF(AI41>99,0,AI41) -> 0 | CD41: =BZ41+CB41 -> 0 | CE41: =IF(AM41>99,199,AM41) -> 0 | CF41: =IF(AN41>99,0,AN41) -> 0 | CG41: =IF(AP41>99,199,AP41) -> 0 | CH41: =IF(AQ41>99,0,AQ41) -> 0 | CI41: =CE41+CG41 -> 0 | CJ41: =IF(AU41>99,199,AU41) -> 0 | CK41: =IF(AV41>99,0,AV41) -> 0 | CL41: =IF(AX41>99,199,AX41) -> 0 | CM41: =IF(AY41>99,0,AY41) -> 0 | CN41: =CJ41+CL41 -> 0
A42: 33 | B42: 932348KB | C42: Linda Beekhoven | D42: Kiletto | E42: L | F42: Maverick Stables | G42: 4 | H42: 43.97 | J42: 0 | K42: 42.88 | M42: 21 | N42: 21 | V42: 99 | AD42: 99 | BC42: 219 | BD42: =IF($O$4>0,(LARGE(($N42,$V42,$AD42,$AL42,$AT42,$BB42),1)),"0") -> 99 | BE42: 120 | BK42: 4 | BL42: 43.97 | BM42: 0 | BN42: 42.88 | BO42: 4 | BP42: 0 | BQ42: 0 | BR42: 0 | BS42: 0 | BT42: 0 | BU42: 0 | BV42: 0 | BW42: 0 | BX42: 0 | BY42: 0 | BZ42: 0 | CA42: 0 | CB42: 0 | CC42: 0 | CD42: 0 | CE42: 0 | CF42: 0 | CG42: 0 | CH42: 0 | CI42: 0 | CJ42: 0 | CK42: 0 | CL42: 0 | CM42: 0 | CN42: 0
A43: 35 | B43: 929784MH | C43: Harmen Hoksbergen | D43: Mario BN | E43: L | F43: Heuvelruiters, RV. | G43: Vrijw | N43: 90 | O43: 8 | P43: 51.03 | R43: 0 | S43: 36.81 | U43: 33 | V43: 33 | AD43: 99 | BC43: 222 | BD43: =IF($O$4>0,(LARGE(($N43,$V43,$AD43,$AL43,$AT43,$BB43),1)),"0") -> 99 | BE43: 123 | BK43: 199 | BL43: 0 | BM43: 0 | BN43: 0 | BO43: 199 | BP43: 8 | BQ43: 51.03 | BR43: 0 | BS43: 36.81 | BT43: 8 | BU43: 0 | BV43: 0 | BW43: 0 | BX43: 0 | BY43: 0 | BZ43: 0 | CA43: 0 | CB43: 0 | CC43: 0 | CD43: 0 | CE43: 0 | CF43: 0 | CG43: 0 | CH43: 0 | CI43: 0 | CJ43: 0 | CK43: 0 | CL43: 0 | CM43: 0 | CN43: 0
A44: 36 | B44: 941388LT | C44: Gerwilmer Ton | D44: Luca Zirikit | E44: L | F44: Nunspeetse Ruiterclub, RV. | N44: 99 | O44: 4 | P44: 0.00 | R44: 0 | S44: 36.20 | U44: 27 | V44: 27 | AD44: 99 | BC44: 225 | BD44: =IF($O$4>0,(LARGE(($N44,$V44,$AD44,$AL44,$AT44,$BB44),1)),"0") -> 99 | BE44: 126 | BK44: 0 | BL44: 0 | BM44: 0 | BN44: 0 | BO44: 0 | BP44: 4 | BQ44: 0 | BR44: 0 | BS44: 36.2 | BT44: 4 | BU44: 0 | BV44: 0 | BW44: 0 | BX44: 0 | BY44: 0 | BZ44: 0 | CA44: 0 | CB44: 0 | CC44: 0 | CD44: 0 | CE44: 0 | CF44: 0 | CG44: 0 | CH44: 0 | CI44: 0 | CJ44: 0 | CK44: 0 | CL44: 0 | CM44: 0 | CN44: 0
A45: 36 | B45: 900428CB | C45: Jens Blonk | D45: Calvadoz Axel | E45: L | F45: Flevoruiters, RV. | G45: Uit2 | N45: 90 | O45: 11 | P45: 64.48 | R45: Uit2 | U45: 36 | V45: 36 | AD45: 99 | BC45: 225 | BD45: =IF($O$4>0,(LARGE(($N45,$V45,$AD45,$AL45,$AT45,$BB45),1)),"0") -> 99 | BE45: 126 | BK45: 199 | BL45: 0 | BM45: 0 | BN45: 0 | BO45: 199 | BP45: 11 | BQ45: 64.48 | BR45: 199 | BS45: 0 | BT45: 210 | BU45: 0 | BV45: 0 | BW45: 0 | BX45: 0 | BY45: 0 | BZ45: 0 | CA45: 0 | CB45: 0 | CC45: 0 | CD45: 0 | CE45: 0 | CF45: 0 | CG45: 0 | CH45: 0 | CI45: 0 | CJ45: 0 | CK45: 0 | CL45: 0 | CM45: 0 | CN45: 0
A46: 36 | B46: 855360HB | C46: Joanne Beelen | D46: Hover h | E46: L | F46: Randmeerruiters, RV. De | G46: 8 | H46: 38.03 | J46: 4 | K46: 38.32 | M46: 27 | N46: 27 | V46: 99 | AD46: 99 | BC46: 225 | BD46: =IF($O$4>0,(LARGE(($N46,$V46,$AD46,$AL46,$AT46,$BB46),1)),"0") -> 99 | BE46: 126 | BK46: 8 | BL46: 38.03 | BM46: 4 | BN46: 38.32 | BO46: 12 | BP46: 0 | BQ46: 0 | BR46: 0 | BS46: 0 | BT46: 0 | BU46: 0 | BV46: 0 | BW46: 0 | BX46: 0 | BY46: 0 | BZ46: 0 | CA46: 0 | CB46: 0 | CC46: 0 | CD46: 0 | CE46: 0 | CF46: 0 | CG46: 0 | CH46: 0 | CI46: 0 | CJ46: 0 | CK46: 0 | CL46: 0 | CM46: 0 | CN46: 0
A47: 39 | B47: 923688KK | C47: Larissa Kleijn | D47: Kennice S | E47: L | F47: Cannenburgh, RV. HV. De | N47: 99 | O47: 0 | P47: 54.06 | R47: 4 | S47: 36.57 | U47: 28 | V47: 28 | AD47: 99 | BC47: 226 | BD47: =IF($O$4>0,(LARGE(($N47,$V47,$AD47,$AL47,$AT47,$BB47),1)),"0") -> 99 | BE47: 127 | BK47: 0 | BL47: 0 | BM47: 0 | BN47: 0 | BO47: 0 | BP47: 0 | BQ47: 54.06 | BR47: 4 | BS47: 36.57 | BT47: 4 | BU47: 0 | BV47: 0 | BW47: 0 | BX47: 0 | BY47: 0 | BZ47: 0 | CA47: 0 | CB47: 0 | CC47: 0 | CD47: 0 | CE47: 0 | CF47: 0 | CG47: 0 | CH47: 0 | CI47: 0 | CJ47: 0 | CK47: 0 | CL47: 0 | CM47: 0 | CN47: 0
A48: 40 | B48: 937418DV | C48: Bethany Vos | D48: Dilithyia Vls | E48: L | F48: Heuvelruiters, RV. | N48: 99 | O48: 0 | P48: 49.14 | R48: 7 | S48: 51.55 | U48: 31 | V48: 31 | AD48: 99 | BC48: 229 | BD48: =IF($O$4>0,(LARGE(($N48,$V48,$AD48,$AL48,$AT48,$BB48),1)),"0") -> 99 | BE48: 130 | BK48: 0 | BL48: 0 | BM48: 0 | BN48: 0 | BO48: 0 | BP48: 0 | BQ48: 49.14 | BR48: 7 | BS48: 51.55 | BT48: 7 | BU48: 0 | BV48: 0 | BW48: 0 | BX48: 0 | BY48: 0 | BZ48: 0 | CA48: 0 | CB48: 0 | CC48: 0 | CD48: 0 | CE48: 0 | CF48: 0 | CG48: 0 | CH48: 0 | CI48: 0 | CJ48: 0 | CK48: 0 | CL48: 0 | CM48: 0 | CN48: 0
A49: 41 | B49: 907591KB | C49: Kirsten van de Berg | D49: Kanny-Fee | F49: Heuvelruiters, RV. | N49: 99 | V49: 99 | W49: Uit2 | AD49: 90 | BC49: 288 | BD49: =IF($O$4>0,(LARGE(($N49,$V49,$AD49,$AL49,$AT49,$BB49),1)),"0") -> 99 | BE49: 189 | BK49: 0 | BL49: 0 | BM49: 0 | BN49: 0 | BO49: 0 | BP49: 0 | BQ49: 0 | BR49: 0 | BS49: 0 | BT49: 0 | BU49: 199 | BV49: 0 | BW49: 0 | BX49: 0 | BY49: 199 | BZ49: 0 | CA49: 0 | CB49: 0 | CC49: 0 | CD49: 0 | CE49: 0 | CF49: 0 | CG49: 0 | CH49: 0 | CI49: 0 | CJ49: 0 | CK49: 0 | CL49: 0 | CM49: 0 | CN49: 0
A50: 42 | B50: 938366LK | C50: Anne Klein | D50: Last Best | E50: L | F50: Heuvelruiters, RV. | G50: Uit12 | N50: 90 | V50: 99 | AD50: 99 | BC50: 288 | BD50: =IF($O$4>0,(LARGE(($N50,$V50,$AD50,$AL50,$AT50,$BB50),1)),"0") -> 99 | BE50: 189 | BK50: 199 | BL50: 0 | BM50: 0 | BN50: 0 | BO50: 199 | BP50: 0 | BQ50: 0 | BR50: 0 | BS50: 0 | BT50: 0 | BU50: 0 | BV50: 0 | BW50: 0 | BX50: 0 | BY50: 0 | BZ50: 0 | CA50: 0 | CB50: 0 | CC50: 0 | CD50: 0 | CE50: 0 | CF50: 0 | CG50: 0 | CH50: 0 | CI50: 0 | CJ50: 0 | CK50: 0 | CL50: 0 | CM50: 0 | CN50: 0
A51: 43 | B51: 895991SH | C51: Maud Hanse | D51: Socrate de L'oustalet | E51: L | F51: Flevoruiters, RV. | G51: 0 | H51: 43.32 | J51: 8 | K51: 42.29 | M51: 24 | N51: 99 | V51: 99 | W51: 4 | X51: 73.22 | AC51: 13 | AD51: 99 | BC51: 297 | BD51: =IF($O$4>0,(LARGE(($N51,$V51,$AD51,$AL51,$AT51,$BB51),1)),"0") -> 99 | BE51: 198 | BI51: Flexibel M | BK51: 0 | BL51: 43.32 | BM51: 8 | BN51: 42.29 | BO51: 8 | BP51: 0 | BQ51: 0 | BR51: 0 | BS51: 0 | BT51: 0 | BU51: 4 | BV51: 73.22 | BW51: 0 | BX51: 0 | BY51: 4 | BZ51: 0 | CA51: 0 | CB51: 0 | CC51: 0 | CD51: 0 | CE51: 0 | CF51: 0 | CG51: 0 | CH51: 0 | CI51: 0 | CJ51: 0 | CK51: 0 | CL51: 0 | CM51: 0 | CN51: 0
A52: 43 | B52: 890122KK | C52: Anne Klein | D52: Kascarilla | E52: L | F52: Heuvelruiters, RV. | G52: 0 | H52: 42.60 | J52: 0 | K52: 42.77 | M52: 13 | N52: 99 | O52: 0 | P52: 51.10 | R52: 4 | S52: 31.66 | U52: 23 | V52: 99 | W52: 4 | X52: 81.08 | AC52: 18 | AD52: 99 | BC52: 297 | BD52: =IF($O$4>0,(LARGE(($N52,$V52,$AD52,$AL52,$AT52,$BB52),1)),"0") -> 99 | BE52: 198 | BI52: Flexibel M | BK52: 0 | BL52: 42.6 | BM52: 0 | BN52: 42.77 | BO52: 0 | BP52: 0 | BQ52: 51.1 | BR52: 4 | BS52: 31.66 | BT52: 4 | BU52: 4 | BV52: 81.08 | BW52: 0 | BX52: 0 | BY52: 4 | BZ52: 0 | CA52: 0 | CB52: 0 | CC52: 0 | CD52: 0 | CE52: 0 | CF52: 0 | CG52: 0 | CH52: 0 | CI52: 0 | CJ52: 0 | CK52: 0 | CL52: 0 | CM52: 0 | CN52: 0
A53: 43 | B53: 938867LK | C53: Cristel Kalf | D53: Comme Le Coeur | E53: L | F53: Heuvelruiters, RV. | G53: 0 | H53: 45.64 | J53: 0 | K53: 44.15 | M53: 14 | N53: 99 | O53: 0 | P53: 53.57 | R53: 0 | S53: 34.66 | U53: 16 | V53: 99 | W53: 9 | X53: 103.54 | AC53: 23 | AD53: 99 | BC53: 297 | BD53: =IF($O$4>0,(LARGE(($N53,$V53,$AD53,$AL53,$AT53,$BB53),1)),"0") -> 99 | BE53: 198 | BI53: Flexibel M | BK53: 0 | BL53: 45.64 | BM53: 0 | BN53: 44.15 | BO53: 0 | BP53: 0 | BQ53: 53.57 | BR53: 0 | BS53: 34.66 | BT53: 0 | BU53: 9 | BV53: 0 | BW53: 0 | BX53: 0 | BY53: 9 | BZ53: 0 | CA53: 0 | CB53: 0 | CC53: 0 | CD53: 0 | CE53: 0 | CF53: 0 | CG53: 0 | CH53: 0 | CI53: 0 | CJ53: 0 | CK53: 0 | CL53: 0 | CM53: 0 | CN53: 0
A54: 43 | B54: 905622CG | C54: Djairo De Glee | D54: Cerania BB Z | E54: L | F54: Flevoruiters, RV. | N54: 99 | O54: 0 | P54: 49.20 | R54: 0 | S54: 32.60 | U54: 11 | V54: 99 | AD54: 99 | BC54: 297 | BD54: =IF($O$4>0,(LARGE(($N54,$V54,$AD54,$AL54,$AT54,$BB54),1)),"0") -> 99 | BE54: 198 | BI54: Flexibel M | BK54: 0 | BL54: 0 | BM54: 0 | BN54: 0 | BO54: 0 | BP54: 0 | BQ54: 49.2 | BR54: 0 | BS54: 32.6 | BT54: 0 | BU54: 0 | BV54: 0 | BW54: 0 | BX54: 0 | BY54: 0 | BZ54: 0 | CA54: 0 | CB54: 0 | CC54: 0 | CD54: 0 | CE54: 0 | CF54: 0 | CG54: 0 | CH54: 0 | CI54: 0 | CJ54: 0 | CK54: 0 | CL54: 0 | CM54: 0 | CN54: 0
A55: 43 | B55: 907334JT | C55: Julian Ton | D55: Juulverna | E55: L | F55: Nunspeetse Ruiterclub, RV. | N55: 99 | O55: 0 | P55: 53.83 | U55: 18 | V55: 99 | AD55: 99 | BC55: 297 | BD55: =IF($O$4>0,(LARGE(($N55,$V55,$AD55,$AL55,$AT55,$BB55),1)),"0") -> 99 | BE55: 198 | BI55: Flexibel M | BK55: 0 | BL55: 0 | BM55: 0 | BN55: 0 | BO55: 0 | BP55: 0 | BQ55: 53.83 | BR55: 0 | BS55: 0 | BT55: 0 | BU55: 0 | BV55: 0 | BW55: 0 | BX55: 0 | BY55: 0 | BZ55: 0 | CA55: 0 | CB55: 0 | CC55: 0 | CD55: 0 | CE55: 0 | CF55: 0 | CG55: 0 | CH55: 0 | CI55: 0 | CJ55: 0 | CK55: 0 | CL55: 0 | CM55: 0 | CN55: 0
A56: 43 | B56: 831555CG | C56: Luca Guitink | D56: Cooley Kodachrome | E56: L | F56: Randmeerruiters, RV. De | N56: 99 | O56: 4 | P56: 47.71 | R56: 0 | S56: 30.76 | U56: 20 | V56: 99 | AD56: 99 | BC56: 297 | BD56: =IF($O$4>0,(LARGE(($N56,$V56,$AD56,$AL56,$AT56,$BB56),1)),"0") -> 99 | BE56: 198 | BI56: Flexibel M | BK56: 0 | BL56: 0 | BM56: 0 | BN56: 0 | BO56: 0 | BP56: 4 | BQ56: 47.71 | BR56: 0 | BS56: 30.76 | BT56: 4 | BU56: 0 | BV56: 0 | BW56: 0 | BX56: 0 | BY56: 0 | BZ56: 0 | CA56: 0 | CB56: 0 | CC56: 0 | CD56: 0 | CE56: 0 | CF56: 0 | CG56: 0 | CH56: 0 | CI56: 0 | CJ56: 0 | CK56: 0 | CL56: 0 | CM56: 0 | CN56: 0
A57: 43 | B57: 911454EL | C57: Alice Naber - Lozeman | D57: If Evert | E57: L | F57: Flevoruiters, RV. | G57: 0 | H57: 43.77 | J57: 0 | K57: 42.49 | M57: 12 | N57: 99 | V57: 99 | AD57: 99 | BC57: 297 | BD57: =IF($O$4>0,(LARGE(($N57,$V57,$AD57,$AL57,$AT57,$BB57),1)),"0") -> 99 | BE57: 198 | BI57: Flexibel M | BK57: 0 | BL57: 43.77 | BM57: 0 | BN57: 42.49 | BO57: 0 | BP57: 0 | BQ57: 0 | BR57: 0 | BS57: 0 | BT57: 0 | BU57: 0 | BV57: 0 | BW57: 0 | BX57: 0 | BY57: 0 | BZ57: 0 | CA57: 0 | CB57: 0 | CC57: 0 | CD57: 0 | CE57: 0 | CF57: 0 | CG57: 0 | CH57: 0 | CI57: 0 | CJ57: 0 | CK57: 0 | CL57: 0 | CM57: 0 | CN57: 0
A58: 43 | B58: 923472GN | C58: Jantien Naber | D58: Geu D | E58: L | F58: Flevoruiters, RV. | G58: 0 | H58: 38.46 | J58: 4 | K58: 44.18 | M58: 22 | N58: 99 | V58: 99 | AD58: 99 | BC58: 297 | BD58: =IF($O$4>0,(LARGE(($N58,$V58,$AD58,$AL58,$AT58,$BB58),1)),"0") -> 99 | BE58: 198 | BI58: Flexibel M | BK58: 0 | BL58: 38.46 | BM58: 4 | BN58: 44.18 | BO58: 4 | BP58: 0 | BQ58: 0 | BR58: 0 | BS58: 0 | BT58: 0 | BU58: 0 | BV58: 0 | BW58: 0 | BX58: 0 | BY58: 0 | BZ58: 0 | CA58: 0 | CB58: 0 | CC58: 0 | CD58: 0 | CE58: 0 | CF58: 0 | CG58: 0 | CH58: 0 | CI58: 0 | CJ58: 0 | CK58: 0 | CL58: 0 | CM58: 0 | CN58: 0
A59: 43 | B59: 931367IV | C59: Bethany Vos | D59: Idagonda | E59: L | F59: Heuvelruiters, RV. | G59: NG | N59: 99 | V59: 99 | AD59: 99 | BC59: 297 | BD59: =IF($O$4>0,(LARGE(($N59,$V59,$AD59,$AL59,$AT59,$BB59),1)),"0") -> 99 | BE59: 198 | BK59: 199 | BL59: 0 | BM59: 0 | BN59: 0 | BO59: 199 | BP59: 0 | BQ59: 0 | BR59: 0 | BS59: 0 | BT59: 0 | BU59: 0 | BV59: 0 | BW59: 0 | BX59: 0 | BY59: 0 | BZ59: 0 | CA59: 0 | CB59: 0 | CC59: 0 | CD59: 0 | CE59: 0 | CF59: 0 | CG59: 0 | CH59: 0 | CI59: 0 | CJ59: 0 | CK59: 0 | CL59: 0 | CM59: 0 | CN59: 0
A60: 43 | B60: 934929QV | C60: Bethany Vos | D60: Quatta NH Z | E60: L | F60: Heuvelruiters, RV. | G60: NG | N60: 99 | V60: 99 | AD60: 99 | BC60: 297 | BD60: =IF($O$4>0,(LARGE(($N60,$V60,$AD60,$AL60,$AT60,$BB60),1)),"0") -> 99 | BE60: 198 | BK60: 199 | BL60: 0 | BM60: 0 | BN60: 0 | BO60: 199 | BP60: 0 | BQ60: 0 | BR60: 0 | BS60: 0 | BT60: 0 | BU60: 0 | BV60: 0 | BW60: 0 | BX60: 0 | BY60: 0 | BZ60: 0 | CA60: 0 | CB60: 0 | CC60: 0 | CD60: 0 | CE60: 0 | CF60: 0 | CG60: 0 | CH60: 0 | CI60: 0 | CJ60: 0 | CK60: 0 | CL60: 0 | CM60: 0 | CN60: 0
A61: 43 | B61: 937210MK | C61: Cristel Kalf | D61: Mans | E61: L | F61: Heuvelruiters, RV. | G61: NG | N61: 99 | V61: 99 | AD61: 99 | BC61: 297 | BD61: =IF($O$4>0,(LARGE(($N61,$V61,$AD61,$AL61,$AT61,$BB61),1)),"0") -> 99 | BE61: 198 | BK61: 199 | BL61: 0 | BM61: 0 | BN61: 0 | BO61: 199 | BP61: 0 | BQ61: 0 | BR61: 0 | BS61: 0 | BT61: 0 | BU61: 0 | BV61: 0 | BW61: 0 | BX61: 0 | BY61: 0 | BZ61: 0 | CA61: 0 | CB61: 0 | CC61: 0 | CD61: 0 | CE61: 0 | CF61: 0 | CG61: 0 | CH61: 0 | CI61: 0 | CJ61: 0 | CK61: 0 | CL61: 0 | CM61: 0 | CN61: 0
A62: 43 | B62: 928512MK | C62: Cristel Kalf | D62: Diamond Blue VDL | E62: L | F62: Heuvelruiters, RV. | G62: NG | N62: 99 | V62: 99 | AD62: 99 | BC62: 297 | BD62: =IF($O$4>0,(LARGE(($N62,$V62,$AD62,$AL62,$AT62,$BB62),1)),"0") -> 99 | BE62: 198 | BK62: 199 | BL62: 0 | BM62: 0 | BN62: 0 | BO62: 199 | BP62: 0 | BQ62: 0 | BR62: 0 | BS62: 0 | BT62: 0 | BU62: 0 | BV62: 0 | BW62: 0 | BX62: 0 | BY62: 0 | BZ62: 0 | CA62: 0 | CB62: 0 | CC62: 0 | CD62: 0 | CE62: 0 | CF62: 0 | CG62: 0 | CH62: 0 | CI62: 0 | CJ62: 0 | CK62: 0 | CL62: 0 | CM62: 0 | CN62: 0
A63: 43 | B63: 831770HM | C63: Josine Van der Meij | D63: High Five | E63: L | F63: Flevoruiters, RV. | G63: 20 | H63: 75.84 | J63: Uit2 | M63: 41 | N63: 99 | V63: 99 | AD63: 99 | BC63: 297 | BD63: =IF($O$4>0,(LARGE(($N63,$V63,$AD63,$AL63,$AT63,$BB63),1)),"0") -> 99 | BE63: 198 | BI63: Flexibel M | BK63: 20 | BL63: 75.84 | BM63: 199 | BN63: 0 | BO63: 219 | BP63: 0 | BQ63: 0 | BR63: 0 | BS63: 0 | BT63: 0 | BU63: 0 | BV63: 0 | BW63: 0 | BX63: 0 | BY63: 0 | BZ63: 0 | CA63: 0 | CB63: 0 | CC63: 0 | CD63: 0 | CE63: 0 | CF63: 0 | CG63: 0 | CH63: 0 | CI63: 0 | CJ63: 0 | CK63: 0 | CL63: 0 | CM63: 0 | CN63: 0

Sheet M
A1: Selectie uitslagen
N2: 1 | V2: 2 | AD2: 3 | AL2: 4 | AT2: 5 | BB2: 6 | BC2: =N2+V2+AD2+AL2+AT2+BB2 -> 21 | BD2: =IF($O$4>0,(LARGE(($N2,$V2,$AD2,$AL2,$AT2,$BB2),1)),"0") -> 6 | BE2: =BC2-BD2 -> 15 | BF2: =IF($O$4>1,(LARGE(($N2,$V2,$AD2,$AL2,$AT2,$BB2),1))+(LARGE(($N2,$V2,$AD2,$AL2,$AT2,$BB2),2)),"0") -> 0 | BK2: =IF(G2>99,199,G2) -> 0 | BL2: =IF(H2>99,0,H2) -> 0 | BM2: =IF(J2>99,199,J2) -> 0 | BN2: =IF(K2>99,0,K2) -> 0 | BO2: =BK2+BM2 -> 0 | BP2: =IF(O2>99,199,O2) -> 0 | BQ2: =IF(P2>99,0,P2) -> 0 | BR2: =IF(R2>99,199,R2) -> 0 | BS2: =IF(S2>99,0,S2) -> 0 | BT2: =BP2+BR2 -> 0 | BU2: =IF(W2>99,199,W2) -> 0 | BV2: =IF(X2>99,0,X2) -> 0 | BW2: =IF(Z2>99,199,Z2) -> 0 | BX2: =IF(AA2>99,0,AA2) -> 0 | BY2: =BU2+BW2 -> 0 | BZ2: =IF(AE2>99,199,AE2) -> 0 | CA2: =IF(AF2>99,0,AF2) -> 0 | CB2: =IF(AH2>99,199,AH2) -> 0 | CC2: =IF(AI2>99,0,AI2) -> 0 | CD2: =BZ2+CB2 -> 0 | CE2: =IF(AM2>99,199,AM2) -> 0 | CF2: =IF(AN2>99,0,AN2) -> 0 | CG2: =IF(AP2>99,199,AP2) -> 0 | CH2: =IF(AQ2>99,0,AQ2) -> 0 | CI2: =CE2+CG2 -> 0 | CJ2: =IF(AU2>99,199,AU2) -> 0 | CK2: =IF(AV2>99,0,AV2) -> 0 | CL2: =IF(AX2>99,199,AX2) -> 0 | CM2: =IF(AY2>99,0,AY2) -> 0 | CN2: =CJ2+CL2 -> 0
A3: Kring: | C3: =Instellingen!B3 -> Kring NVF | F3: Aantal afvaardiging Regio: | O3: 11 | BC3: Aantal wedstrijden: | BG3: =Instellingen!B6 -> 3
A4: Klasse: | C4: M | F4: Aantal afval resultaten: | O4: =Instellingen!B7 -> 1
A5: Cat.: | F5: Plaatsingspunten niet gestart: | O5: =Instellingen!B5 -> 99 | BC5: Aantal reserves: | BG5: 3
F6: Lokatie: | G6: =Instellingen!B40 -> Hierden | O6: =Instellingen!B41 -> Nunspeet | W6: =Instellingen!B42 -> Wezep | AE6: =Instellingen!B43 ->  | AM6: =Instellingen!B44 ->  | AU6: =Instellingen!B45 ->  | BC6: Springen
F7: Datum: | G7: =Instellingen!C40 -> 20 nov 2021 | O7: =Instellingen!C41 -> 11 dec 2021 | W7: =Instellingen!C42 -> 05 feb 2021 | AE7: =Instellingen!C43 ->  | AM7: =Instellingen!C44 ->  | AU7: =Instellingen!C45 ->  | BC7: Tot. | BD7: afval | BE7: Beste
A8: Pl. | B8: Comb.nr. | C8: Ruiter/amazone | D8: Paard/pony | E8: kl. | F8: vereniging | G8: ftn1 | H8: tijd1 | I8: wvr1 | J8: ftn2 | K8: tijd2 | L8: wvr2 | M8: pl. | N8: pl.p. | O8: ftn1 | P8: tijd1 | Q8: wvr1 | R8: ftn2 | S8: tijd2 | T8: wvr2 | U8: pl. | V8: pl.p. | W8: ftn1 | X8: tijd1 | Y8: wvr1 | Z8: ftn2 | AA8: tijd2 | AB8: wvr2 | AC8: pl. | AD8: pl.p. | AE8: ftn1 | AF8: tijd1 | AG8: wvr1 | AH8: ftn2 | AI8: tijd2 | AJ8: wvr2 | AK8: pl. | AL8: pl.p. | AM8: ftn1 | AN8: tijd1 | AO8: wvr1 | AP8: ftn2 | AQ8: tijd2 | AR8: wvr2 | AS8: pl. | AT8: pl.p. | AU8: ftn1 | AV8: tijd1 | AW8: wvr1 | AX8: ftn2 | AY8: tijd2 | AZ8: wvr2 | BA8: pl. | BB8: pl.p. | BC8: pl.pnt | BD8: pl.pnt | BE8: pl.pnt | BF8: Afv. | BG8: Res. | BH8: Afv. Regio | BI8: opmerking | BK8: ftn1 1e | BL8: styl1 1e | BM8: ftn2 1e | BN8: styl2 1e bar. | BO8: 1e tot ftn | BP8: ftn1 2e | BQ8: styl1 2e | BR8: ftn2 2e | BS8: styl2 2e bar. | BT8: 2e tot ftn | BU8: ftn1 3e | BV8: styl1 3e | BW8: ftn2 3e | BX8: styl2 3e bar. | BY8: 3e tot ftn | BZ8: ftn1 4e | CA8: styl1 4e | CB8: ftn2 4e | CC8: styl2 4e bar. | CD8: 4e tot ftn | CE8: ftn1 5e | CF8: styl1 5e | CG8: ftn2 5e | CH8: styl2 5e bar. | CI8: 5e tot ftn | CJ8: ftn1 6e | CK8: styl1 6e | CL8: ftn2 6e | CM8: styl2 6e bar. | CN8: 6e tot ftn
A9: 1 | B9: 911454EL | C9: Alice Naber - Lozeman | D9: If Evert | E9: M | F9: Flevoruiters, RV. | G9: 1 | H9: 47.02 | J9: 0 | K9: 44.07 | M9: 12 | N9: 12 | O9: 0 | P9: 51.76 | R9: 0 | S9: 30.21 | U9: 2 | V9: 2 | W9: 0 | X9: 73.81 | Z9: 0 | AA9: 39.66 | AC9: 2 | AD9: 2 | BC9: =N9+V9+AD9+AL9+AT9+BB9 -> 16 | BD9: =IF($O$4>0,(LARGE(($N9,$V9,$AD9,$AL9,$AT9,$BB9),1)),"0") -> 12 | BE9: =BC9-BD9 -> 4 | BF9: 1 | BI9: Kringkampioen | BK9: =IF(G9>99,199,G9) -> 1 | BL9: =IF(H9>99,0,H9) -> 47.02 | BM9: =IF(J9>99,199,J9) -> 0 | BN9: =IF(K9>99,0,K9) -> 44.07 | BO9: =BK9+BM9 -> 1 | BP9: =IF(O9>99,199,O9) -> 0 | BQ9: =IF(P9>99,0,P9) -> 51.76 | BR9: =IF(R9>99,199,R9) -> 0 | BS9: =IF(S9>99,0,S9) -> 30.21 | BT9: =BP9+BR9 -> 0 | BU9: =IF(W9>99,199,W9) -> 0 | BV9: =IF(X9>99,0,X9) -> 73.81 | BW9: =IF(Z9>99,199,Z9) -> 0 | BX9: =IF(AA9>99,0,AA9) -> 39.66 | BY9: =BU9+BW9 -> 0 | BZ9: =IF(AE9>99,199,AE9) -> 0 | CA9: =IF(AF9>99,0,AF9) -> 0 | CB9: =IF(AH9>99,199,AH9) -> 0 | CC9: =IF(AI9>99,0,AI9) -> 0 | CD9: =BZ9+CB9 -> 0 | CE9: =IF(AM9>99,199,AM9) -> 0 | CF9: =IF(AN9>99,0,AN9) -> 0 | CG9: =IF(AP9>99,199,AP9) -> 0 | CH9: =IF(AQ9>99,0,AQ9) -> 0 | CI9: =CE9+CG9 -> 0 | CJ9: =IF(AU9>99,199,AU9) -> 0 | CK9: =IF(AV9>99,0,AV9) -> 0 | CL9: =IF(AX9>99,199,AX9) -> 0 | CM9: =IF(AY9>99,0,AY9) -> 0 | CN9: =CJ9+CL9 -> 0
A10: 2 | B10: 935205JP | C10: Max Van de Poll | D10: Janola | E10: M | F10: Randmeerruiters, RV. De | G10: 0 | H10: 44.11 | J10: 0 | K10: 38.50 | M10: 2 | N10: 2 | O10: 0 | P10: 55.37 | R10: 0 | S10: 31.00 | U10: 4 | V10: 4 | AD10: 99 | BC10: 105 | BD10: =IF($O$4>0,(LARGE(($N10,$V10,$AD10,$AL10,$AT10,$BB10),1)),"0") -> 99 | BE10: 6 | BH10: nee | BI10: Start niet | BK10: 0 | BL10: 44.11 | BM10: 0 | BN10: 38.5 | BO10: 0 | BP10: 0 | BQ10: 55.37 | BR10: 0 | BS10: 31 | BT10: 0 | BU10: 0 | BV10: 0 | BW10: 0 | BX10: 0 | BY10: 0 | BZ10: 0 | CA10: 0 | CB10: 0 | CC10: 0 | CD10: 0 | CE10: 0 | CF10: 0 | CG10: 0 | CH10: 0 | CI10: 0 | CJ10: 0 | CK10: 0 | CL10: 0 | CM10: 0 | CN10: 0
A11: 3 | B11: 938866KK | C11: Cristel Kalf | D11: Kristoff | E11: M | F11: Heuvelruiters, RV. | G11: 0 | H11: 42.62 | J11: 0 | K11: 39.62 | M11: 4 | N11: 4 | O11: 0 | P11: 50.07 | R11: 0 | S11: 31.43 | U11: 5 | V11: 5 | W11: 4 | X11: 76.81 | AC11: 11 | AD11: 11 | BC11: 20 | BD11: =IF($O$4>0,(LARGE(($N11,$V11,$AD11,$AL11,$AT11,$BB11),1)),"0") -> 11 | BE11: 9 | BF11: 2 | BK11: 0 | BL11: 42.62 | BM11: 0 | BN11: 39.62 | BO11: 0 | BP11: 0 | BQ11: 50.07 | BR11: 0 | BS11: 31.43 | BT11: 0 | BU11: 4 | BV11: 76.81 | BW11: 0 | BX11: 0 | BY11: 4 | BZ11: 0 | CA11: 0 | CB11: 0 | CC11: 0 | CD11: 0 | CE11: 0 | CF11: 0 | CG11: 0 | CH11: 0 | CI11: 0 | CJ11: 0 | CK11: 0 | CL11: 0 | CM11: 0 | CN11: 0
A12: 4 | B12: 938867LK | C12: Cristel Kalf | D12: Comme Le Coeur | E12: M | F12: Heuvelruiters, RV. | G12: 0 | H12: 43.75 | J12: 0 | K12: 40.66 | M12: 9 | N12: 9 | O12: 0 | P12: 50.16 | R12: 0 | S12: 32.21 | U12: 7 | V12: 7 | W12: 0 | X12: 76.25 | Z12: 0 | AA12: 40.36 | AC12: 3 | AD12: 3 | BC12: 19 | BD12: =IF($O$4>0,(LARGE(($N12,$V12,$AD12,$AL12,$AT12,$BB12),1)),"0") -> 9 | BE12: 10 | BF12: 3 | BK12: 0 | BL12: 43.75 | BM12: 0 | BN12: 40.66 | BO12: 0 | BP12: 0 | BQ12: 50.16 | BR12: 0 | BS12: 32.21 | BT12: 0 | BU12: 0 | BV12: 76.25 | BW12: 0 | BX12: 40.36 | BY12: 0 | BZ12: 0 | CA12: 0 | CB12: 0 | CC12: 0 | CD12: 0 | CE12: 0 | CF12: 0 | CG12: 0 | CH12: 0 | CI12: 0 | CJ12: 0 | CK12: 0 | CL12: 0 | CM12: 0 | CN12: 0
A13: 5 | B13: 831770HM | C13: Josine Van der Meij | D13: High Five | E13: M | F13: Flevoruiters, RV. | G13: 0 | H13: 39.02 | J13: 0 | K13: 39.65 | M13: 5 | N13: 5 | O13: 0 | P13: 45.12 | R13: 0 | S13: 31.47 | U13: 6 | V13: 6 | W13: 8 | X13: 81.83 | AC13: 13 | AD13: 13 | BC13: 24 | BD13: =IF($O$4>0,(LARGE(($N13,$V13,$AD13,$AL13,$AT13,$BB13),1)),"0") -> 13 | BE13: 11 | BF13: 4 | BK13: 0 | BL13: 39.02 | BM13: 0 | BN13: 39.65 | BO13: 0 | BP13: 0 | BQ13: 45.12 | BR13: 0 | BS13: 31.47 | BT13: 0 | BU13: 8 | BV13: 81.83 | BW13: 0 | BX13: 0 | BY13: 8 | BZ13: 0 | CA13: 0 | CB13: 0 | CC13: 0 | CD13: 0 | CE13: 0 | CF13: 0 | CG13: 0 | CH13: 0 | CI13: 0 | CJ13: 0 | CK13: 0 | CL13: 0 | CM13: 0 | CN13: 0
A14: 6 | B14: 903649LT | C14: Gerwilmer Ton | D14: Liberty | E14: M | F14: Nunspeetse Ruiterclub, RV. | G14: 0 | H14: 42.22 | J14: 0 | K14: 39.91 | M14: 6 | N14: 6 | O14: 0 | P14: 46.67 | R14: 0 | S14: 33.28 | U14: 8 | V14: 8 | W14: 8 | X14: 76.89 | AC14: 12 | AD14: 12 | BC14: 26 | BD14: =IF($O$4>0,(LARGE(($N14,$V14,$AD14,$AL14,$AT14,$BB14),1)),"0") -> 12 | BE14: 14 | BH14: nee | BI14: Start niet | BK14: 0 | BL14: 42.22 | BM14: 0 | BN14: 39.91 | BO14: 0 | BP14: 0 | BQ14: 46.67 | BR14: 0 | BS14: 33.28 | BT14: 0 | BU14: 8 | BV14: 76.89 | BW14: 0 | BX14: 0 | BY14: 8 | BZ14: 0 | CA14: 0 | CB14: 0 | CC14: 0 | CD14: 0 | CE14: 0 | CF14: 0 | CG14: 0 | CH14: 0 | CI14: 0 | CJ14: 0 | CK14: 0 | CL14: 0 | CM14: 0 | CN14: 0
A15: 7 | B15: 890122KK | C15: Anne Klein | D15: Kascarilla | E15: M | F15: Heuvelruiters, RV. | G15: 0 | H15: 44.06 | J15: 0 | K15: 42.71 | M15: 11 | N15: 11 | O15: 4 | P15: 51.99 | R15: 0 | S15: 36.40 | U15: 18 | V15: 18 | W15: 0 | X15: 79.51 | Z15: 0 | AA15: 42.03 | AC15: 4 | AD15: 4 | BC15: 33 | BD15: =IF($O$4>0,(LARGE(($N15,$V15,$AD15,$AL15,$AT15,$BB15),1)),"0") -> 18 | BE15: 15 | BF15: 5 | BK15: 0 | BL15: 44.06 | BM15: 0 | BN15: 42.71 | BO15: 0 | BP15: 4 | BQ15: 51.99 | BR15: 0 | BS15: 36.4 | BT15: 4 | BU15: 0 | BV15: 79.51 | BW15: 0 | BX15: 42.03 | BY15: 0 | BZ15: 0 | CA15: 0 | CB15: 0 | CC15: 0 | CD15: 0 | CE15: 0 | CF15: 0 | CG15: 0 | CH15: 0 | CI15: 0 | CJ15: 0 | CK15: 0 | CL15: 0 | CM15: 0 | CN15: 0
A16: 8 | B16: 935207KP | C16: Max Van de Poll | D16: Kola | E16: M | F16: Randmeerruiters, RV. De | G16: 0 | H16: 46.37 | J16: 0 | K16: 39.10 | M16: 3 | N16: 3 | O16: 2 | P16: 61.32 | R16: 0 | S16: 40.00 | U16: 12 | V16: 12 | AD16: 99 | BC16: 114 | BD16: =IF($O$4>0,(LARGE(($N16,$V16,$AD16,$AL16,$AT16,$BB16),1)),"0") -> 99 | BE16: 15 | BH16: nee | BI16: Start niet | BK16: 0 | BL16: 46.37 | BM16: 0 | BN16: 39.1 | BO16: 0 | BP16: 2 | BQ16: 61.32 | BR16: 0 | BS16: 40 | BT16: 2 | BU16: 0 | BV16: 0 | BW16: 0 | BX16: 0 | BY16: 0 | BZ16: 0 | CA16: 0 | CB16: 0 | CC16: 0 | CD16: 0 | CE16: 0 | CF16: 0 | CG16: 0 | CH16: 0 | CI16: 0 | CJ16: 0 | CK16: 0 | CL16: 0 | CM16: 0 | CN16: 0
A17: 9 | B17: 919394HN | C17: Jantien Naber | D17: Harm | E17: M | F17: Flevoruiters, RV. | G17: 4 | H17: 39.34 | J17: 0 | K17: 37.52 | M17: 16 | N17: 16 | O17: 0 | P17: 41.86 | R17: 0 | S17: 26.39 | U17: 1 | V17: 1 | AD17: 99 | BC17: 116 | BD17: =IF($O$4>0,(LARGE(($N17,$V17,$AD17,$AL17,$AT17,$BB17),1)),"0") -> 99 | BE17: 17 | BH17: nee | BI17: Start niet (verkocht) | BK17: 4 | BL17: 39.34 | BM17: 0 | BN17: 37.52 | BO17: 4 | BP17: 0 | BQ17: 41.86 | BR17: 0 | BS17: 26.39 | BT17: 0 | BU17: 0 | BV17: 0 | BW17: 0 | BX17: 0 | BY17: 0 | BZ17: 0 | CA17: 0 | CB17: 0 | CC17: 0 | CD17: 0 | CE17: 0 | CF17: 0 | CG17: 0 | CH17: 0 | CI17: 0 | CJ17: 0 | CK17: 0 | CL17: 0 | CM17: 0 | CN17: 0
A18: 10 | B18: 767142FB | C18: Annemiek Bloemendaal | D18: FRESIA-A | E18: M | F18: Nunspeetse Ruiterclub, RV. | G18: 0 | H18: 42.16 | J18: 0 | K18: 40.37 | M18: 8 | N18: 8 | O18: 0 | P18: 41.06 | R18: 0 | S18: 33.59 | U18: 10 | V18: 10 | W18: Uit1 | AD18: 90 | BC18: 108 | BD18: =IF($O$4>0,(LARGE(($N18,$V18,$AD18,$AL18,$AT18,$BB18),1)),"0") -> 90 | BE18: 18 | BF18: 6 | BK18: 0 | BL18: 42.16 | BM18: 0 | BN18: 40.37 | BO18: 0 | BP18: 0 | BQ18: 41.06 | BR18: 0 | BS18: 33.59 | BT18: 0 | BU18: 199 | BV18: 0 | BW18: 0 | BX18: 0 | BY18: 199 | BZ18: 0 | CA18: 0 | CB18: 0 | CC18: 0 | CD18: 0 | CE18: 0 | CF18: 0 | CG18: 0 | CH18: 0 | CI18: 0 | CJ18: 0 | CK18: 0 | CL18: 0 | CM18: 0 | CN18: 0
A19: 11 | B19: 802654MP | C19: Misha Postma | D19: My love | E19: M | F19: Heuvelruiters, RV. | G19: 1 | H19: 47.58 | J19: 1 | K19: 48.65 | M19: 14 | N19: 14 | V19: 99 | W19: 0 | X19: 82.12 | Z19: 0 | AA19: 45.89 | AC19: 6 | AD19: 6 | BC19: 119 | BD19: =IF($O$4>0,(LARGE(($N19,$V19,$AD19,$AL19,$AT19,$BB19),1)),"0") -> 99 | BE19: 20 | BF19: 7 | BK19: 1 | BL19: 47.58 | BM19: 1 | BN19: 48.65 | BO19: 2 | BP19: 0 | BQ19: 0 | BR19: 0 | BS19: 0 | BT19: 0 | BU19: 0 | BV19: 82.12 | BW19: 0 | BX19: 45.89 | BY19: 0 | BZ19: 0 | CA19: 0 | CB19: 0 | CC19: 0 | CD19: 0 | CE19: 0 | CF19: 0 | CG19: 0 | CH19: 0 | CI19: 0 | CJ19: 0 | CK19: 0 | CL19: 0 | CM19: 0 | CN19: 0
A20: 12 | B20: 939715EK | C20: Anne Klein | D20: Een bolletje | E20: M | F20: Heuvelruiters, RV. | G20: 0 | H20: 42.96 | J20: 4 | K20: 37.29 | M20: 15 | N20: 15 | O20: 0 | P20: 49.86 | R20: 4 | S20: 32.90 | U20: 14 | V20: 14 | W20: 0 | X20: 70.61 | Z20: 4 | AA20: 41.39 | AC20: 7 | AD20: 7 | BC20: 36 | BD20: =IF($O$4>0,(LARGE(($N20,$V20,$AD20,$AL20,$AT20,$BB20),1)),"0") -> 15 | BE20: 21 | BF20: 8 | BK20: 0 | BL20: 42.96 | BM20: 4 | BN20: 37.29 | BO20: 4 | BP20: 0 | BQ20: 49.86 | BR20: 4 | BS20: 32.9 | BT20: 4 | BU20: 0 | BV20: 70.61 | BW20: 4 | BX20: 41.39 | BY20: 4 | BZ20: 0 | CA20: 0 | CB20: 0 | CC20: 0 | CD20: 0 | CE20: 0 | CF20: 0 | CG20: 0 | CH20: 0 | CI20: 0 | CJ20: 0 | CK20: 0 | CL20: 0 | CM20: 0 | CN20: 0
A21: 14 | B21: 887058HB | C21: Linda Beekhoven | D21: Harrison | E21: M | F21: Maverick Stables | G21: 0 | H21: 43.04 | J21: 0 | K21: 40.75 | M21: 10 | N21: 10 | O21: 4 | P21: 46.20 | R21: 4 | S21: 34.61 | U21: 22 | V21: 22 | AD21: 99 | BC21: 131 | BD21: =IF($O$4>0,(LARGE(($N21,$V21,$AD21,$AL21,$AT21,$BB21),1)),"0") -> 99 | BE21: 32 | BF21: 9 | BK21: 0 | BL21: 43.04 | BM21: 0 | BN21: 40.75 | BO21: 0 | BP21: 4 | BQ21: 46.2 | BR21: 4 | BS21: 34.61 | BT21: 8 | BU21: 0 | BV21: 0 | BW21: 0 | BX21: 0 | BY21: 0 | BZ21: 0 | CA21: 0 | CB21: 0 | CC21: 0 | CD21: 0 | CE21: 0 | CF21: 0 | CG21: 0 | CH21: 0 | CI21: 0 | CJ21: 0 | CK21: 0 | CL21: 0 | CM21: 0 | CN21: 0
A22: 15 | B22: 907334JT | C22: Julian Ton | D22: Juulverna | E22: M | F22: Nunspeetse Ruiterclub, RV. | G22: 8 | H22: 41.76 | J22: Vrijw | M22: 24 | N22: 22 | O22: 0 | P22: 53.08 | R22: 4 | S22: 35.29 | U22: 17 | V22: 17 | AD22: 99 | BC22: 138 | BD22: =IF($O$4>0,(LARGE(($N22,$V22,$AD22,$AL22,$AT22,$BB22),1)),"0") -> 99 | BE22: 39 | BF22: 10 | BK22: 8 | BL22: 41.76 | BM22: 199 | BN22: 0 | BO22: 207 | BP22: 0 | BQ22: 53.08 | BR22: 4 | BS22: 35.29 | BT22: 4 | BU22: 0 | BV22: 0 | BW22: 0 | BX22: 0 | BY22: 0 | BZ22: 0 | CA22: 0 | CB22: 0 | CC22: 0 | CD22: 0 | CE22: 0 | CF22: 0 | CG22: 0 | CH22: 0 | CI22: 0 | CJ22: 0 | CK22: 0 | CL22: 0 | CM22: 0 | CN22: 0
A23: 16 | B23: 905622CG | C23: Djairo De Glee | D23: Cerania BB Z | E23: M | F23: Flevoruiters, RV. | G23: Uit1 | N23: 90 | O23: 0 | P23: 46.93 | R23: 0 | S23: 33.35 | U23: 9 | V23: 9 | AD23: 99 | BC23: 198 | BD23: =IF($O$4>0,(LARGE(($N23,$V23,$AD23,$AL23,$AT23,$BB23),1)),"0") -> 99 | BE23: 99 | BF23: 11 | BK23: 199 | BL23: 0 | BM23: 0 | BN23: 0 | BO23: 199 | BP23: 0 | BQ23: 46.93 | BR23: 0 | BS23: 33.35 | BT23: 0 | BU23: 0 | BV23: 0 | BW23: 0 | BX23: 0 | BY23: 0 | BZ23: 0 | CA23: 0 | CB23: 0 | CC23: 0 | CD23: 0 | CE23: 0 | CF23: 0 | CG23: 0 | CH23: 0 | CI23: 0 | CJ23: 0 | CK23: 0 | CL23: 0 | CM23: 0 | CN23: 0
A24: 17 | B24: 860520CS | C24: Julia Sloots | D24: Cantos | F24: Lelyruiters, RV | N24: 99 | V24: 99 | W24: 0 | X24: 74.81 | Z24: 0 | AA24: 42.47 | AC24: 5 | AD24: 5 | BC24: 203 | BD24: =IF($O$4>0,(LARGE(($N24,$V24,$AD24,$AL24,$AT24,$BB24),1)),"0") -> 99 | BE24: 104 | BG24: 1 | BK24: 0 | BL24: 0 | BM24: 0 | BN24: 0 | BO24: 0 | BP24: 0 | BQ24: 0 | BR24: 0 | BS24: 0 | BT24: 0 | BU24: 0 | BV24: 74.81 | BW24: 0 | BX24: 42.47 | BY24: 0 | BZ24: 0 | CA24: 0 | CB24: 0 | CC24: 0 | CD24: 0 | CE24: 0 | CF24: 0 | CG24: 0 | CH24: 0 | CI24: 0 | CJ24: 0 | CK24: 0 | CL24: 0 | CM24: 0 | CN24: 0
A25: 18 | B25: 839049EJ | C25: Lily Jansen | D25: excellent | E25: M | F25: Randmeerruiters, RV. De | G25: Uit1 | N25: 90 | O25: 0 | P25: 45.88 | R25: 6 | S25: 45.05 | U25: 20 | V25: 20 | AD25: 99 | BC25: 209 | BD25: =IF($O$4>0,(LARGE(($N25,$V25,$AD25,$AL25,$AT25,$BB25),1)),"0") -> 99 | BE25: 110 | BG25: 2 | BK25: 199 | BL25: 0 | BM25: 0 | BN25: 0 | BO25: 199 | BP25: 0 | BQ25: 45.88 | BR25: 6 | BS25: 45.05 | BT25: 6 | BU25: 0 | BV25: 0 | BW25: 0 | BX25: 0 | BY25: 0 | BZ25: 0 | CA25: 0 | CB25: 0 | CC25: 0 | CD25: 0 | CE25: 0 | CF25: 0 | CG25: 0 | CH25: 0 | CI25: 0 | CJ25: 0 | CK25: 0 | CL25: 0 | CM25: 0 | CN25: 0
A26: 19 | B26: 906939KS | C26: Esmay Schaftenaar | D26: Karrera Carpe Noctem Z | E26: M | F26: Nunspeetse Ruiterclub, RV. | N26: 99 | O26: 0 | P26: 44.97 | R26: 4 | S26: 29.43 | U26: 13 | V26: 13 | AD26: 99 | BC26: 211 | BD26: =IF($O$4>0,(LARGE(($N26,$V26,$AD26,$AL26,$AT26,$BB26),1)),"0") -> 99 | BE26: 112 | BK26: 0 | BL26: 0 | BM26: 0 | BN26: 0 | BO26: 0 | BP26: 0 | BQ26: 44.97 | BR26: 4 | BS26: 29.43 | BT26: 4 | BU26: 0 | BV26: 0 | BW26: 0 | BX26: 0 | BY26: 0 | BZ26: 0 | CA26: 0 | CB26: 0 | CC26: 0 | CD26: 0 | CE26: 0 | CF26: 0 | CG26: 0 | CH26: 0 | CI26: 0 | CJ26: 0 | CK26: 0 | CL26: 0 | CM26: 0 | CN26: 0
A27: 19 | B27: 653581DP | C27: Misha Postma | D27: Dirk | E27: M | F27: Heuvelruiters, RV. | G27: 0 | H27: 45.41 | J27: 1 | K27: 45.37 | M27: 13 | N27: 13 | V27: 99 | AD27: 99 | BC27: 211 | BD27: =IF($O$4>0,(LARGE(($N27,$V27,$AD27,$AL27,$AT27,$BB27),1)),"0") -> 99 | BE27: 112 | BK27: 0 | BL27: 45.41 | BM27: 1 | BN27: 45.37 | BO27: 1 | BP27: 0 | BQ27: 0 | BR27: 0 | BS27: 0 | BT27: 0 | BU27: 0 | BV27: 0 | BW27: 0 | BX27: 0 | BY27: 0 | BZ27: 0 | CA27: 0 | CB27: 0 | CC27: 0 | CD27: 0 | CE27: 0 | CF27: 0 | CG27: 0 | CH27: 0 | CI27: 0 | CJ27: 0 | CK27: 0 | CL27: 0 | CM27: 0 | CN27: 0
A28: 21 | B28: 931021JM | C28: Lourenco Monnee | D28: Janine | E28: M | F28: Randmeerruiters, RV. De | G28: 8 | H28: 42.39 | J28: Vrijw | M28: 25 | N28: 23 | O28: Uit1 | V28: 90 | AD28: 99 | BC28: 212 | BD28: =IF($O$4>0,(LARGE(($N28,$V28,$AD28,$AL28,$AT28,$BB28),1)),"0") -> 99 | BE28: 113 | BK28: 8 | BL28: 42.39 | BM28: 199 | BN28: 0 | BO28: 207 | BP28: 199 | BQ28: 0 | BR28: 0 | BS28: 0 | BT28: 199 | BU28: 0 | BV28: 0 | BW28: 0 | BX28: 0 | BY28: 0 | BZ28: 0 | CA28: 0 | CB28: 0 | CC28: 0 | CD28: 0 | CE28: 0 | CF28: 0 | CG28: 0 | CH28: 0 | CI28: 0 | CJ28: 0 | CK28: 0 | CL28: 0 | CM28: 0 | CN28: 0
A29: 22 | B29: 825859HP | C29: Sanne Platte | D29: Hopes and Fears | E29: M | F29: Nunspeetse Ruiterclub, RV. | N29: 99 | O29: 0 | P29: 47.85 | R29: 4 | S29: 33.61 | U29: 15 | V29: 15 | AD29: 99 | BC29: 213 | BD29: =IF($O$4>0,(LARGE(($N29,$V29,$AD29,$AL29,$AT29,$BB29),1)),"0") -> 99 | BE29: 114 | BK29: 0 | BL29: 0 | BM29: 0 | BN29: 0 | BO29: 0 | BP29: 0 | BQ29: 47.85 | BR29: 4 | BS29: 33.61 | BT29: 4 | BU29: 0 | BV29: 0 | BW29: 0 | BX29: 0 | BY29: 0 | BZ29: 0 | CA29: 0 | CB29: 0 | CC29: 0 | CD29: 0 | CE29: 0 | CF29: 0 | CG29: 0 | CH29: 0 | CI29: 0 | CJ29: 0 | CK29: 0 | CL29: 0 | CM29: 0 | CN29: 0
A30: 23 | B30: 879579HH | C30: Harmen Hoksbergen | D30: Hyacint | E30: M | F30: Heuvelruiters, RV. | G30: 4 | H30: 41.85 | J30: 0 | K30: 37.97 | M30: 17 | N30: 17 | V30: 99 | AD30: 99 | BC30: 215 | BD30: =IF($O$4>0,(LARGE(($N30,$V30,$AD30,$AL30,$AT30,$BB30),1)),"0") -> 99 | BE30: 116 | BK30: 4 | BL30: 41.85 | BM30: 0 | BN30: 37.97 | BO30: 4 | BP30: 0 | BQ30: 0 | BR30: 0 | BS30: 0 | BT30: 0 | BU30: 0 | BV30: 0 | BW30: 0 | BX30: 0 | BY30: 0 | BZ30: 0 | CA30: 0 | CB30: 0 | CC30: 0 | CD30: 0 | CE30: 0 | CF30: 0 | CG30: 0 | CH30: 0 | CI30: 0 | CJ30: 0 | CK30: 0 | CL30: 0 | CM30: 0 | CN30: 0
A31: 24 | B31: 933901HW | C31: Iris Kok - v/d Weijden | D31: Higgs | E31: M | F31: Flevoruiters, RV. | G31: 0 | H31: 41.72 | J31: 6 | K31: 50.55 | M31: 18 | N31: 18 | V31: 99 | AD31: 99 | BC31: 216 | BD31: =IF($O$4>0,(LARGE(($N31,$V31,$AD31,$AL31,$AT31,$BB31),1)),"0") -> 99 | BE31: 117 | BK31: 0 | BL31: 41.72 | BM31: 6 | BN31: 50.55 | BO31: 6 | BP31: 0 | BQ31: 0 | BR31: 0 | BS31: 0 | BT31: 0 | BU31: 0 | BV31: 0 | BW31: 0 | BX31: 0 | BY31: 0 | BZ31: 0 | CA31: 0 | CB31: 0 | CC31: 0 | CD31: 0 | CE31: 0 | CF31: 0 | CG31: 0 | CH31: 0 | CI31: 0 | CJ31: 0 | CK31: 0 | CL31: 0 | CM31: 0 | CN31: 0
A32: 25 | B32: 931416LP | C32: Max Van de Poll | D32: Lucca | E32: M | F32: Randmeerruiters, RV. De | N32: 99 | O32: 4 | P32: 53.10 | R32: 0 | S32: 38.13 | U32: 19 | V32: 19 | AD32: 99 | BC32: 217 | BD32: =IF($O$4>0,(LARGE(($N32,$V32,$AD32,$AL32,$AT32,$BB32),1)),"0") -> 99 | BE32: 118 | BK32: 0 | BL32: 0 | BM32: 0 | BN32: 0 | BO32: 0 | BP32: 4 | BQ32: 53.1 | BR32: 0 | BS32: 38.13 | BT32: 4 | BU32: 0 | BV32: 0 | BW32: 0 | BX32: 0 | BY32: 0 | BZ32: 0 | CA32: 0 | CB32: 0 | CC32: 0 | CD32: 0 | CE32: 0 | CF32: 0 | CG32: 0 | CH32: 0 | CI32: 0 | CJ32: 0 | CK32: 0 | CL32: 0 | CM32: 0 | CN32: 0
A33: 25 | B33: 877254OW | C33: Iris Kok - v/d Weijden | D33: Okee van den Dael | E33: M | F33: Flevoruiters, RV. | G33: 0 | H33: 43.36 | J33: 8 | K33: 58.98 | M33: 19 | N33: 19 | V33: 99 | AD33: 99 | BC33: 217 | BD33: =IF($O$4>0,(LARGE(($N33,$V33,$AD33,$AL33,$AT33,$BB33),1)),"0") -> 99 | BE33: 118 | BK33: 0 | BL33: 43.36 | BM33: 8 | BN33: 58.98 | BO33: 8 | BP33: 0 | BQ33: 0 | BR33: 0 | BS33: 0 | BT33: 0 | BU33: 0 | BV33: 0 | BW33: 0 | BX33: 0 | BY33: 0 | BZ33: 0 | CA33: 0 | CB33: 0 | CC33: 0 | CD33: 0 | CE33: 0 | CF33: 0 | CG33: 0 | CH33: 0 | CI33: 0 | CJ33: 0 | CK33: 0 | CL33: 0 | CM33: 0 | CN33: 0
A34: 27 | B34: 878506KK | C34: Cristel Kalf | D34: Koraal | E34: M | F34: Heuvelruiters, RV. | G34: 4 | H34: 44.37 | J34: 8 | K34: 44.46 | M34: 20 | N34: 20 | V34: 99 | AD34: 99 | BC34: 218 | BD34: =IF($O$4>0,(LARGE(($N34,$V34,$AD34,$AL34,$AT34,$BB34),1)),"0") -> 99 | BE34: 119 | BK34: 4 | BL34: 44.37 | BM34: 8 | BN34: 44.46 | BO34: 12 | BP34: 0 | BQ34: 0 | BR34: 0 | BS34: 0 | BT34: 0 | BU34: 0 | BV34: 0 | BW34: 0 | BX34: 0 | BY34: 0 | BZ34: 0 | CA34: 0 | CB34: 0 | CC34: 0 | CD34: 0 | CE34: 0 | CF34: 0 | CG34: 0 | CH34: 0 | CI34: 0 | CJ34: 0 | CK34: 0 | CL34: 0 | CM34: 0 | CN34: 0
A35: 28 | B35: 831555CG | C35: Luca Guitink | D35: Cooley Kodachrome | E35: M | F35: Randmeerruiters, RV. De | N35: 99 | O35: 4 | P35: 45.42 | R35: 4 | S35: 32.82 | U35: 21 | V35: 21 | AD35: 99 | BC35: 219 | BD35: =IF($O$4>0,(LARGE(($N35,$V35,$AD35,$AL35,$AT35,$BB35),1)),"0") -> 99 | BE35: 120 | BK35: 0 | BL35: 0 | BM35: 0 | BN35: 0 | BO35: 0 | BP35: 4 | BQ35: 45.42 | BR35: 4 | BS35: 32.82 | BT35: 8 | BU35: 0 | BV35: 0 | BW35: 0 | BX35: 0 | BY35: 0 | BZ35: 0 | CA35: 0 | CB35: 0 | CC35: 0 | CD35: 0 | CE35: 0 | CF35: 0 | CG35: 0 | CH35: 0 | CI35: 0 | CJ35: 0 | CK35: 0 | CL35: 0 | CM35: 0 | CN35: 0
A36: 28 | B36: 923472GN | C36: Jantien Naber | D36: Geu D | E36: M | F36: Flevoruiters, RV. | G36: 8 | H36: 40.75 | J36: 8 | K36: 42.68 | M36: 21 | N36: 21 | V36: 99 | AD36: 99 | BC36: 219 | BD36: =IF($O$4>0,(LARGE(($N36,$V36,$AD36,$AL36,$AT36,$BB36),1)),"0") -> 99 | BE36: 120 | BK36: 8 | BL36: 40.75 | BM36: 8 | BN36: 42.68 | BO36: 16 | BP36: 0 | BQ36: 0 | BR36: 0 | BS36: 0 | BT36: 0 | BU36: 0 | BV36: 0 | BW36: 0 | BX36: 0 | BY36: 0 | BZ36: 0 | CA36: 0 | CB36: 0 | CC36: 0 | CD36: 0 | CE36: 0 | CF36: 0 | CG36: 0 | CH36: 0 | CI36: 0 | CJ36: 0 | CK36: 0 | CL36: 0 | CM36: 0 | CN36: 0
A37: 30 | B37: 895991SH | C37: Maud Hanse | D37: Socrate de L'oustalet | E37: M | F37: Flevoruiters, RV. | G37: 20 | H37: 0.00 | J37: Uit1 | M37: 26 | N37: 24 | V37: 99 | AD37: 99 | BC37: 222 | BD37: =IF($O$4>0,(LARGE(($N37,$V37,$AD37,$AL37,$AT37,$BB37),1)),"0") -> 99 | BE37: 123 | BK37: 20 | BL37: 0 | BM37: 199 | BN37: 0 | BO37: 219 | BP37: 0 | BQ37: 0 | BR37: 0 | BS37: 0 | BT37: 0 | BU37: 0 | BV37: 0 | BW37: 0 | BX37: 0 | BY37: 0 | BZ37: 0 | CA37: 0 | CB37: 0 | CC37: 0 | CD37: 0 | CE37: 0 | CF37: 0 | CG37: 0 | CH37: 0 | CI37: 0 | CJ37: 0 | CK37: 0 | CL37: 0 | CM37: 0 | CN37: 0
A38: 13 | B38: 941384GN | C38: Leida Naber | D38: Geu D | E38: M | F38: Flevoruiters, RV. | N38: 99 | O38: 4 | P38: 48.10 | R38: 0 | S38: 34.05 | U38: 16 | V38: 99 | W38: 4 | X38: 74.75 | AC38: 9 | AD38: 99 | BC38: 297 | BD38: =IF($O$4>0,(LARGE(($N38,$V38,$AD38,$AL38,$AT38,$BB38),1)),"0") -> 99 | BE38: 198 | BI38: Flexibel Z | BK38: 0 | BL38: 0 | BM38: 0 | BN38: 0 | BO38: 0 | BP38: 4 | BQ38: 48.1 | BR38: 0 | BS38: 34.05 | BT38: 4 | BU38: 4 | BV38: 74.75 | BW38: 0 | BX38: 0 | BY38: 4 | BZ38: 0 | CA38: 0 | CB38: 0 | CC38: 0 | CD38: 0 | CE38: 0 | CF38: 0 | CG38: 0 | CH38: 0 | CI38: 0 | CJ38: 0 | CK38: 0 | CL38: 0 | CM38: 0 | CN38: 0
A39: 31 | B39: 915932TN | C39: Leida Naber | D39: T-Bone EH Z | E39: M | F39: Flevoruiters, RV. | G39: 0 | H39: 41.33 | J39: 0 | K39: 36.66 | M39: 1 | N39: 99 | V39: 99 | W39: 0 | X39: 70.28 | Z39: 0 | AA39: 37.54 | AC39: 1 | AD39: 99 | BC39: 297 | BD39: =IF($O$4>0,(LARGE(($N39,$V39,$AD39,$AL39,$AT39,$BB39),1)),"0") -> 99 | BE39: 198 | BI39: Flexibel Z | BK39: 0 | BL39: 41.33 | BM39: 0 | BN39: 36.66 | BO39: 0 | BP39: 0 | BQ39: 0 | BR39: 0 | BS39: 0 | BT39: 0 | BU39: 0 | BV39: 70.28 | BW39: 0 | BX39: 37.54 | BY39: 0 | BZ39: 0 | CA39: 0 | CB39: 0 | CC39: 0 | CD39: 0 | CE39: 0 | CF39: 0 | CG39: 0 | CH39: 0 | CI39: 0 | CJ39: 0 | CK39: 0 | CL39: 0 | CM39: 0 | CN39: 0
A40: 31 | B40: 845419IZ | C40: John van Zanten | D40: Ini Mini Cooper | F40: Flevoruiters, RV. | N40: 99 | V40: 99 | W40: 0 | X40: 70.47 | Z40: 7 | AA40: 52.04 | AC40: 8 | AD40: 99 | BC40: 297 | BD40: =IF($O$4>0,(LARGE(($N40,$V40,$AD40,$AL40,$AT40,$BB40),1)),"0") -> 99 | BE40: 198 | BI40: Flexibel Z | BK40: 0 | BL40: 0 | BM40: 0 | BN40: 0 | BO40: 0 | BP40: 0 | BQ40: 0 | BR40: 0 | BS40: 0 | BT40: 0 | BU40: 0 | BV40: 70.47 | BW40: 7 | BX40: 52.04 | BY40: 7 | BZ40: 0 | CA40: 0 | CB40: 0 | CC40: 0 | CD40: 0 | CE40: 0 | CF40: 0 | CG40: 0 | CH40: 0 | CI40: 0 | CJ40: 0 | CK40: 0 | CL40: 0 | CM40: 0 | CN40: 0
A41: 31 | B41: 900859LK | C41: Cristel Kalf | D41: Levita Z | E41: M | F41: Heuvelruiters, RV. | N41: 99 | V41: 99 | W41: 4 | X41: 75.60 | AC41: 10 | AD41: 99 | BC41: 297 | BD41: =IF($O$4>0,(LARGE(($N41,$V41,$AD41,$AL41,$AT41,$BB41),1)),"0") -> 99 | BE41: 198 | BI41: Flexibel Z | BK41: 0 | BL41: 0 | BM41: 0 | BN41: 0 | BO41: 0 | BP41: 0 | BQ41: 0 | BR41: 0 | BS41: 0 | BT41: 0 | BU41: 4 | BV41: 75.6 | BW41: 0 | BX41: 0 | BY41: 4 | BZ41: 0 | CA41: 0 | CB41: 0 | CC41: 0 | CD41: 0 | CE41: 0 | CF41: 0 | CG41: 0 | CH41: 0 | CI41: 0 | CJ41: 0 | CK41: 0 | CL41: 0 | CM41: 0 | CN41: 0
A42: 31 | B42: 927324ET | C42: Gerwilmer Ton | D42: Echo's Way Z | E42: M | F42: Nunspeetse Ruiterclub, RV. | G42: 0 | H42: 42.45 | J42: 0 | K42: 40.22 | M42: 7 | N42: 99 | O42: 0 | P42: 49.27 | R42: 0 | S42: 30.87 | U42: 3 | V42: 99 | AD42: 99 | BC42: 297 | BD42: =IF($O$4>0,(LARGE(($N42,$V42,$AD42,$AL42,$AT42,$BB42),1)),"0") -> 99 | BE42: 198 | BI42: start Z | BK42: 0 | BL42: 42.45 | BM42: 0 | BN42: 40.22 | BO42: 0 | BP42: 0 | BQ42: 49.27 | BR42: 0 | BS42: 30.87 | BT42: 0 | BU42: 0 | BV42: 0 | BW42: 0 | BX42: 0 | BY42: 0 | BZ42: 0 | CA42: 0 | CB42: 0 | CC42: 0 | CD42: 0 | CE42: 0 | CF42: 0 | CG42: 0 | CH42: 0 | CI42: 0 | CJ42: 0 | CK42: 0 | CL42: 0 | CM42: 0 | CN42: 0
A43: 31 | B43: 897449PB | C43: Kars Bonhof | D43: Poker de Mariposa | E43: M | F43: W.E.T., RV. | N43: 99 | O43: 0 | P43: 52.37 | R43: 0 | S43: 36.09 | U43: 11 | V43: 99 | AD43: 99 | BC43: 297 | BD43: =IF($O$4>0,(LARGE(($N43,$V43,$AD43,$AL43,$AT43,$BB43),1)),"0") -> 99 | BE43: 198 | BI43: Flexibel Z | BK43: 0 | BL43: 0 | BM43: 0 | BN43: 0 | BO43: 0 | BP43: 0 | BQ43: 52.37 | BR43: 0 | BS43: 36.09 | BT43: 0 | BU43: 0 | BV43: 0 | BW43: 0 | BX43: 0 | BY43: 0 | BZ43: 0 | CA43: 0 | CB43: 0 | CC43: 0 | CD43: 0 | CE43: 0 | CF43: 0 | CG43: 0 | CH43: 0 | CI43: 0 | CJ43: 0 | CK43: 0 | CL43: 0 | CM43: 0 | CN43: 0
A44: 31 | B44: 922222KK | C44: Cristel Kalf | D44: Kannan's Boy | E44: M | F44: Heuvelruiters, RV. | N44: 99 | V44: 99 | AD44: 99 | BC44: 297 | BD44: =IF($O$4>0,(LARGE(($N44,$V44,$AD44,$AL44,$AT44,$BB44),1)),"0") -> 99 | BE44: 198 | BI44: Flexibel Z | BK44: 0 | BL44: 0 | BM44: 0 | BN44: 0 | BO44: 0 | BP44: 0 | BQ44: 0 | BR44: 0 | BS44: 0 | BT44: 0 | BU44: 0 | BV44: 0 | BW44: 0 | BX44: 0 | BY44: 0 | BZ44: 0 | CA44: 0 | CB44: 0 | CC44: 0 | CD44: 0 | CE44: 0 | CF44: 0 | CG44: 0 | CH44: 0 | CI44: 0 | CJ44: 0 | CK44: 0 | CL44: 0 | CM44: 0 | CN44: 0

Sheet Z
A1: Selectie uitslagen
N2: 1 | V2: 2 | AD2: 3 | AL2: 4 | AT2: 5 | BB2: 6 | BC2: =N2+V2+AD2+AL2+AT2+BB2 -> 21 | BD2: =IF($O$4>0,(LARGE(($N2,$V2,$AD2,$AL2,$AT2,$BB2),1)),"0") -> 6 | BE2: =BC2-BD2 -> 15 | BF2: =IF($O$4>1,(LARGE(($N2,$V2,$AD2,$AL2,$AT2,$BB2),1))+(LARGE(($N2,$V2,$AD2,$AL2,$AT2,$BB2),2)),"0") -> 0 | BK2: =IF(G2>99,199,G2) -> 0 | BL2: =IF(H2>99,0,H2) -> 0 | BM2: =IF(J2>99,199,J2) -> 0 | BN2: =IF(K2>99,0,K2) -> 0 | BO2: =BK2+BM2 -> 0 | BP2: =IF(O2>99,199,O2) -> 0 | BQ2: =IF(P2>99,0,P2) -> 0 | BR2: =IF(R2>99,199,R2) -> 0 | BS2: =IF(S2>99,0,S2) -> 0 | BT2: =BP2+BR2 -> 0 | BU2: =IF(W2>99,199,W2) -> 0 | BV2: =IF(X2>99,0,X2) -> 0 | BW2: =IF(Z2>99,199,Z2) -> 0 | BX2: =IF(AA2>99,0,AA2) -> 0 | BY2: =BU2+BW2 -> 0 | BZ2: =IF(AE2>99,199,AE2) -> 0 | CA2: =IF(AF2>99,0,AF2) -> 0 | CB2: =IF(AH2>99,199,AH2) -> 0 | CC2: =IF(AI2>99,0,AI2) -> 0 | CD2: =BZ2+CB2 -> 0 | CE2: =IF(AM2>99,199,AM2) -> 0 | CF2: =IF(AN2>99,0,AN2) -> 0 | CG2: =IF(AP2>99,199,AP2) -> 0 | CH2: =IF(AQ2>99,0,AQ2) -> 0 | CI2: =CE2+CG2 -> 0 | CJ2: =IF(AU2>99,199,AU2) -> 0 | CK2: =IF(AV2>99,0,AV2) -> 0 | CL2: =IF(AX2>99,199,AX2) -> 0 | CM2: =IF(AY2>99,0,AY2) -> 0 | CN2: =CJ2+CL2 -> 0
A3: Kring: | C3: =Instellingen!B3 -> Kring NVF | F3: Aantal afvaardiging Regio: | BC3: Aantal wedstrijden: | BG3: =Instellingen!B6 -> 3
A4: Klasse: | C4: Z | F4: Aantal afval resultaten: | O4: =Instellingen!B7 -> 1
A5: Cat.: | F5: Plaatsingspunten niet gestart: | O5: =Instellingen!B5 -> 99 | BC5: Aantal reserves:
F6: Lokatie: | G6: =Instellingen!B40 -> Hierden | O6: =Instellingen!B41 -> Nunspeet | W6: =Instellingen!B42 -> Wezep | AE6: =Instellingen!B43 ->  | AM6: =Instellingen!B44 ->  | AU6: =Instellingen!B45 ->  | BC6: Springen
F7: Datum: | G7: =Instellingen!C40 -> 20 nov 2021 | O7: =Instellingen!C41 -> 11 dec 2021 | W7: =Instellingen!C42 -> 05 feb 2021 | AE7: =Instellingen!C43 ->  | AM7: =Instellingen!C44 ->  | AU7: =Instellingen!C45 ->  | BC7: Tot. | BD7: afval | BE7: Beste
A8: Pl. | B8: Comb.nr. | C8: Ruiter/amazone | D8: Paard/pony | E8: kl. | F8: vereniging | G8: ftn1 | H8: tijd1 | I8: wvr1 | J8: ftn2 | K8: tijd2 | L8: wvr2 | M8: pl. | N8: pl.p. | O8: ftn1 | P8: tijd1 | Q8: wvr1 | R8: ftn2 | S8: tijd2 | T8: wvr2 | U8: pl. | V8: pl.p. | W8: ftn1 | X8: tijd1 | Y8: wvr1 | Z8: ftn2 | AA8: tijd2 | AB8: wvr2 | AC8: pl. | AD8: pl.p. | AE8: ftn1 | AF8: tijd1 | AG8: wvr1 | AH8: ftn2 | AI8: tijd2 | AJ8: wvr2 | AK8: pl. | AL8: pl.p. | AM8: ftn1 | AN8: tijd1 | AO8: wvr1 | AP8: ftn2 | AQ8: tijd2 | AR8: wvr2 | AS8: pl. | AT8: pl.p. | AU8: ftn1 | AV8: tijd1 | AW8: wvr1 | AX8: ftn2 | AY8: tijd2 | AZ8: wvr2 | BA8: pl. | BB8: pl.p. | BC8: pl.pnt | BD8: pl.pnt | BE8: pl.pnt | BF8: Afv. | BG8: Res. | BH8: Afv. Regio | BI8: opmerking | BK8: ftn1 1e | BL8: styl1 1e | BM8: ftn2 1e | BN8: styl2 1e bar. | BO8: 1e tot ftn | BP8: ftn1 2e | BQ8: styl1 2e | BR8: ftn2 2e | BS8: styl2 2e bar. | BT8: 2e tot ftn | BU8: ftn1 3e | BV8: styl1 3e | BW8: ftn2 3e | BX8: styl2 3e bar. | BY8: 3e tot ftn | BZ8: ftn1 4e | CA8: styl1 4e | CB8: ftn2 4e | CC8: styl2 4e bar. | CD8: 4e tot ftn | CE8: ftn1 5e | CF8: styl1 5e | CG8: ftn2 5e | CH8: styl2 5e bar. | CI8: 5e tot ftn | CJ8: ftn1 6e | CK8: styl1 6e | CL8: ftn2 6e | CM8: styl2 6e bar. | CN8: 6e tot ftn
A9: 1 | B9: 926631JB | C9: Martin Van Bijsteren | D9: Jaizemieka VDL | E9: Z | F9: Randmeerruiters, RV. De | G9: 0 | H9: 42.58 | J9: 0 | K9: 37.32 | M9: 2 | N9: 2 | O9: 0 | P9: 50.44 | R9: 0 | S9: 28.98 | U9: 1 | V9: 1 | AD9: 99 | BC9: =N9+V9+AD9+AL9+AT9+BB9 -> 102 | BD9: =IF($O$4>0,(LARGE(($N9,$V9,$AD9,$AL9,$AT9,$BB9),1)),"0") -> 99 | BE9: =BC9-BD9 -> 3 | BI9: Kringkampioen | BK9: =IF(G9>99,199,G9) -> 0 | BL9: =IF(H9>99,0,H9) -> 42.58 | BM9: =IF(J9>99,199,J9) -> 0 | BN9: =IF(K9>99,0,K9) -> 37.32 | BO9: =BK9+BM9 -> 0 | BP9: =IF(O9>99,199,O9) -> 0 | BQ9: =IF(P9>99,0,P9) -> 50.44 | BR9: =IF(R9>99,199,R9) -> 0 | BS9: =IF(S9>99,0,S9) -> 28.98 | BT9: =BP9+BR9 -> 0 | BU9: =IF(W9>99,199,W9) -> 0 | BV9: =IF(X9>99,0,X9) -> 0 | BW9: =IF(Z9>99,199,Z9) -> 0 | BX9: =IF(AA9>99,0,AA9) -> 0 | BY9: =BU9+BW9 -> 0 | BZ9: =IF(AE9>99,199,AE9) -> 0 | CA9: =IF(AF9>99,0,AF9) -> 0 | CB9: =IF(AH9>99,199,AH9) -> 0 | CC9: =IF(AI9>99,0,AI9) -> 0 | CD9: =BZ9+CB9 -> 0 | CE9: =IF(AM9>99,199,AM9) -> 0 | CF9: =IF(AN9>99,0,AN9) -> 0 | CG9: =IF(AP9>99,199,AP9) -> 0 | CH9: =IF(AQ9>99,0,AQ9) -> 0 | CI9: =CE9+CG9 -> 0 | CJ9: =IF(AU9>99,199,AU9) -> 0 | CK9: =IF(AV9>99,0,AV9) -> 0 | CL9: =IF(AX9>99,199,AX9) -> 0 | CM9: =IF(AY9>99,0,AY9) -> 0 | CN9: =CJ9+CL9 -> 0
A10: 2 | B10: 893886JL | C10: Jaimy Leusink | D10: Jubelina | E10: Z | F10: Randmeerruiters, RV. De | N10: 99 | O10: 0 | P10: 50.38 | R10: 0 | S10: 35.81 | U10: 5 | V10: 5 | W10: 0 | X10: 73.30 | Z10: 4 | AA10: 43.92 | AC10: 2 | AD10: 2 | BC10: 106 | BD10: =IF($O$4>0,(LARGE(($N10,$V10,$AD10,$AL10,$AT10,$BB10),1)),"0") -> 99 | BE10: 7 | BK10: 0 | BL10: 0 | BM10: 0 | BN10: 0 | BO10: 0 | BP10: 0 | BQ10: 50.38 | BR10: 0 | BS10: 35.81 | BT10: 0 | BU10: 0 | BV10: 73.3 | BW10: 4 | BX10: 43.92 | BY10: 4 | BZ10: 0 | CA10: 0 | CB10: 0 | CC10: 0 | CD10: 0 | CE10: 0 | CF10: 0 | CG10: 0 | CH10: 0 | CI10: 0 | CJ10: 0 | CK10: 0 | CL10: 0 | CM10: 0 | CN10: 0
A11: 3 | B11: 878984KZ | C11: Corne Van Zanten | D11: Kind Of Cooper | E11: Z | F11: Flevoruiters, RV. | G11: 0 | H11: 41.98 | J11: 0 | K11: 39.99 | M11: 5 | N11: 5 | O11: 0 | P11: 47.87 | R11: 0 | S11: 29.39 | U11: 2 | V11: 2 | W11: 5 | X11: 86.15 | AC11: 5 | AD11: 5 | BC11: 12 | BD11: =IF($O$4>0,(LARGE(($N11,$V11,$AD11,$AL11,$AT11,$BB11),1)),"0") -> 5 | BE11: 7 | BK11: 0 | BL11: 41.98 | BM11: 0 | BN11: 39.99 | BO11: 0 | BP11: 0 | BQ11: 47.87 | BR11: 0 | BS11: 29.39 | BT11: 0 | BU11: 5 | BV11: 86.15 | BW11: 0 | BX11: 0 | BY11: 5 | BZ11: 0 | CA11: 0 | CB11: 0 | CC11: 0 | CD11: 0 | CE11: 0 | CF11: 0 | CG11: 0 | CH11: 0 | CI11: 0 | CJ11: 0 | CK11: 0 | CL11: 0 | CM11: 0 | CN11: 0
A12: 4 | B12: 888864JG | C12: Djairo De Glee | D12: Jetro H | E12: Z | F12: Flevoruiters, RV. | G12: 12 | H12: 44.39 | J12: 0 | K12: 43.44 | M12: 7 | N12: 7 | O12: 4 | P12: 51.31 | R12: 0 | S12: 33.28 | U12: 8 | V12: 8 | W12: 0 | X12: 76.54 | Z12: 12 | AA12: 42.18 | AC12: 3 | AD12: 3 | BC12: 18 | BD12: =IF($O$4>0,(LARGE(($N12,$V12,$AD12,$AL12,$AT12,$BB12),1)),"0") -> 8 | BE12: 10 | BK12: 12 | BL12: 44.39 | BM12: 0 | BN12: 43.44 | BO12: 12 | BP12: 4 | BQ12: 51.31 | BR12: 0 | BS12: 33.28 | BT12: 4 | BU12: 0 | BV12: 76.54 | BW12: 12 | BX12: 42.18 | BY12: 12 | BZ12: 0 | CA12: 0 | CB12: 0 | CC12: 0 | CD12: 0 | CE12: 0 | CF12: 0 | CG12: 0 | CH12: 0 | CI12: 0 | CJ12: 0 | CK12: 0 | CL12: 0 | CM12: 0 | CN12: 0
A13: 5 | B13: 935206LP | C13: Max Van de Poll | D13: Look a Like | E13: Z | F13: Randmeerruiters, RV. De | G13: 0 | H13: 44.32 | J13: 0 | K13: 37.78 | M13: 3 | N13: 3 | O13: 0 | P13: 50.45 | R13: 4 | S13: 37.00 | U13: 10 | V13: 10 | AD13: 99 | BC13: 112 | BD13: =IF($O$4>0,(LARGE(($N13,$V13,$AD13,$AL13,$AT13,$BB13),1)),"0") -> 99 | BE13: 13 | BK13: 0 | BL13: 44.32 | BM13: 0 | BN13: 37.78 | BO13: 0 | BP13: 0 | BQ13: 50.45 | BR13: 4 | BS13: 37 | BT13: 4 | BU13: 0 | BV13: 0 | BW13: 0 | BX13: 0 | BY13: 0 | BZ13: 0 | CA13: 0 | CB13: 0 | CC13: 0 | CD13: 0 | CE13: 0 | CF13: 0 | CG13: 0 | CH13: 0 | CI13: 0 | CJ13: 0 | CK13: 0 | CL13: 0 | CM13: 0 | CN13: 0
A14: 6 | B14: 821720SA | C14: Jordin van Apeldoorn | D14: Silverboy | E14: Z | F14: Nunspeetse Ruiterclub, RV. | G14: 4 | H14: 41.99 | J14: 8 | K14: 58.37 | M14: 8 | N14: 8 | O14: 0 | P14: 48.51 | R14: 4 | S14: 31.03 | U14: 7 | V14: 7 | AD14: 99 | BC14: 114 | BD14: =IF($O$4>0,(LARGE(($N14,$V14,$AD14,$AL14,$AT14,$BB14),1)),"0") -> 99 | BE14: 15 | BK14: 4 | BL14: 41.99 | BM14: 8 | BN14: 58.37 | BO14: 12 | BP14: 0 | BQ14: 48.51 | BR14: 4 | BS14: 31.03 | BT14: 4 | BU14: 0 | BV14: 0 | BW14: 0 | BX14: 0 | BY14: 0 | BZ14: 0 | CA14: 0 | CB14: 0 | CC14: 0 | CD14: 0 | CE14: 0 | CF14: 0 | CG14: 0 | CH14: 0 | CI14: 0 | CJ14: 0 | CK14: 0 | CL14: 0 | CM14: 0 | CN14: 0
A15: 7 | B15: 900859LK | C15: Cristel Kalf | D15: Levita Z | E15: M | F15: Heuvelruiters, RV. | N15: 99 | V15: 99 | W15: 0 | X15: 75.06 | Z15: 0 | AA15: 41.70 | AC15: 1 | AD15: 1 | BC15: 199 | BD15: =IF($O$4>0,(LARGE(($N15,$V15,$AD15,$AL15,$AT15,$BB15),1)),"0") -> 99 | BE15: 100 | BK15: 0 | BL15: 0 | BM15: 0 | BN15: 0 | BO15: 0 | BP15: 0 | BQ15: 0 | BR15: 0 | BS15: 0 | BT15: 0 | BU15: 0 | BV15: 75.06 | BW15: 0 | BX15: 41.7 | BY15: 0 | BZ15: 0 | CA15: 0 | CB15: 0 | CC15: 0 | CD15: 0 | CE15: 0 | CF15: 0 | CG15: 0 | CH15: 0 | CI15: 0 | CJ15: 0 | CK15: 0 | CL15: 0 | CM15: 0 | CN15: 0
A16: 8 | B16: 845419IZ | C16: John van Zanten | D16: Ini Mini Cooper | F16: Flevoruiters, RV. | N16: 99 | V16: 99 | W16: 4 | X16: 73.11 | AC16: 4 | AD16: 4 | BC16: 202 | BD16: =IF($O$4>0,(LARGE(($N16,$V16,$AD16,$AL16,$AT16,$BB16),1)),"0") -> 99 | BE16: 103 | BK16: 0 | BL16: 0 | BM16: 0 | BN16: 0 | BO16: 0 | BP16: 0 | BQ16: 0 | BR16: 0 | BS16: 0 | BT16: 0 | BU16: 4 | BV16: 73.11 | BW16: 0 | BX16: 0 | BY16: 4 | BZ16: 0 | CA16: 0 | CB16: 0 | CC16: 0 | CD16: 0 | CE16: 0 | CF16: 0 | CG16: 0 | CH16: 0 | CI16: 0 | CJ16: 0 | CK16: 0 | CL16: 0 | CM16: 0 | CN16: 0
A17: 9 | B17: 922862PK | C17: Cristel Kalf | D17: Poetin vd Donkhoeve VDL | E17: Z | F17: Heuvelruiters, RV. | G17: 0 | H17: 45.37 | J17: 0 | K17: 38.17 | M17: 4 | N17: 4 | V17: 99 | AD17: 99 | BC17: 202 | BD17: =IF($O$4>0,(LARGE(($N17,$V17,$AD17,$AL17,$AT17,$BB17),1)),"0") -> 99 | BE17: 103 | BK17: 0 | BL17: 45.37 | BM17: 0 | BN17: 38.17 | BO17: 0 | BP17: 0 | BQ17: 0 | BR17: 0 | BS17: 0 | BT17: 0 | BU17: 0 | BV17: 0 | BW17: 0 | BX17: 0 | BY17: 0 | BZ17: 0 | CA17: 0 | CB17: 0 | CC17: 0 | CD17: 0 | CE17: 0 | CF17: 0 | CG17: 0 | CH17: 0 | CI17: 0 | CJ17: 0 | CK17: 0 | CL17: 0 | CM17: 0 | CN17: 0
A18: 10 | B18: 941384GN | C18: Leida Naber | D18: Geu D | E18: M | F18: Flevoruiters, RV. | N18: 99 | V18: 99 | W18: 8 | X18: 69.54 | AC18: 6 | AD18: 6 | BC18: 204 | BD18: =IF($O$4>0,(LARGE(($N18,$V18,$AD18,$AL18,$AT18,$BB18),1)),"0") -> 99 | BE18: 105 | BK18: 0 | BL18: 0 | BM18: 0 | BN18: 0 | BO18: 0 | BP18: 0 | BQ18: 0 | BR18: 0 | BS18: 0 | BT18: 0 | BU18: 8 | BV18: 69.54 | BW18: 0 | BX18: 0 | BY18: 8 | BZ18: 0 | CA18: 0 | CB18: 0 | CC18: 0 | CD18: 0 | CE18: 0 | CF18: 0 | CG18: 0 | CH18: 0 | CI18: 0 | CJ18: 0 | CK18: 0 | CL18: 0 | CM18: 0 | CN18: 0
A19: 11 | B19: 922222KK | C19: Cristel Kalf | D19: Kannan's Boy | E19: Z | F19: Heuvelruiters, RV. | N19: 99 | O19: 0 | P19: 51.43 | R19: 0 | S19: 39.01 | U19: 6 | V19: 6 | AD19: 99 | BC19: 204 | BD19: =IF($O$4>0,(LARGE(($N19,$V19,$AD19,$AL19,$AT19,$BB19),1)),"0") -> 99 | BE19: 105 | BK19: 0 | BL19: 0 | BM19: 0 | BN19: 0 | BO19: 0 | BP19: 0 | BQ19: 51.43 | BR19: 0 | BS19: 39.01 | BT19: 0 | BU19: 0 | BV19: 0 | BW19: 0 | BX19: 0 | BY19: 0 | BZ19: 0 | CA19: 0 | CB19: 0 | CC19: 0 | CD19: 0 | CE19: 0 | CF19: 0 | CG19: 0 | CH19: 0 | CI19: 0 | CJ19: 0 | CK19: 0 | CL19: 0 | CM19: 0 | CN19: 0
A20: 11 | B20: 940087KP | C20: Max Van de Poll | D20: Kom Maar Op Gr | E20: Z | F20: Randmeerruiters, RV. De | G20: 0 | H20: 42.88 | J20: 4 | K20: 40.35 | M20: 6 | N20: 6 | V20: 99 | AD20: 99 | BC20: 204 | BD20: =IF($O$4>0,(LARGE(($N20,$V20,$AD20,$AL20,$AT20,$BB20),1)),"0") -> 99 | BE20: 105 | BK20: 0 | BL20: 42.88 | BM20: 4 | BN20: 40.35 | BO20: 4 | BP20: 0 | BQ20: 0 | BR20: 0 | BS20: 0 | BT20: 0 | BU20: 0 | BV20: 0 | BW20: 0 | BX20: 0 | BY20: 0 | BZ20: 0 | CA20: 0 | CB20: 0 | CC20: 0 | CD20: 0 | CE20: 0 | CF20: 0 | CG20: 0 | CH20: 0 | CI20: 0 | CJ20: 0 | CK20: 0 | CL20: 0 | CM20: 0 | CN20: 0
A21: 13 | B21: 897449PB | C21: Kars Bonhof | D21: Poker de Mariposa | E21: Z | F21: W.E.T., RV. | N21: 99 | O21: 0 | P21: 51.42 | R21: 4 | S21: 34.64 | U21: 9 | V21: 9 | AD21: 99 | BC21: 207 | BD21: =IF($O$4>0,(LARGE(($N21,$V21,$AD21,$AL21,$AT21,$BB21),1)),"0") -> 99 | BE21: 108 | BK21: 0 | BL21: 0 | BM21: 0 | BN21: 0 | BO21: 0 | BP21: 0 | BQ21: 51.42 | BR21: 4 | BS21: 34.64 | BT21: 4 | BU21: 0 | BV21: 0 | BW21: 0 | BX21: 0 | BY21: 0 | BZ21: 0 | CA21: 0 | CB21: 0 | CC21: 0 | CD21: 0 | CE21: 0 | CF21: 0 | CG21: 0 | CH21: 0 | CI21: 0 | CJ21: 0 | CK21: 0 | CL21: 0 | CM21: 0 | CN21: 0
A22: 14 | B22: 915932TN | C22: Leida Naber | D22: T-Bone EH Z | E22: Z | F22: Flevoruiters, RV. | N22: 99 | O22: 0 | P22: 46.70 | R22: 8 | S22: 33.08 | U22: 11 | V22: 11 | AD22: 99 | BC22: 209 | BD22: =IF($O$4>0,(LARGE(($N22,$V22,$AD22,$AL22,$AT22,$BB22),1)),"0") -> 99 | BE22: 110 | BK22: 0 | BL22: 0 | BM22: 0 | BN22: 0 | BO22: 0 | BP22: 0 | BQ22: 46.7 | BR22: 8 | BS22: 33.08 | BT22: 8 | BU22: 0 | BV22: 0 | BW22: 0 | BX22: 0 | BY22: 0 | BZ22: 0 | CA22: 0 | CB22: 0 | CC22: 0 | CD22: 0 | CE22: 0 | CF22: 0 | CG22: 0 | CH22: 0 | CI22: 0 | CJ22: 0 | CK22: 0 | CL22: 0 | CM22: 0 | CN22: 0
A23: 15 | B23: 897433CB | C23: Kars Bonhof | D23: Chapeau | E23: Z | F23: W.E.T., RV. | N23: 99 | O23: 0 | P23: 51.37 | R23: 0 | S23: 32.24 | U23: 3 | V23: 99 | AD23: 99 | BC23: 297 | BD23: =IF($O$4>0,(LARGE(($N23,$V23,$AD23,$AL23,$AT23,$BB23),1)),"0") -> 99 | BE23: 198 | BI23: Flexibel ZZ | BK23: 0 | BL23: 0 | BM23: 0 | BN23: 0 | BO23: 0 | BP23: 0 | BQ23: 51.37 | BR23: 0 | BS23: 32.24 | BT23: 0 | BU23: 0 | BV23: 0 | BW23: 0 | BX23: 0 | BY23: 0 | BZ23: 0 | CA23: 0 | CB23: 0 | CC23: 0 | CD23: 0 | CE23: 0 | CF23: 0 | CG23: 0 | CH23: 0 | CI23: 0 | CJ23: 0 | CK23: 0 | CL23: 0 | CM23: 0 | CN23: 0
A24: 15 | B24: 923818CP | C24: Max Van de Poll | D24: Copina | E24: Z | F24: Randmeerruiters, RV. De | N24: 99 | O24: 0 | P24: 49.29 | R24: 0 | S24: 34.41 | U24: 4 | V24: 99 | AD24: 99 | BC24: 297 | BD24: =IF($O$4>0,(LARGE(($N24,$V24,$AD24,$AL24,$AT24,$BB24),1)),"0") -> 99 | BE24: 198 | BI24: Flexibel ZZ | BK24: 0 | BL24: 0 | BM24: 0 | BN24: 0 | BO24: 0 | BP24: 0 | BQ24: 49.29 | BR24: 0 | BS24: 34.41 | BT24: 0 | BU24: 0 | BV24: 0 | BW24: 0 | BX24: 0 | BY24: 0 | BZ24: 0 | CA24: 0 | CB24: 0 | CC24: 0 | CD24: 0 | CE24: 0 | CF24: 0 | CG24: 0 | CH24: 0 | CI24: 0 | CJ24: 0 | CK24: 0 | CL24: 0 | CM24: 0 | CN24: 0
A25: 15 | B25: 889235JK | C25: Cristel Kalf | D25: Jappeloup | E25: Z | F25: Heuvelruiters, RV. | G25: 0 | H25: 43.88 | J25: 0 | K25: 36.68 | M25: 1 | N25: 99 | V25: 99 | AD25: 99 | BC25: 297 | BD25: =IF($O$4>0,(LARGE(($N25,$V25,$AD25,$AL25,$AT25,$BB25),1)),"0") -> 99 | BE25: 198 | BI25: Flexibel ZZ | BK25: 0 | BL25: 43.88 | BM25: 0 | BN25: 36.68 | BO25: 0 | BP25: 0 | BQ25: 0 | BR25: 0 | BS25: 0 | BT25: 0 | BU25: 0 | BV25: 0 | BW25: 0 | BX25: 0 | BY25: 0 | BZ25: 0 | CA25: 0 | CB25: 0 | CC25: 0 | CD25: 0 | CE25: 0 | CF25: 0 | CG25: 0 | CH25: 0 | CI25: 0 | CJ25: 0 | CK25: 0 | CL25: 0 | CM25: 0 | CN25: 0

Sheet ZZ
A1: Selectie uitslagen
N2: 1 | V2: 2 | AD2: 3 | AL2: 4 | AT2: 5 | BB2: 6 | BC2: =N2+V2+AD2+AL2+AT2+BB2 -> 21 | BD2: =IF($O$4>0,(LARGE(($N2,$V2,$AD2,$AL2,$AT2,$BB2),1)),"0") -> 6 | BE2: =BC2-BD2 -> 15 | BF2: =IF($O$4>1,(LARGE(($N2,$V2,$AD2,$AL2,$AT2,$BB2),1))+(LARGE(($N2,$V2,$AD2,$AL2,$AT2,$BB2),2)),"0") -> 0 | BK2: =IF(G2>99,199,G2) -> 0 | BL2: =IF(H2>99,0,H2) -> 0 | BM2: =IF(J2>99,199,J2) -> 0 | BN2: =IF(K2>99,0,K2) -> 0 | BO2: =BK2+BM2 -> 0 | BP2: =IF(O2>99,199,O2) -> 0 | BQ2: =IF(P2>99,0,P2) -> 0 | BR2: =IF(R2>99,199,R2) -> 0 | BS2: =IF(S2>99,0,S2) -> 0 | BT2: =BP2+BR2 -> 0 | BU2: =IF(W2>99,199,W2) -> 0 | BV2: =IF(X2>99,0,X2) -> 0 | BW2: =IF(Z2>99,199,Z2) -> 0 | BX2: =IF(AA2>99,0,AA2) -> 0 | BY2: =BU2+BW2 -> 0 | BZ2: =IF(AE2>99,199,AE2) -> 0 | CA2: =IF(AF2>99,0,AF2) -> 0 | CB2: =IF(AH2>99,199,AH2) -> 0 | CC2: =IF(AI2>99,0,AI2) -> 0 | CD2: =BZ2+CB2 -> 0 | CE2: =IF(AM2>99,199,AM2) -> 0 | CF2: =IF(AN2>99,0,AN2) -> 0 | CG2: =IF(AP2>99,199,AP2) -> 0 | CH2: =IF(AQ2>99,0,AQ2) -> 0 | CI2: =CE2+CG2 -> 0 | CJ2: =IF(AU2>99,199,AU2) -> 0 | CK2: =IF(AV2>99,0,AV2) -> 0 | CL2: =IF(AX2>99,199,AX2) -> 0 | CM2: =IF(AY2>99,0,AY2) -> 0 | CN2: =CJ2+CL2 -> 0
A3: Kring: | C3: =Instellingen!B3 -> Kring NVF | F3: Aantal afvaardiging Regio: | BC3: Aantal wedstrijden: | BG3: =Instellingen!B6 -> 3
A4: Klasse: | C4: ZZ | F4: Aantal afval resultaten: | O4: =Instellingen!B7 -> 1
A5: Cat.: | F5: Plaatsingspunten niet gestart: | O5: =Instellingen!B5 -> 99 | BC5: Aantal reserves:
F6: Lokatie: | G6: =Instellingen!B40 -> Hierden | O6: =Instellingen!B41 -> Nunspeet | W6: =Instellingen!B42 -> Wezep | AE6: =Instellingen!B43 ->  | AM6: =Instellingen!B44 ->  | AU6: =Instellingen!B45 ->  | BC6: Springen
F7: Datum: | G7: =Instellingen!C40 -> 20 nov 2021 | O7: =Instellingen!C41 -> 11 dec 2021 | W7: =Instellingen!C42 -> 05 feb 2021 | AE7: =Instellingen!C43 ->  | AM7: =Instellingen!C44 ->  | AU7: =Instellingen!C45 ->  | BC7: Tot. | BD7: afval | BE7: Beste
A8: Pl. | B8: Comb.nr. | C8: Ruiter/amazone | D8: Paard/pony | E8: kl. | F8: vereniging | G8: ftn1 | H8: tijd1 | I8: wvr1 | J8: ftn2 | K8: tijd2 | L8: wvr2 | M8: pl. | N8: pl.p. | O8: ftn1 | P8: tijd1 | Q8: wvr1 | R8: ftn2 | S8: tijd2 | T8: wvr2 | U8: pl. | V8: pl.p. | W8: ftn1 | X8: tijd1 | Y8: wvr1 | Z8: ftn2 | AA8: tijd2 | AB8: wvr2 | AC8: pl. | AD8: pl.p. | AE8: ftn1 | AF8: tijd1 | AG8: wvr1 | AH8: ftn2 | AI8: tijd2 | AJ8: wvr2 | AK8: pl. | AL8: pl.p. | AM8: ftn1 | AN8: tijd1 | AO8: wvr1 | AP8: ftn2 | AQ8: tijd2 | AR8: wvr2 | AS8: pl. | AT8: pl.p. | AU8: ftn1 | AV8: tijd1 | AW8: wvr1 | AX8: ftn2 | AY8: tijd2 | AZ8: wvr2 | BA8: pl. | BB8: pl.p. | BC8: pl.pnt | BD8: pl.pnt | BE8: pl.pnt | BF8: Afv. | BG8: Res. | BH8: Afv. Regio | BI8: opmerking | BK8: ftn1 1e | BL8: styl1 1e | BM8: ftn2 1e | BN8: styl2 1e bar. | BO8: 1e tot ftn | BP8: ftn1 2e | BQ8: styl1 2e | BR8: ftn2 2e | BS8: styl2 2e bar. | BT8: 2e tot ftn | BU8: ftn1 3e | BV8: styl1 3e | BW8: ftn2 3e | BX8: styl2 3e bar. | BY8: 3e tot ftn | BZ8: ftn1 4e | CA8: styl1 4e | CB8: ftn2 4e | CC8: styl2 4e bar. | CD8: 4e tot ftn | CE8: ftn1 5e | CF8: styl1 5e | CG8: ftn2 5e | CH8: styl2 5e bar. | CI8: 5e tot ftn | CJ8: ftn1 6e | CK8: styl1 6e | CL8: ftn2 6e | CM8: styl2 6e bar. | CN8: 6e tot ftn
B9: 897433CB | C9: Kars Bonhof | D9: Chapeau | E9: ZZ | F9: W.E.T., RV. | N9: 99 | O9: 0 | P9: 50.55 | R9: 0 | S9: 29.81 | U9: 1 | V9: 1 | AD9: 99 | BC9: =N9+V9+AD9+AL9+AT9+BB9 -> 199 | BD9: =IF($O$4>0,(LARGE(($N9,$V9,$AD9,$AL9,$AT9,$BB9),1)),"0") -> 99 | BE9: =BC9-BD9 -> 100 | BK9: =IF(G9>99,199,G9) -> 0 | BL9: =IF(H9>99,0,H9) -> 0 | BM9: =IF(J9>99,199,J9) -> 0 | BN9: =IF(K9>99,0,K9) -> 0 | BO9: =BK9+BM9 -> 0 | BP9: =IF(O9>99,199,O9) -> 0 | BQ9: =IF(P9>99,0,P9) -> 50.55 | BR9: =IF(R9>99,199,R9) -> 0 | BS9: =IF(S9>99,0,S9) -> 29.81 | BT9: =BP9+BR9 -> 0 | BU9: =IF(W9>99,199,W9) -> 0 | BV9: =IF(X9>99,0,X9) -> 0 | BW9: =IF(Z9>99,199,Z9) -> 0 | BX9: =IF(AA9>99,0,AA9) -> 0 | BY9: =BU9+BW9 -> 0 | BZ9: =IF(AE9>99,199,AE9) -> 0 | CA9: =IF(AF9>99,0,AF9) -> 0 | CB9: =IF(AH9>99,199,AH9) -> 0 | CC9: =IF(AI9>99,0,AI9) -> 0 | CD9: =BZ9+CB9 -> 0 | CE9: =IF(AM9>99,199,AM9) -> 0 | CF9: =IF(AN9>99,0,AN9) -> 0 | CG9: =IF(AP9>99,199,AP9) -> 0 | CH9: =IF(AQ9>99,0,AQ9) -> 0 | CI9: =CE9+CG9 -> 0 | CJ9: =IF(AU9>99,199,AU9) -> 0 | CK9: =IF(AV9>99,0,AV9) -> 0 | CL9: =IF(AX9>99,199,AX9) -> 0 | CM9: =IF(AY9>99,0,AY9) -> 0 | CN9: =CJ9+CL9 -> 0
B10: 889235JK | C10: Cristel Kalf | D10: Jappeloup | E10: ZZ | F10: Heuvelruiters, RV. | G10: 0 | H10: 43.60 | J10: 0 | K10: 40.59 | M10: 1 | N10: 1 | V10: 99 | AD10: 99 | BC10: =N10+V10+AD10+AL10+AT10+BB10 -> 199 | BD10: =IF($O$4>0,(LARGE(($N10,$V10,$AD10,$AL10,$AT10,$BB10),1)),"0") -> 99 | BE10: =BC10-BD10 -> 100 | BK10: =IF(G10>99,199,G10) -> 0 | BL10: =IF(H10>99,0,H10) -> 43.6 | BM10: =IF(J10>99,199,J10) -> 0 | BN10: =IF(K10>99,0,K10) -> 40.59 | BO10: =BK10+BM10 -> 0 | BP10: =IF(O10>99,199,O10) -> 0 | BQ10: =IF(P10>99,0,P10) -> 0 | BR10: =IF(R10>99,199,R10) -> 0 | BS10: =IF(S10>99,0,S10) -> 0 | BT10: =BP10+BR10 -> 0 | BU10: =IF(W10>99,199,W10) -> 0 | BV10: =IF(X10>99,0,X10) -> 0 | BW10: =IF(Z10>99,199,Z10) -> 0 | BX10: =IF(AA10>99,0,AA10) -> 0 | BY10: =BU10+BW10 -> 0 | BZ10: =IF(AE10>99,199,AE10) -> 0 | CA10: =IF(AF10>99,0,AF10) -> 0 | CB10: =IF(AH10>99,199,AH10) -> 0 | CC10: =IF(AI10>99,0,AI10) -> 0 | CD10: =BZ10+CB10 -> 0 | CE10: =IF(AM10>99,199,AM10) -> 0 | CF10: =IF(AN10>99,0,AN10) -> 0 | CG10: =IF(AP10>99,199,AP10) -> 0 | CH10: =IF(AQ10>99,0,AQ10) -> 0 | CI10: =CE10+CG10 -> 0 | CJ10: =IF(AU10>99,199,AU10) -> 0 | CK10: =IF(AV10>99,0,AV10) -> 0 | CL10: =IF(AX10>99,199,AX10) -> 0 | CM10: =IF(AY10>99,0,AY10) -> 0 | CN10: =CJ10+CL10 -> 0
B11: 923818CP | C11: Max Van de Poll | D11: Copina | E11: ZZ | F11: Randmeerruiters, RV. De | N11: 99 | O11: 0 | P11: 50.03 | R11: 4 | S11: 34.48 | U11: 2 | V11: 2 | AD11: 99 | BC11: =N11+V11+AD11+AL11+AT11+BB11 -> 200 | BD11: =IF($O$4>0,(LARGE(($N11,$V11,$AD11,$AL11,$AT11,$BB11),1)),"0") -> 99 | BE11: =BC11-BD11 -> 101 | BK11: =IF(G11>99,199,G11) -> 0 | BL11: =IF(H11>99,0,H11) -> 0 | BM11: =IF(J11>99,199,J11) -> 0 | BN11: =IF(K11>99,0,K11) -> 0 | BO11: =BK11+BM11 -> 0 | BP11: =IF(O11>99,199,O11) -> 0 | BQ11: =IF(P11>99,0,P11) -> 50.03 | BR11: =IF(R11>99,199,R11) -> 4 | BS11: =IF(S11>99,0,S11) -> 34.48 | BT11: =BP11+BR11 -> 4 | BU11: =IF(W11>99,199,W11) -> 0 | BV11: =IF(X11>99,0,X11) -> 0 | BW11: =IF(Z11>99,199,Z11) -> 0 | BX11: =IF(AA11>99,0,AA11) -> 0 | BY11: =BU11+BW11 -> 0 | BZ11: =IF(AE11>99,199,AE11) -> 0 | CA11: =IF(AF11>99,0,AF11) -> 0 | CB11: =IF(AH11>99,199,AH11) -> 0 | CC11: =IF(AI11>99,0,AI11) -> 0 | CD11: =BZ11+CB11 -> 0 | CE11: =IF(AM11>99,199,AM11) -> 0 | CF11: =IF(AN11>99,0,AN11) -> 0 | CG11: =IF(AP11>99,199,AP11) -> 0 | CH11: =IF(AQ11>99,0,AQ11) -> 0 | CI11: =CE11+CG11 -> 0 | CJ11: =IF(AU11>99,199,AU11) -> 0 | CK11: =IF(AV11>99,0,AV11) -> 0 | CL11: =IF(AX11>99,199,AX11) -> 0 | CM11: =IF(AY11>99,0,AY11) -> 0 | CN11: =CJ11+CL11 -> 0
B12: 923811HP | C12: Max Van de Poll | D12: Hyperion | E12: ZZ | F12: Randmeerruiters, RV. De | G12: 0 | H12: 43.45 | J12: 4 | K12: 37.69 | M12: 2 | N12: 2 | V12: 99 | AD12: 99 | BC12: =N12+V12+AD12+AL12+AT12+BB12 -> 200 | BD12: =IF($O$4>0,(LARGE(($N12,$V12,$AD12,$AL12,$AT12,$BB12),1)),"0") -> 99 | BE12: =BC12-BD12 -> 101 | BK12: =IF(G12>99,199,G12) -> 0 | BL12: =IF(H12>99,0,H12) -> 43.45 | BM12: =IF(J12>99,199,J12) -> 4 | BN12: =IF(K12>99,0,K12) -> 37.69 | BO12: =BK12+BM12 -> 4 | BP12: =IF(O12>99,199,O12) -> 0 | BQ12: =IF(P12>99,0,P12) -> 0 | BR12: =IF(R12>99,199,R12) -> 0 | BS12: =IF(S12>99,0,S12) -> 0 | BT12: =BP12+BR12 -> 0 | BU12: =IF(W12>99,199,W12) -> 0 | BV12: =IF(X12>99,0,X12) -> 0 | BW12: =IF(Z12>99,199,Z12) -> 0 | BX12: =IF(AA12>99,0,AA12) -> 0 | BY12: =BU12+BW12 -> 0 | BZ12: =IF(AE12>99,199,AE12) -> 0 | CA12: =IF(AF12>99,0,AF12) -> 0 | CB12: =IF(AH12>99,199,AH12) -> 0 | CC12: =IF(AI12>99,0,AI12) -> 0 | CD12: =BZ12+CB12 -> 0 | CE12: =IF(AM12>99,199,AM12) -> 0 | CF12: =IF(AN12>99,0,AN12) -> 0 | CG12: =IF(AP12>99,199,AP12) -> 0 | CH12: =IF(AQ12>99,0,AQ12) -> 0 | CI12: =CE12+CG12 -> 0 | CJ12: =IF(AU12>99,199,AU12) -> 0 | CK12: =IF(AV12>99,0,AV12) -> 0 | CL12: =IF(AX12>99,199,AX12) -> 0 | CM12: =IF(AY12>99,0,AY12) -> 0 | CN12: =CJ12+CL12 -> 0

Sheet Z-ZZ (hidden)
A1: Selectie uitslagen
N2: 1 | V2: 2 | AD2: 3 | AL2: 4 | AT2: 5 | BB2: 6 | BC2: =N2+V2+AD2+AL2+AT2+BB2 -> 21 | BD2: =IF($O$4>0,(LARGE(($N2,$V2,$AD2,$AL2,$AT2,$BB2),1)),"0") -> 6 | BE2: =BC2-BD2 -> 15 | BF2: =IF($O$4>1,(LARGE(($N2,$V2,$AD2,$AL2,$AT2,$BB2),1))+(LARGE(($N2,$V2,$AD2,$AL2,$AT2,$BB2),2)),"0") -> 0 | BK2: =IF(G2>99,199,G2) -> 0 | BL2: =IF(H2>99,0,H2) -> 0 | BM2: =IF(J2>99,199,J2) -> 0 | BN2: =IF(K2>99,0,K2) -> 0 | BO2: =BK2+BM2 -> 0 | BP2: =IF(O2>99,199,O2) -> 0 | BQ2: =IF(P2>99,0,P2) -> 0 | BR2: =IF(R2>99,199,R2) -> 0 | BS2: =IF(S2>99,0,S2) -> 0 | BT2: =BP2+BR2 -> 0 | BU2: =IF(W2>99,199,W2) -> 0 | BV2: =IF(X2>99,0,X2) -> 0 | BW2: =IF(Z2>99,199,Z2) -> 0 | BX2: =IF(AA2>99,0,AA2) -> 0 | BY2: =BU2+BW2 -> 0 | BZ2: =IF(AE2>99,199,AE2) -> 0 | CA2: =IF(AF2>99,0,AF2) -> 0 | CB2: =IF(AH2>99,199,AH2) -> 0 | CC2: =IF(AI2>99,0,AI2) -> 0 | CD2: =BZ2+CB2 -> 0 | CE2: =IF(AM2>99,199,AM2) -> 0 | CF2: =IF(AN2>99,0,AN2) -> 0 | CG2: =IF(AP2>99,199,AP2) -> 0 | CH2: =IF(AQ2>99,0,AQ2) -> 0 | CI2: =CE2+CG2 -> 0 | CJ2: =IF(AU2>99,199,AU2) -> 0 | CK2: =IF(AV2>99,0,AV2) -> 0 | CL2: =IF(AX2>99,199,AX2) -> 0 | CM2: =IF(AY2>99,0,AY2) -> 0 | CN2: =CJ2+CL2 -> 0
A3: Kring: | C3: =Instellingen!B3 -> Kring NVF | F3: Aantal afvaardiging Regio: | BC3: Aantal wedstrijden: | BG3: =Instellingen!B6 -> 3
A4: Klasse: | C4: Z - ZZ | F4: Aantal afval resultaten: | O4: =Instellingen!B7 -> 1
A5: Cat.: | F5: Plaatsingspunten niet gestart: | O5: =Instellingen!B5 -> 99 | BC5: Aantal reserves:
F6: Lokatie: | G6: =Instellingen!B40 -> Hierden | O6: =Instellingen!B41 -> Nunspeet | W6: =Instellingen!B42 -> Wezep | AE6: =Instellingen!B43 ->  | AM6: =Instellingen!B44 ->  | AU6: =Instellingen!B45 ->  | BC6: Springen
F7: Datum: | G7: =Instellingen!C40 -> 20 nov 2021 | O7: =Instellingen!C41 -> 11 dec 2021 | W7: =Instellingen!C42 -> 05 feb 2021 | AE7: =Instellingen!C43 ->  | AM7: =Instellingen!C44 ->  | AU7: =Instellingen!C45 ->  | BC7: Tot. | BD7: afval | BE7: Beste
A8: Pl. | B8: Comb.nr. | C8: Ruiter/amazone | D8: Paard/pony | E8: kl. | F8: vereniging | G8: ftn1 | H8: tijd1 | I8: wvr1 | J8: ftn2 | K8: tijd2 | L8: wvr2 | M8: pl. | N8: pl.p. | O8: ftn1 | P8: tijd1 | Q8: wvr1 | R8: ftn2 | S8: tijd2 | T8: wvr2 | U8: pl. | V8: pl.p. | W8: ftn1 | X8: tijd1 | Y8: wvr1 | Z8: ftn2 | AA8: tijd2 | AB8: wvr2 | AC8: pl. | AD8: pl.p. | AE8: ftn1 | AF8: tijd1 | AG8: wvr1 | AH8: ftn2 | AI8: tijd2 | AJ8: wvr2 | AK8: pl. | AL8: pl.p. | AM8: ftn1 | AN8: tijd1 | AO8: wvr1 | AP8: ftn2 | AQ8: tijd2 | AR8: wvr2 | AS8: pl. | AT8: pl.p. | AU8: ftn1 | AV8: tijd1 | AW8: wvr1 | AX8: ftn2 | AY8: tijd2 | AZ8: wvr2 | BA8: pl. | BB8: pl.p. | BC8: pl.pnt | BD8: pl.pnt | BE8: pl.pnt | BF8: Afv. | BG8: Res. | BH8: Afv. Regio | BI8: opmerking | BK8: ftn1 1e | BL8: styl1 1e | BM8: ftn2 1e | BN8: styl2 1e bar. | BO8: 1e tot ftn | BP8: ftn1 2e | BQ8: styl1 2e | BR8: ftn2 2e | BS8: styl2 2e bar. | BT8: 2e tot ftn | BU8: ftn1 3e | BV8: styl1 3e | BW8: ftn2 3e | BX8: styl2 3e bar. | BY8: 3e tot ftn | BZ8: ftn1 4e | CA8: styl1 4e | CB8: ftn2 4e | CC8: styl2 4e bar. | CD8: 4e tot ftn | CE8: ftn1 5e | CF8: styl1 5e | CG8: ftn2 5e | CH8: styl2 5e bar. | CI8: 5e tot ftn | CJ8: ftn1 6e | CK8: styl1 6e | CL8: ftn2 6e | CM8: styl2 6e bar. | CN8: 6e tot ftn

Sheet Kampioenen
A1: Regio Kampioenen
A3: Kring: | B3: Kring NVF | H3: Aantal per klasse: | J3: 1
A4: Volgnr. | B4: Comb.nr. | C4: Ruiter/amazone | D4: Paard/pony | E4: Klasse | F4: Cat. | G4: Vereniging | H4: Totaal beste | J4: Totaal pl.pnt. | K4: Opmerking
C7: Klasse: BB
C9: Klasse: B
A10: 1 | B10: 908293DB | C10: Kim Bouten | D10: Domestic Z | E10: B | F10: B | G10: Marleruiters, RV. | H10: 2 | J10: 8 | K10: Kringkampioen
C12: Klasse: L
A13: 1 | B13: 930205BN | C13: Jantien Naber | D13: Barnadown B Lucky | E13: L | F13: L | G13: Flevoruiters, RV. | H13: 2 | J13: 4 | K13: Kring kampioen
C15: Klasse: M
A16: 1 | B16: 911454EL | C16: Alice Naber - Lozeman | D16: If Evert | E16: M | F16: M | G16: Flevoruiters, RV. | H16: 4 | J16: 16 | K16: Kringkampioen
C18: Klasse: Z
A19: 1 | B19: 926631JB | C19: Martin Van Bijsteren | D19: Jaizemieka VDL | E19: Z | F19: Z | G19: Randmeerruiters, RV. De | H19: 3 | J19: 102 | K19: Kringkampioen
C21: Klasse: ZZ

Sheet Diversen
A1: Selectie wedstrijd
C2: 9 | D2: =FLOOR((C2+3)/4,1) -> 3 | H2: 192 | I2: 190 | J2: =H2+I2 -> 382.00
A3: Kring: | C3: =Instellingen!B3 -> Kring NVF | E3: Wedstrijd nummer: | H3: 2
A6: Dubbele combinaties
A8: Pl. | B8: Comb.nr. | C8: Ruiter/amazone | D8: Paard/pony | E8: klasse | F8: cat. | G8: vereniging | H8: Ftn | I8: Bar. | J8: Stijl tijd | N8: opmerking

Sheet Instellingen
B1: Waarde | C1: Opmerking
A2: Gegevens:
A3: Naam van de Kring: | B3: Kring NVF
A4: Interval plaatsingspunten: | B4: 1 | C4: 1=(1,2,3,etc) / 2=(1,3,5,etc)
A5: Plaatsingspunten niet gestart: | B5: 99
A6: Aantal selectie wedstrijden: | B6: 3
A7: Aantal afval resultaten: | B7: 1
A10: Plaatsingspunten niet gefinisht | B10: 90 | C10: Blanko is volgens plaatsing
A13: Afvaardiging Regiokampioenschappen | C13: Aanmelden; Afmelden, Blanko is iedereen
A14: Klasse Z-ZZ samenvoegen | B14: Nee
A15: zie dressuur
A16: Zie dressuur
A17: Klasse BB verbergen | B17: Nee
A18: Zie dressuur
A23: Volgorde ex-aequo regeling: | C23: (De laagste waarde heeft voorrang, niet ingevulde gegevens doen niet mee voor de volgorde van het resultaat)
A24: Totaal beste plaatsingspunten: | B24: 1 | C24: (dit is een vaste waarde en heeft de hoogste voorrang)
A25: Plaatsingspunten 6e wedstrijd:
A26: Plaatsingspunten 5e wedstrijd:
A27: Plaatsingspunten 4e wedstrijd:
A28: Plaatsingspunten 3e wedstrijd: | B28: 2
A29: Plaatsingspunten 2e wedstrijd:
A30: Plaatsingspunten 1e wedstrijd:
A31: Totaal alle plaatsingspunten: | B31: 3
A39: Omschrijving | B39: Lokatie | C39: Datum | D39: Sortering fouten
A40: 1e wedstrijd | B40: Hierden | C40: 20 nov 2021 | D40: 2: totaal fouten
A41: 2e wedstrijd | B41: Nunspeet | C41: 11 dec 2021 | D41: 2: totaal fouten
A42: 3e wedstrijd | B42: Wezep | C42: 05 feb 2021 | D42: 1: fouten barrage
A43: 4e wedstrijd | D43: 1: fouten barrage
A44: 5e wedstrijd | D44: 1: fouten barrage
A45: 6e wedstrijd | D45: 1: fouten barrage

Sheet Afvaardiging
A1: Afvaardiging aan de Regio Kampioenschappen
A3: Kring: | B3: Kring NVF | E3: Discipline: | G3: Springen
A4: Volgnr. | B4: Comb.nr. | C4: Ruiter / amazone | D4: Paard/pony | E4: Klasse | F4: Cat. | G4: Vereniging | H4: Opmerking | I4: =IF(C4<>"",RIGHT(C4,LEN(C4)-SEARCH(" ",C4,1)),"") -> / amazone | J4: =IF(C4<>"",LEFT(C4, SEARCH(" ",C4,1)),"") -> Ruiter
C6: Klasse: B | D6: Afvaardiging: 9
A7: 1 | B7: 908293DB | C7: Kim Bouten | D7: Domestic Z | E7: B | G7: Marleruiters, RV. | H7: Kringkampioen
A8: 2 | B8: 920136LF | C8: Femke Franken | D8: Larcona | E8: B | G8: Randmeerruiters, RV. De
A9: 3 | B9: 938518CD | C9: Rosanne Dogterom | D9: Coolbest | E9: B | G9: Flevoruiters, RV.
A10: 4 | B10: 921364JL | C10: Esther Lammerts | D10: Jan L Z | E10: B | G10: Flevoruiters, RV.
A11: 5 | B11: 919173KL | C11: Marit Lans | D11: Kees | E11: B | G11: Flevoruiters, RV.
A12: 6 | B12: 911057LS | C12: Brechtje Stoop | D12: Lucy On Tour | E12: B | G12: Flevoruiters, RV.
A13: 7 | B13: 919605MR | C13: Niels Remijn | D13: Mendolin | E13: B | G13: Flevoruiters, RV.
A14: 8 | B14: 907861KV | C14: Marije Van de Vijver | D14: Ketchican Srr | E14: B | G14: Flevoruiters, RV.
A15: 9 | B15: 928095MW | C15: Jan Wolfs | D15: Most Wanted | E15: B | G15: Nunspeetse Ruiterclub, RV.
A16: 1e Res. | B16: 932381AV | C16: Esmee de Vries | D16: Elvis Z. | E16: B | G16: Maverick Stables
A17: 2e Res. | B17: 942125BH | C17: Iris Van den Heuvel | D17: Bonaire | E17: B | G17: WWNA, RV.
A18: 3e Res. | B18: 937468MV | C18: Cynthia Vos | D18: Mr Elois | E18: B | G18: Nunspeetse Ruiterclub, RV.
C20: Klasse: L | D20: Afvaardiging: 10
A21: 1 | B21: 930205BN | C21: Jantien Naber | D21: Barnadown B Lucky | E21: L | G21: Flevoruiters, RV. | H21: Kring kampioen
A22: 2 | B22: 897952FW | C22: Joost Wolfs | D22: Flow | E22: L | G22: Nunspeetse Ruiterclub, RV.
A23: 3 | B23: 909460BB | C23: Susan Benedictus | D23: Exper | E23: L | G23: Flevoruiters, RV.
A24: 4 | B24: 935571KN | C24: Leida Naber | D24: Kyran | E24: L | G24: Flevoruiters, RV.
A25: 5 | B25: 809152CH | C25: Jasper Hanse | D25: Conner | E25: L | G25: Flevoruiters, RV.
A26: 6 | B26: 920659MT | C26: Gerwilmer Ton | D26: Marillion V&V | E26: L | G26: Nunspeetse Ruiterclub, RV.
A27: 7 | B27: 923469LS | C27: Suzan Schurer | D27: Lord Of Cooper | E27: L | G27: Flevoruiters, RV.
A28: 8 | B28: 915987LB | C28: Edward Van den Bragt | D28: Lambada-s (res) | E28: L | G28: Hulshorst, RV.
A29: 9 | B29: 826404IH | C29: Cynthia Huijgen | D29: Iando | E29: L | G29: Flevoruiters, RV.
A30: 10 | B30: 938233JB | C30: Susan Benedictus | D30: John Doe VDP | E30: L | G30: Flevoruiters, RV.
A31: 1e Res. | B31: 893434CH | C31: Senna Hoekert | D31: Camara Z | E31: L | G31: Nunspeetse Ruiterclub, RV.
A32: 2e Res. | B32: 786179GW | C32: Corrie Stoker - De Wit | D32: Gufala | E32: L | G32: Flevoruiters, RV.
A33: 3e Res. | B33: 897995HH | C33: Thijs Ter Horst | D33: High Voltage | E33: L | G33: Nunspeetse Ruiterclub, RV.
C35: Klasse: M | D35: Afvaardiging: 11
A36: 1 | B36: 911454EL | C36: Alice Naber - Lozeman | D36: If Evert | E36: M | G36: Flevoruiters, RV. | H36: Kringkampioen
A37: 2 | B37: 938866KK | C37: Cristel Kalf | D37: Kristoff | E37: M | G37: Heuvelruiters, RV.
A38: 3 | B38: 938867LK | C38: Cristel Kalf | D38: Comme Le Coeur | E38: M | G38: Heuvelruiters, RV.
A39: 4 | B39: 831770HM | C39: Josine Van der Meij | D39: High Five | E39: M | G39: Flevoruiters, RV.
A40: 5 | B40: 890122KK | C40: Anne Klein | D40: Kascarilla | E40: M | G40: Heuvelruiters, RV.
A41: 6 | B41: 767142FB | C41: Annemiek Bloemendaal | D41: FRESIA-A | E41: M | G41: Nunspeetse Ruiterclub, RV.
A42: 7 | B42: 802654MP | C42: Misha Postma | D42: My love | E42: M | G42: Heuvelruiters, RV.
A43: 8 | B43: 939715EK | C43: Anne Klein | D43: Een bolletje | E43: M | G43: Heuvelruiters, RV.
A44: 9 | B44: 887058HB | C44: Linda Beekhoven | D44: Harrison | E44: M | G44: Maverick Stables
A45: 10 | B45: 907334JT | C45: Julian Ton | D45: Juulverna | E45: M | G45: Nunspeetse Ruiterclub, RV.
A46: 11 | B46: 905622CG | C46: Djairo De Glee | D46: Cerania BB Z | E46: M | G46: Flevoruiters, RV.
A47: 1e Res. | B47: 860520CS | C47: Julia Sloots | D47: Cantos | G47: Lelyruiters, RV
A48: 2e Res. | B48: 839049EJ | C48: Lily Jansen | D48: excellent | E48: M | G48: Randmeerruiters, RV. De
